{"text_format":"3","workbook":"xlsx","n_sheets":9,"sheets":["Overview & Questionnaire","Milestone Progress","Permitting Progress","Named Community Progress","Locale Progress","Highway Progress","Milestone Summary","Named Community List","Hidden-lists"],"not_rendered":{"images":1,"defined_names":13},"read":"whole","date_system":"1900"}

{"sheet":"Overview & Questionnaire","index":0,"n_rows":84,"n_cols":2,"rows_kept":84,"merged":[[42,1,51,1],[57,1,66,1],[72,1,81,1],[83,1,83,2]]}
[null,"Connecting British Columbia"]
[null,"Economic Recovery Intake"]
[null,"Quarterly Report Workbook"]
[]
[null,"Instructions"]
[null,"1. Complete the yellow sections below (all projects). \n2. Complete the yellow sections within the Milestone Progress tab (all projects).\n3. Complete the yellow sections within the Permitting Progress tab (all projects).\n4. Complete the yellow sections within the Named Community Progress tab (community projects).\n5. Complete the yellow sections within the Locale Progress tab (community projects involving unlisted locales or communities).\n6. Complete the yellow sections within the Highway Progress tab (highway projects)."]
[]
[null,"Submitting Your Report"]
[null,"Quarterly Report Workbook ending March 31 is due by April 30.\nQuarterly Report Workbook ending June 30 is due by July 31.\nQuarterly Report Workbook September 30 is due by October 31.\nQuarterly Report Workbook December 31 is due by January 31."]
[]
[null,"Email your completed Quarterly Report Workbook by the applicable due date to:"]
[null,"connectingbc@northerndevelopment.bc.ca"]
[]
[null,"Proponent Profile"]
[null,"Project #:"]
[]
[null,"Proponent organization (legal name):"]
[]
[null,"Project name:"]
[]
[]
[null,"Primary Contact Information"]
[null,"Primary contact for this report: "]
[]
[null,"Position/title:"]
[]
[null,"Telephone:"]
[]
[null,"Email:"]
[]
[]
[null,"Report Submission"]
[null,"Quarter end date for this report (use drop-down):"]
[]
[null,"Date completed:"]
[]
[]
[null,"Project Progress"]
[null,"Project or Scope Changes"]
[null,"Since signing your funding agreement or since the submission of your last Quarterly Report, have there been any changes to the project/scope? (use dropdown: Yes or No)"]
[]
[null,"If Yes, please explain the original project/scope and the changes that have been or are being made:"]
{"$rows_empty":11}
[null,"Timeline Changes"]
[null,"Has anything affected your project’s progress (e.g., weather, restricted access, procurement complications, redesign, contracting issues, funding commitments not delivered, loss of key personnel, etc.) that may impact your project’s timeline? (use dropdown: Yes or No)"]
[]
[null,"If Yes, please provide details, including the length of delay(s), a revised expected completion date (if applicable), and any corrective measures taken to minimize the impact on project implementation:"]
{"$rows_empty":11}
[null,"Financial Update"]
[null,"Are there any substantial changes to the project budget? (use dropdown: Yes or No)"]
[]
[null,"If yes, please explain what and why:"]
{"$rows_empty":11}
[null,"Published October 15, 2021 - Ver. 1.2"]

{"sheet":"Milestone Progress","index":1,"n_rows":33,"n_cols":14,"rows_kept":33,"merged":[[0,1,0,6],[1,1,1,6],[2,1,2,6],[3,1,3,6],[4,1,4,6],[5,1,5,6],[6,1,6,6],[7,1,7,6],[9,2,9,3],[9,4,9,5],[32,4,32,6]]}
[null,"Milestone Progress"]
[]
[null,"Instructions"]
[null,"Complete the yellow sections."]
[null,"For Project Start MILESTONE, the ORIGINAL PLAN start and completion should be entered as the same date."]
[null,"For Project Start MILESTONE, the ACTUAL start and completion should be entered as the same date."]
[null,"For Project Completion MILESTONE, the ORIGINAL PLAN start and completion should be entered as the same date."]
[null,"For Project Completion MILESTONE, the ACTUAL start and completion should be entered as the same date."]
[]
[null,null,"ORIGINAL PLAN",null,"ACTUAL"]
[null,"MILESTONE\n(as per agreement)","START DATE\n(as per agreement)","COMPLETION DATE\n(as per agreement)","START DATE","COMPLETION DATE","PROGRESS\n(%)","Start Quarter","Expected Completion Quarter","Quarters to Competion","Offset","Actual Start Quarter","Actual Completion Quarter","Actual Quarters to Completion"]
[null,"Project Start",{"$nulls":5},{"$f":"IF(B12<>\"\",\"Q\"&ROUNDUP(MONTH(C12)/3,0)&\" \"&YEAR(C12),\"\")","v":"Q1 1900"},{"$f":"IF(B12<>\"\",\"Q\"&ROUNDUP(MONTH(D12)/3,0)&\" \"&YEAR(D12),\"\")","v":"Q1 1900"},{"$f":"IF(B12<>\"\",FLOOR(((YEAR(D12)*12+MONTH(D12))-(YEAR(C12)*12+MONTH(C12)))/3,1),\"\")","v":0},{"$f":"IF(E12<>\"\",SUM(Table5[[#This Row],[Actual Quarters to Completion]]-Table5[[#This Row],[Quarters to Competion]]),\"\")","v":""},{"$f":"IF(E12<>\"\",\"Q\"&ROUNDUP(MONTH(E12)/3,0)&\" \"&YEAR(E12),\"\")","v":""},{"$f":"IF(E12<>\"\",\"Q\"&ROUNDUP(MONTH(F12)/3,0)&\" \"&YEAR(F12),\"\")","v":""},{"$f":"IF(E12<>\"\",FLOOR(((YEAR(F12)*12+MONTH(F12))-(YEAR(C12)*12+MONTH(C12)))/3,1),\"\")","v":""}]
[null,"insert milestone here",{"$nulls":5},{"$f":"IF(B13<>\"\",\"Q\"&ROUNDUP(MONTH(C13)/3,0)&\" \"&YEAR(C13),\"\")","v":"Q1 1900"},"Q1 1900",0,{"$f":"IF(E13<>\"\",SUM(Table5[[#This Row],[Actual Quarters to Completion]]-Table5[[#This Row],[Quarters to Competion]]),\"\")","v":""},"","",""]
[null,"insert milestone here",{"$nulls":5},"Q1 1900","Q1 1900",0,{"$f":"IF(E14<>\"\",SUM(Table5[[#This Row],[Actual Quarters to Completion]]-Table5[[#This Row],[Quarters to Competion]]),\"\")","v":""},"","",""]
[null,"insert milestone here",{"$nulls":5},"Q1 1900","Q1 1900",0,{"$f":"IF(E15<>\"\",SUM(Table5[[#This Row],[Actual Quarters to Completion]]-Table5[[#This Row],[Quarters to Competion]]),\"\")","v":""},"","",""]
[null,"insert milestone here",{"$nulls":5},"Q1 1900","Q1 1900",0,{"$f":"IF(E16<>\"\",SUM(Table5[[#This Row],[Actual Quarters to Completion]]-Table5[[#This Row],[Quarters to Competion]]),\"\")","v":""},"","",""]
[null,"insert milestone here",{"$nulls":5},"Q1 1900","Q1 1900",0,{"$f":"IF(E17<>\"\",SUM(Table5[[#This Row],[Actual Quarters to Completion]]-Table5[[#This Row],[Quarters to Competion]]),\"\")","v":""},"","",""]
[null,"insert milestone here",{"$nulls":5},"Q1 1900","Q1 1900",0,{"$f":"IF(E18<>\"\",SUM(Table5[[#This Row],[Actual Quarters to Completion]]-Table5[[#This Row],[Quarters to Competion]]),\"\")","v":""},"","",""]
[null,"insert milestone here",{"$nulls":5},"Q1 1900","Q1 1900",0,{"$f":"IF(E19<>\"\",SUM(Table5[[#This Row],[Actual Quarters to Completion]]-Table5[[#This Row],[Quarters to Competion]]),\"\")","v":""},"","",""]
[null,"insert milestone here",{"$nulls":5},"Q1 1900","Q1 1900",0,{"$f":"IF(E20<>\"\",SUM(Table5[[#This Row],[Actual Quarters to Completion]]-Table5[[#This Row],[Quarters to Competion]]),\"\")","v":""},"","",""]
[null,"Project Completion",{"$nulls":5},"Q1 1900","Q1 1900",0,{"$f":"IF(E21<>\"\",SUM(Table5[[#This Row],[Actual Quarters to Completion]]-Table5[[#This Row],[Quarters to Competion]]),\"\")","v":""},"","",""]
[{"$nulls":7},"","","",{"$f":"IF(E22<>\"\",SUM(Table5[[#This Row],[Actual Quarters to Completion]]-Table5[[#This Row],[Quarters to Competion]]),\"\")","v":""},"","",""]
[{"$nulls":7},"","","",{"$f":"IF(E23<>\"\",SUM(Table5[[#This Row],[Actual Quarters to Completion]]-Table5[[#This Row],[Quarters to Competion]]),\"\")","v":""},"","",""]
[{"$nulls":7},"","","",{"$f":"IF(E24<>\"\",SUM(Table5[[#This Row],[Actual Quarters to Completion]]-Table5[[#This Row],[Quarters to Competion]]),\"\")","v":""},"","",""]
[{"$nulls":7},"","","",{"$f":"IF(E25<>\"\",SUM(Table5[[#This Row],[Actual Quarters to Completion]]-Table5[[#This Row],[Quarters to Competion]]),\"\")","v":""},"","",""]
[{"$nulls":7},"","","",{"$f":"IF(E26<>\"\",SUM(Table5[[#This Row],[Actual Quarters to Completion]]-Table5[[#This Row],[Quarters to Competion]]),\"\")","v":""},"","",""]
[{"$nulls":7},"","","",{"$f":"IF(E27<>\"\",SUM(Table5[[#This Row],[Actual Quarters to Completion]]-Table5[[#This Row],[Quarters to Competion]]),\"\")","v":""},"","",""]
[{"$nulls":7},"","","",{"$f":"IF(E28<>\"\",SUM(Table5[[#This Row],[Actual Quarters to Completion]]-Table5[[#This Row],[Quarters to Competion]]),\"\")","v":""},"","",""]
[{"$nulls":7},"","","",{"$f":"IF(E29<>\"\",SUM(Table5[[#This Row],[Actual Quarters to Completion]]-Table5[[#This Row],[Quarters to Competion]]),\"\")","v":""},"","",""]
[{"$nulls":7},"","","",{"$f":"IF(E30<>\"\",SUM(Table5[[#This Row],[Actual Quarters to Completion]]-Table5[[#This Row],[Quarters to Competion]]),\"\")","v":""},"","",""]
[{"$nulls":7},"","","",{"$f":"IF(E31<>\"\",SUM(Table5[[#This Row],[Actual Quarters to Completion]]-Table5[[#This Row],[Quarters to Competion]]),\"\")","v":""},"","",""]
[]
[{"$nulls":4},"Published October 19, 2021 - Ver. 1.2"]

{"sheet":"Permitting Progress","index":2,"n_rows":26,"n_cols":12,"rows_kept":26,"merged":[[0,1,0,11],[1,1,1,11],[2,1,2,11],[3,1,3,11],[4,1,4,11],[6,5,6,9],[25,9,25,11]]}
[null,"Permitting Progress"]
[]
[null,"Instructions"]
[null,"Complete the yellow sections."]
[null,"Please identify all permits required for the successful completion of your project. Also indicate the progress that has been made thus far."]
[]
[{"$nulls":5},"CURRENTLY ENGAGED WITH"]
[null,"ASSET REQUIRED","ASSET OWNER","TYPE OF PERMIT REQUIRED","PERMITTING AUTHORITY","ORGANIZATION NAME","CONTACT NAME\n(first name, last name)","POSITION/TITLE","PHONE NUMBER","E-MAIL ADDRESS","STATUS\n(use drop-down)","DATE PERMIT\nIS REQUIRED"]
{"$rows_empty":17}
[{"$nulls":9},"Published October 2020 - Ver. 1.1"]

{"sheet":"Named Community Progress","index":3,"n_rows":39,"n_cols":10,"rows_kept":39,"merged":[[0,1,0,6],[1,1,1,6],[2,1,2,6],[3,1,3,6],[4,1,4,6],[38,5,38,6]]}
[null,"Named Community Progress"]
[]
[null,"Instructions"]
[null,"Complete the yellow sections."]
[null,"All Named Communities identified in the approved 'Template 2 - Application Workbook' MUST be listed below."]
[]
[null,"NAMED COMMUNITY\n(*denotes an indigenous community)\n(use-dropdown)","SOLUTION TYPE\n(use drop-down)","PROGRESS (%)","STATUS\n(use drop-down)","ESTIMATED\nCOMPLETION DATE","PLACE ID\n(auto populated)","Applicant Name","Project Name","TimeStamp\n(auto fill)"]
[{"$nulls":6},{"$f":"IF(Table13[[#This Row],[NAMED COMMUNITY\n(*denotes an indigenous community)\n(use-dropdown)]]<>\"\",INDEX(Table1[Place ID\n],MATCH(Table13[[#This Row],[NAMED COMMUNITY\n(*denotes an indigenous community)\n(use-dropdown)]],Table1[Place Name1 \n(*denotes an indigenous community)],0)),\"\")","v":""},{"$f":"IF(Table13[[#This Row],[NAMED COMMUNITY\n(*denotes an indigenous community)\n(use-dropdown)]]<>\"\",'Overview & Questionnaire'!B$18,\"\")","v":""},{"$f":"IF(Table13[[#This Row],[NAMED COMMUNITY\n(*denotes an indigenous community)\n(use-dropdown)]]<>\"\",'Overview & Questionnaire'!B$20,\"\")","v":""},{"$f":"IF(Table13[[#This Row],[NAMED COMMUNITY\n(*denotes an indigenous community)\n(use-dropdown)]]<>\"\",'Overview & Questionnaire'!B$36,\"\")","v":""}]
[{"$nulls":6},{"$f":"IF(Table13[[#This Row],[NAMED COMMUNITY\n(*denotes an indigenous community)\n(use-dropdown)]]<>\"\",INDEX(Table1[Place ID\n],MATCH(Table13[[#This Row],[NAMED COMMUNITY\n(*denotes an indigenous community)\n(use-dropdown)]],Table1[Place Name1 \n(*denotes an indigenous community)],0)),\"\")","v":""},{"$f":"IF(Table13[[#This Row],[NAMED COMMUNITY\n(*denotes an indigenous community)\n(use-dropdown)]]<>\"\",'Overview & Questionnaire'!B$18,\"\")","v":""},{"$f":"IF(Table13[[#This Row],[NAMED COMMUNITY\n(*denotes an indigenous community)\n(use-dropdown)]]<>\"\",'Overview & Questionnaire'!B$20,\"\")","v":""},{"$f":"IF(Table13[[#This Row],[NAMED COMMUNITY\n(*denotes an indigenous community)\n(use-dropdown)]]<>\"\",'Overview & Questionnaire'!B$36,\"\")","v":""}]
[{"$nulls":6},{"$f":"IF(Table13[[#This Row],[NAMED COMMUNITY\n(*denotes an indigenous community)\n(use-dropdown)]]<>\"\",INDEX(Table1[Place ID\n],MATCH(Table13[[#This Row],[NAMED COMMUNITY\n(*denotes an indigenous community)\n(use-dropdown)]],Table1[Place Name1 \n(*denotes an indigenous community)],0)),\"\")","v":""},{"$f":"IF(Table13[[#This Row],[NAMED COMMUNITY\n(*denotes an indigenous community)\n(use-dropdown)]]<>\"\",'Overview & Questionnaire'!B$18,\"\")","v":""},{"$f":"IF(Table13[[#This Row],[NAMED COMMUNITY\n(*denotes an indigenous community)\n(use-dropdown)]]<>\"\",'Overview & Questionnaire'!B$20,\"\")","v":""},{"$f":"IF(Table13[[#This Row],[NAMED COMMUNITY\n(*denotes an indigenous community)\n(use-dropdown)]]<>\"\",'Overview & Questionnaire'!B$36,\"\")","v":""}]
[{"$nulls":6},{"$f":"IF(Table13[[#This Row],[NAMED COMMUNITY\n(*denotes an indigenous community)\n(use-dropdown)]]<>\"\",INDEX(Table1[Place ID\n],MATCH(Table13[[#This Row],[NAMED COMMUNITY\n(*denotes an indigenous community)\n(use-dropdown)]],Table1[Place Name1 \n(*denotes an indigenous community)],0)),\"\")","v":""},{"$f":"IF(Table13[[#This Row],[NAMED COMMUNITY\n(*denotes an indigenous community)\n(use-dropdown)]]<>\"\",'Overview & Questionnaire'!B$18,\"\")","v":""},{"$f":"IF(Table13[[#This Row],[NAMED COMMUNITY\n(*denotes an indigenous community)\n(use-dropdown)]]<>\"\",'Overview & Questionnaire'!B$20,\"\")","v":""},{"$f":"IF(Table13[[#This Row],[NAMED COMMUNITY\n(*denotes an indigenous community)\n(use-dropdown)]]<>\"\",'Overview & Questionnaire'!B$36,\"\")","v":""}]
[{"$nulls":6},{"$f":"IF(Table13[[#This Row],[NAMED COMMUNITY\n(*denotes an indigenous community)\n(use-dropdown)]]<>\"\",INDEX(Table1[Place ID\n],MATCH(Table13[[#This Row],[NAMED COMMUNITY\n(*denotes an indigenous community)\n(use-dropdown)]],Table1[Place Name1 \n(*denotes an indigenous community)],0)),\"\")","v":""},{"$f":"IF(Table13[[#This Row],[NAMED COMMUNITY\n(*denotes an indigenous community)\n(use-dropdown)]]<>\"\",'Overview & Questionnaire'!B$18,\"\")","v":""},{"$f":"IF(Table13[[#This Row],[NAMED COMMUNITY\n(*denotes an indigenous community)\n(use-dropdown)]]<>\"\",'Overview & Questionnaire'!B$20,\"\")","v":""},{"$f":"IF(Table13[[#This Row],[NAMED COMMUNITY\n(*denotes an indigenous community)\n(use-dropdown)]]<>\"\",'Overview & Questionnaire'!B$36,\"\")","v":""}]
[{"$nulls":6},{"$f":"IF(Table13[[#This Row],[NAMED COMMUNITY\n(*denotes an indigenous community)\n(use-dropdown)]]<>\"\",INDEX(Table1[Place ID\n],MATCH(Table13[[#This Row],[NAMED COMMUNITY\n(*denotes an indigenous community)\n(use-dropdown)]],Table1[Place Name1 \n(*denotes an indigenous community)],0)),\"\")","v":""},{"$f":"IF(Table13[[#This Row],[NAMED COMMUNITY\n(*denotes an indigenous community)\n(use-dropdown)]]<>\"\",'Overview & Questionnaire'!B$18,\"\")","v":""},{"$f":"IF(Table13[[#This Row],[NAMED COMMUNITY\n(*denotes an indigenous community)\n(use-dropdown)]]<>\"\",'Overview & Questionnaire'!B$20,\"\")","v":""},{"$f":"IF(Table13[[#This Row],[NAMED COMMUNITY\n(*denotes an indigenous community)\n(use-dropdown)]]<>\"\",'Overview & Questionnaire'!B$36,\"\")","v":""}]
[{"$nulls":6},{"$f":"IF(Table13[[#This Row],[NAMED COMMUNITY\n(*denotes an indigenous community)\n(use-dropdown)]]<>\"\",INDEX(Table1[Place ID\n],MATCH(Table13[[#This Row],[NAMED COMMUNITY\n(*denotes an indigenous community)\n(use-dropdown)]],Table1[Place Name1 \n(*denotes an indigenous community)],0)),\"\")","v":""},{"$f":"IF(Table13[[#This Row],[NAMED COMMUNITY\n(*denotes an indigenous community)\n(use-dropdown)]]<>\"\",'Overview & Questionnaire'!B$18,\"\")","v":""},{"$f":"IF(Table13[[#This Row],[NAMED COMMUNITY\n(*denotes an indigenous community)\n(use-dropdown)]]<>\"\",'Overview & Questionnaire'!B$20,\"\")","v":""},{"$f":"IF(Table13[[#This Row],[NAMED COMMUNITY\n(*denotes an indigenous community)\n(use-dropdown)]]<>\"\",'Overview & Questionnaire'!B$36,\"\")","v":""}]
[{"$nulls":6},{"$f":"IF(Table13[[#This Row],[NAMED COMMUNITY\n(*denotes an indigenous community)\n(use-dropdown)]]<>\"\",INDEX(Table1[Place ID\n],MATCH(Table13[[#This Row],[NAMED COMMUNITY\n(*denotes an indigenous community)\n(use-dropdown)]],Table1[Place Name1 \n(*denotes an indigenous community)],0)),\"\")","v":""},{"$f":"IF(Table13[[#This Row],[NAMED COMMUNITY\n(*denotes an indigenous community)\n(use-dropdown)]]<>\"\",'Overview & Questionnaire'!B$18,\"\")","v":""},{"$f":"IF(Table13[[#This Row],[NAMED COMMUNITY\n(*denotes an indigenous community)\n(use-dropdown)]]<>\"\",'Overview & Questionnaire'!B$20,\"\")","v":""},{"$f":"IF(Table13[[#This Row],[NAMED COMMUNITY\n(*denotes an indigenous community)\n(use-dropdown)]]<>\"\",'Overview & Questionnaire'!B$36,\"\")","v":""}]
[{"$nulls":6},{"$f":"IF(Table13[[#This Row],[NAMED COMMUNITY\n(*denotes an indigenous community)\n(use-dropdown)]]<>\"\",INDEX(Table1[Place ID\n],MATCH(Table13[[#This Row],[NAMED COMMUNITY\n(*denotes an indigenous community)\n(use-dropdown)]],Table1[Place Name1 \n(*denotes an indigenous community)],0)),\"\")","v":""},{"$f":"IF(Table13[[#This Row],[NAMED COMMUNITY\n(*denotes an indigenous community)\n(use-dropdown)]]<>\"\",'Overview & Questionnaire'!B$18,\"\")","v":""},{"$f":"IF(Table13[[#This Row],[NAMED COMMUNITY\n(*denotes an indigenous community)\n(use-dropdown)]]<>\"\",'Overview & Questionnaire'!B$20,\"\")","v":""},{"$f":"IF(Table13[[#This Row],[NAMED COMMUNITY\n(*denotes an indigenous community)\n(use-dropdown)]]<>\"\",'Overview & Questionnaire'!B$36,\"\")","v":""}]
[{"$nulls":6},{"$f":"IF(Table13[[#This Row],[NAMED COMMUNITY\n(*denotes an indigenous community)\n(use-dropdown)]]<>\"\",INDEX(Table1[Place ID\n],MATCH(Table13[[#This Row],[NAMED COMMUNITY\n(*denotes an indigenous community)\n(use-dropdown)]],Table1[Place Name1 \n(*denotes an indigenous community)],0)),\"\")","v":""},{"$f":"IF(Table13[[#This Row],[NAMED COMMUNITY\n(*denotes an indigenous community)\n(use-dropdown)]]<>\"\",'Overview & Questionnaire'!B$18,\"\")","v":""},{"$f":"IF(Table13[[#This Row],[NAMED COMMUNITY\n(*denotes an indigenous community)\n(use-dropdown)]]<>\"\",'Overview & Questionnaire'!B$20,\"\")","v":""},{"$f":"IF(Table13[[#This Row],[NAMED COMMUNITY\n(*denotes an indigenous community)\n(use-dropdown)]]<>\"\",'Overview & Questionnaire'!B$36,\"\")","v":""}]
[{"$nulls":6},{"$f":"IF(Table13[[#This Row],[NAMED COMMUNITY\n(*denotes an indigenous community)\n(use-dropdown)]]<>\"\",INDEX(Table1[Place ID\n],MATCH(Table13[[#This Row],[NAMED COMMUNITY\n(*denotes an indigenous community)\n(use-dropdown)]],Table1[Place Name1 \n(*denotes an indigenous community)],0)),\"\")","v":""},{"$f":"IF(Table13[[#This Row],[NAMED COMMUNITY\n(*denotes an indigenous community)\n(use-dropdown)]]<>\"\",'Overview & Questionnaire'!B$18,\"\")","v":""},{"$f":"IF(Table13[[#This Row],[NAMED COMMUNITY\n(*denotes an indigenous community)\n(use-dropdown)]]<>\"\",'Overview & Questionnaire'!B$20,\"\")","v":""},{"$f":"IF(Table13[[#This Row],[NAMED COMMUNITY\n(*denotes an indigenous community)\n(use-dropdown)]]<>\"\",'Overview & Questionnaire'!B$36,\"\")","v":""}]
[{"$nulls":6},{"$f":"IF(Table13[[#This Row],[NAMED COMMUNITY\n(*denotes an indigenous community)\n(use-dropdown)]]<>\"\",INDEX(Table1[Place ID\n],MATCH(Table13[[#This Row],[NAMED COMMUNITY\n(*denotes an indigenous community)\n(use-dropdown)]],Table1[Place Name1 \n(*denotes an indigenous community)],0)),\"\")","v":""},{"$f":"IF(Table13[[#This Row],[NAMED COMMUNITY\n(*denotes an indigenous community)\n(use-dropdown)]]<>\"\",'Overview & Questionnaire'!B$18,\"\")","v":""},{"$f":"IF(Table13[[#This Row],[NAMED COMMUNITY\n(*denotes an indigenous community)\n(use-dropdown)]]<>\"\",'Overview & Questionnaire'!B$20,\"\")","v":""},{"$f":"IF(Table13[[#This Row],[NAMED COMMUNITY\n(*denotes an indigenous community)\n(use-dropdown)]]<>\"\",'Overview & Questionnaire'!B$36,\"\")","v":""}]
[{"$nulls":6},{"$f":"IF(Table13[[#This Row],[NAMED COMMUNITY\n(*denotes an indigenous community)\n(use-dropdown)]]<>\"\",INDEX(Table1[Place ID\n],MATCH(Table13[[#This Row],[NAMED COMMUNITY\n(*denotes an indigenous community)\n(use-dropdown)]],Table1[Place Name1 \n(*denotes an indigenous community)],0)),\"\")","v":""},{"$f":"IF(Table13[[#This Row],[NAMED COMMUNITY\n(*denotes an indigenous community)\n(use-dropdown)]]<>\"\",'Overview & Questionnaire'!B$18,\"\")","v":""},{"$f":"IF(Table13[[#This Row],[NAMED COMMUNITY\n(*denotes an indigenous community)\n(use-dropdown)]]<>\"\",'Overview & Questionnaire'!B$20,\"\")","v":""},{"$f":"IF(Table13[[#This Row],[NAMED COMMUNITY\n(*denotes an indigenous community)\n(use-dropdown)]]<>\"\",'Overview & Questionnaire'!B$36,\"\")","v":""}]
[{"$nulls":6},{"$f":"IF(Table13[[#This Row],[NAMED COMMUNITY\n(*denotes an indigenous community)\n(use-dropdown)]]<>\"\",INDEX(Table1[Place ID\n],MATCH(Table13[[#This Row],[NAMED COMMUNITY\n(*denotes an indigenous community)\n(use-dropdown)]],Table1[Place Name1 \n(*denotes an indigenous community)],0)),\"\")","v":""},{"$f":"IF(Table13[[#This Row],[NAMED COMMUNITY\n(*denotes an indigenous community)\n(use-dropdown)]]<>\"\",'Overview & Questionnaire'!B$18,\"\")","v":""},{"$f":"IF(Table13[[#This Row],[NAMED COMMUNITY\n(*denotes an indigenous community)\n(use-dropdown)]]<>\"\",'Overview & Questionnaire'!B$20,\"\")","v":""},{"$f":"IF(Table13[[#This Row],[NAMED COMMUNITY\n(*denotes an indigenous community)\n(use-dropdown)]]<>\"\",'Overview & Questionnaire'!B$36,\"\")","v":""}]
[{"$nulls":6},{"$f":"IF(Table13[[#This Row],[NAMED COMMUNITY\n(*denotes an indigenous community)\n(use-dropdown)]]<>\"\",INDEX(Table1[Place ID\n],MATCH(Table13[[#This Row],[NAMED COMMUNITY\n(*denotes an indigenous community)\n(use-dropdown)]],Table1[Place Name1 \n(*denotes an indigenous community)],0)),\"\")","v":""},{"$f":"IF(Table13[[#This Row],[NAMED COMMUNITY\n(*denotes an indigenous community)\n(use-dropdown)]]<>\"\",'Overview & Questionnaire'!B$18,\"\")","v":""},{"$f":"IF(Table13[[#This Row],[NAMED COMMUNITY\n(*denotes an indigenous community)\n(use-dropdown)]]<>\"\",'Overview & Questionnaire'!B$20,\"\")","v":""},{"$f":"IF(Table13[[#This Row],[NAMED COMMUNITY\n(*denotes an indigenous community)\n(use-dropdown)]]<>\"\",'Overview & Questionnaire'!B$36,\"\")","v":""}]
[{"$nulls":6},{"$f":"IF(Table13[[#This Row],[NAMED COMMUNITY\n(*denotes an indigenous community)\n(use-dropdown)]]<>\"\",INDEX(Table1[Place ID\n],MATCH(Table13[[#This Row],[NAMED COMMUNITY\n(*denotes an indigenous community)\n(use-dropdown)]],Table1[Place Name1 \n(*denotes an indigenous community)],0)),\"\")","v":""},{"$f":"IF(Table13[[#This Row],[NAMED COMMUNITY\n(*denotes an indigenous community)\n(use-dropdown)]]<>\"\",'Overview & Questionnaire'!B$18,\"\")","v":""},{"$f":"IF(Table13[[#This Row],[NAMED COMMUNITY\n(*denotes an indigenous community)\n(use-dropdown)]]<>\"\",'Overview & Questionnaire'!B$20,\"\")","v":""},{"$f":"IF(Table13[[#This Row],[NAMED COMMUNITY\n(*denotes an indigenous community)\n(use-dropdown)]]<>\"\",'Overview & Questionnaire'!B$36,\"\")","v":""}]
[{"$nulls":6},{"$f":"IF(Table13[[#This Row],[NAMED COMMUNITY\n(*denotes an indigenous community)\n(use-dropdown)]]<>\"\",INDEX(Table1[Place ID\n],MATCH(Table13[[#This Row],[NAMED COMMUNITY\n(*denotes an indigenous community)\n(use-dropdown)]],Table1[Place Name1 \n(*denotes an indigenous community)],0)),\"\")","v":""},{"$f":"IF(Table13[[#This Row],[NAMED COMMUNITY\n(*denotes an indigenous community)\n(use-dropdown)]]<>\"\",'Overview & Questionnaire'!B$18,\"\")","v":""},{"$f":"IF(Table13[[#This Row],[NAMED COMMUNITY\n(*denotes an indigenous community)\n(use-dropdown)]]<>\"\",'Overview & Questionnaire'!B$20,\"\")","v":""},{"$f":"IF(Table13[[#This Row],[NAMED COMMUNITY\n(*denotes an indigenous community)\n(use-dropdown)]]<>\"\",'Overview & Questionnaire'!B$36,\"\")","v":""}]
[{"$nulls":6},{"$f":"IF(Table13[[#This Row],[NAMED COMMUNITY\n(*denotes an indigenous community)\n(use-dropdown)]]<>\"\",INDEX(Table1[Place ID\n],MATCH(Table13[[#This Row],[NAMED COMMUNITY\n(*denotes an indigenous community)\n(use-dropdown)]],Table1[Place Name1 \n(*denotes an indigenous community)],0)),\"\")","v":""},{"$f":"IF(Table13[[#This Row],[NAMED COMMUNITY\n(*denotes an indigenous community)\n(use-dropdown)]]<>\"\",'Overview & Questionnaire'!B$18,\"\")","v":""},{"$f":"IF(Table13[[#This Row],[NAMED COMMUNITY\n(*denotes an indigenous community)\n(use-dropdown)]]<>\"\",'Overview & Questionnaire'!B$20,\"\")","v":""},{"$f":"IF(Table13[[#This Row],[NAMED COMMUNITY\n(*denotes an indigenous community)\n(use-dropdown)]]<>\"\",'Overview & Questionnaire'!B$36,\"\")","v":""}]
[{"$nulls":6},{"$f":"IF(Table13[[#This Row],[NAMED COMMUNITY\n(*denotes an indigenous community)\n(use-dropdown)]]<>\"\",INDEX(Table1[Place ID\n],MATCH(Table13[[#This Row],[NAMED COMMUNITY\n(*denotes an indigenous community)\n(use-dropdown)]],Table1[Place Name1 \n(*denotes an indigenous community)],0)),\"\")","v":""},{"$f":"IF(Table13[[#This Row],[NAMED COMMUNITY\n(*denotes an indigenous community)\n(use-dropdown)]]<>\"\",'Overview & Questionnaire'!B$18,\"\")","v":""},{"$f":"IF(Table13[[#This Row],[NAMED COMMUNITY\n(*denotes an indigenous community)\n(use-dropdown)]]<>\"\",'Overview & Questionnaire'!B$20,\"\")","v":""},{"$f":"IF(Table13[[#This Row],[NAMED COMMUNITY\n(*denotes an indigenous community)\n(use-dropdown)]]<>\"\",'Overview & Questionnaire'!B$36,\"\")","v":""}]
[{"$nulls":6},{"$f":"IF(Table13[[#This Row],[NAMED COMMUNITY\n(*denotes an indigenous community)\n(use-dropdown)]]<>\"\",INDEX(Table1[Place ID\n],MATCH(Table13[[#This Row],[NAMED COMMUNITY\n(*denotes an indigenous community)\n(use-dropdown)]],Table1[Place Name1 \n(*denotes an indigenous community)],0)),\"\")","v":""},{"$f":"IF(Table13[[#This Row],[NAMED COMMUNITY\n(*denotes an indigenous community)\n(use-dropdown)]]<>\"\",'Overview & Questionnaire'!B$18,\"\")","v":""},{"$f":"IF(Table13[[#This Row],[NAMED COMMUNITY\n(*denotes an indigenous community)\n(use-dropdown)]]<>\"\",'Overview & Questionnaire'!B$20,\"\")","v":""},{"$f":"IF(Table13[[#This Row],[NAMED COMMUNITY\n(*denotes an indigenous community)\n(use-dropdown)]]<>\"\",'Overview & Questionnaire'!B$36,\"\")","v":""}]
[{"$nulls":6},{"$f":"IF(Table13[[#This Row],[NAMED COMMUNITY\n(*denotes an indigenous community)\n(use-dropdown)]]<>\"\",INDEX(Table1[Place ID\n],MATCH(Table13[[#This Row],[NAMED COMMUNITY\n(*denotes an indigenous community)\n(use-dropdown)]],Table1[Place Name1 \n(*denotes an indigenous community)],0)),\"\")","v":""},{"$f":"IF(Table13[[#This Row],[NAMED COMMUNITY\n(*denotes an indigenous community)\n(use-dropdown)]]<>\"\",'Overview & Questionnaire'!B$18,\"\")","v":""},{"$f":"IF(Table13[[#This Row],[NAMED COMMUNITY\n(*denotes an indigenous community)\n(use-dropdown)]]<>\"\",'Overview & Questionnaire'!B$20,\"\")","v":""},{"$f":"IF(Table13[[#This Row],[NAMED COMMUNITY\n(*denotes an indigenous community)\n(use-dropdown)]]<>\"\",'Overview & Questionnaire'!B$36,\"\")","v":""}]
[{"$nulls":6},{"$f":"IF(Table13[[#This Row],[NAMED COMMUNITY\n(*denotes an indigenous community)\n(use-dropdown)]]<>\"\",INDEX(Table1[Place ID\n],MATCH(Table13[[#This Row],[NAMED COMMUNITY\n(*denotes an indigenous community)\n(use-dropdown)]],Table1[Place Name1 \n(*denotes an indigenous community)],0)),\"\")","v":""},{"$f":"IF(Table13[[#This Row],[NAMED COMMUNITY\n(*denotes an indigenous community)\n(use-dropdown)]]<>\"\",'Overview & Questionnaire'!B$18,\"\")","v":""},{"$f":"IF(Table13[[#This Row],[NAMED COMMUNITY\n(*denotes an indigenous community)\n(use-dropdown)]]<>\"\",'Overview & Questionnaire'!B$20,\"\")","v":""},{"$f":"IF(Table13[[#This Row],[NAMED COMMUNITY\n(*denotes an indigenous community)\n(use-dropdown)]]<>\"\",'Overview & Questionnaire'!B$36,\"\")","v":""}]
[{"$nulls":6},{"$f":"IF(Table13[[#This Row],[NAMED COMMUNITY\n(*denotes an indigenous community)\n(use-dropdown)]]<>\"\",INDEX(Table1[Place ID\n],MATCH(Table13[[#This Row],[NAMED COMMUNITY\n(*denotes an indigenous community)\n(use-dropdown)]],Table1[Place Name1 \n(*denotes an indigenous community)],0)),\"\")","v":""},{"$f":"IF(Table13[[#This Row],[NAMED COMMUNITY\n(*denotes an indigenous community)\n(use-dropdown)]]<>\"\",'Overview & Questionnaire'!B$18,\"\")","v":""},{"$f":"IF(Table13[[#This Row],[NAMED COMMUNITY\n(*denotes an indigenous community)\n(use-dropdown)]]<>\"\",'Overview & Questionnaire'!B$20,\"\")","v":""},{"$f":"IF(Table13[[#This Row],[NAMED COMMUNITY\n(*denotes an indigenous community)\n(use-dropdown)]]<>\"\",'Overview & Questionnaire'!B$36,\"\")","v":""}]
[{"$nulls":6},{"$f":"IF(Table13[[#This Row],[NAMED COMMUNITY\n(*denotes an indigenous community)\n(use-dropdown)]]<>\"\",INDEX(Table1[Place ID\n],MATCH(Table13[[#This Row],[NAMED COMMUNITY\n(*denotes an indigenous community)\n(use-dropdown)]],Table1[Place Name1 \n(*denotes an indigenous community)],0)),\"\")","v":""},{"$f":"IF(Table13[[#This Row],[NAMED COMMUNITY\n(*denotes an indigenous community)\n(use-dropdown)]]<>\"\",'Overview & Questionnaire'!B$18,\"\")","v":""},{"$f":"IF(Table13[[#This Row],[NAMED COMMUNITY\n(*denotes an indigenous community)\n(use-dropdown)]]<>\"\",'Overview & Questionnaire'!B$20,\"\")","v":""},{"$f":"IF(Table13[[#This Row],[NAMED COMMUNITY\n(*denotes an indigenous community)\n(use-dropdown)]]<>\"\",'Overview & Questionnaire'!B$36,\"\")","v":""}]
[{"$nulls":6},{"$f":"IF(Table13[[#This Row],[NAMED COMMUNITY\n(*denotes an indigenous community)\n(use-dropdown)]]<>\"\",INDEX(Table1[Place ID\n],MATCH(Table13[[#This Row],[NAMED COMMUNITY\n(*denotes an indigenous community)\n(use-dropdown)]],Table1[Place Name1 \n(*denotes an indigenous community)],0)),\"\")","v":""},{"$f":"IF(Table13[[#This Row],[NAMED COMMUNITY\n(*denotes an indigenous community)\n(use-dropdown)]]<>\"\",'Overview & Questionnaire'!B$18,\"\")","v":""},{"$f":"IF(Table13[[#This Row],[NAMED COMMUNITY\n(*denotes an indigenous community)\n(use-dropdown)]]<>\"\",'Overview & Questionnaire'!B$20,\"\")","v":""},{"$f":"IF(Table13[[#This Row],[NAMED COMMUNITY\n(*denotes an indigenous community)\n(use-dropdown)]]<>\"\",'Overview & Questionnaire'!B$36,\"\")","v":""}]
[{"$nulls":6},{"$f":"IF(Table13[[#This Row],[NAMED COMMUNITY\n(*denotes an indigenous community)\n(use-dropdown)]]<>\"\",INDEX(Table1[Place ID\n],MATCH(Table13[[#This Row],[NAMED COMMUNITY\n(*denotes an indigenous community)\n(use-dropdown)]],Table1[Place Name1 \n(*denotes an indigenous community)],0)),\"\")","v":""},{"$f":"IF(Table13[[#This Row],[NAMED COMMUNITY\n(*denotes an indigenous community)\n(use-dropdown)]]<>\"\",'Overview & Questionnaire'!B$18,\"\")","v":""},{"$f":"IF(Table13[[#This Row],[NAMED COMMUNITY\n(*denotes an indigenous community)\n(use-dropdown)]]<>\"\",'Overview & Questionnaire'!B$20,\"\")","v":""},{"$f":"IF(Table13[[#This Row],[NAMED COMMUNITY\n(*denotes an indigenous community)\n(use-dropdown)]]<>\"\",'Overview & Questionnaire'!B$36,\"\")","v":""}]
[{"$nulls":6},{"$f":"IF(Table13[[#This Row],[NAMED COMMUNITY\n(*denotes an indigenous community)\n(use-dropdown)]]<>\"\",INDEX(Table1[Place ID\n],MATCH(Table13[[#This Row],[NAMED COMMUNITY\n(*denotes an indigenous community)\n(use-dropdown)]],Table1[Place Name1 \n(*denotes an indigenous community)],0)),\"\")","v":""},{"$f":"IF(Table13[[#This Row],[NAMED COMMUNITY\n(*denotes an indigenous community)\n(use-dropdown)]]<>\"\",'Overview & Questionnaire'!B$18,\"\")","v":""},{"$f":"IF(Table13[[#This Row],[NAMED COMMUNITY\n(*denotes an indigenous community)\n(use-dropdown)]]<>\"\",'Overview & Questionnaire'!B$20,\"\")","v":""},{"$f":"IF(Table13[[#This Row],[NAMED COMMUNITY\n(*denotes an indigenous community)\n(use-dropdown)]]<>\"\",'Overview & Questionnaire'!B$36,\"\")","v":""}]
[{"$nulls":6},{"$f":"IF(Table13[[#This Row],[NAMED COMMUNITY\n(*denotes an indigenous community)\n(use-dropdown)]]<>\"\",INDEX(Table1[Place ID\n],MATCH(Table13[[#This Row],[NAMED COMMUNITY\n(*denotes an indigenous community)\n(use-dropdown)]],Table1[Place Name1 \n(*denotes an indigenous community)],0)),\"\")","v":""},{"$f":"IF(Table13[[#This Row],[NAMED COMMUNITY\n(*denotes an indigenous community)\n(use-dropdown)]]<>\"\",'Overview & Questionnaire'!B$18,\"\")","v":""},{"$f":"IF(Table13[[#This Row],[NAMED COMMUNITY\n(*denotes an indigenous community)\n(use-dropdown)]]<>\"\",'Overview & Questionnaire'!B$20,\"\")","v":""},{"$f":"IF(Table13[[#This Row],[NAMED COMMUNITY\n(*denotes an indigenous community)\n(use-dropdown)]]<>\"\",'Overview & Questionnaire'!B$36,\"\")","v":""}]
[{"$nulls":6},{"$f":"IF(Table13[[#This Row],[NAMED COMMUNITY\n(*denotes an indigenous community)\n(use-dropdown)]]<>\"\",INDEX(Table1[Place ID\n],MATCH(Table13[[#This Row],[NAMED COMMUNITY\n(*denotes an indigenous community)\n(use-dropdown)]],Table1[Place Name1 \n(*denotes an indigenous community)],0)),\"\")","v":""},{"$f":"IF(Table13[[#This Row],[NAMED COMMUNITY\n(*denotes an indigenous community)\n(use-dropdown)]]<>\"\",'Overview & Questionnaire'!B$18,\"\")","v":""},{"$f":"IF(Table13[[#This Row],[NAMED COMMUNITY\n(*denotes an indigenous community)\n(use-dropdown)]]<>\"\",'Overview & Questionnaire'!B$20,\"\")","v":""},{"$f":"IF(Table13[[#This Row],[NAMED COMMUNITY\n(*denotes an indigenous community)\n(use-dropdown)]]<>\"\",'Overview & Questionnaire'!B$36,\"\")","v":""}]
[null,"Total",null,{"$f":"SUBTOTAL(101,Table13[PROGRESS (%)])","v":{"$error":"#DIV/0!"}},{"$nulls":5},{"$f":"SUBTOTAL(104,Table13[TimeStamp\n(auto fill)])","v":"00:00:00"}]
[]
[{"$nulls":5},"Published October 2020 - Ver. 1.1"]

{"sheet":"Locale Progress","index":4,"n_rows":39,"n_cols":9,"rows_kept":39,"merged":[[0,1,0,5],[1,1,1,5],[2,1,2,5],[3,1,3,5],[4,1,4,5],[38,4,38,5]]}
[null,"Locale Progress"]
[]
[null,"Instructions"]
[null,"Complete the yellow sections."]
[null,"All locales identified in the approved 'Template 2 - Application Workbook' MUST be listed below."]
[]
[null,"LOCALE NAME\n(must match your application)","SOLUTION TYPE\n(use drop-down)","PROGRESS (%)","STATUS\n(use drop-down)","ESTIMATED \nCOMPLETION DATE","Applicant Name","Project Name","TimeStamp\n(auto fill)"]
[{"$nulls":6},{"$f":"IF(Table1311[[#This Row],[LOCALE NAME\n(must match your application)]]<>\"\",'Overview & Questionnaire'!B18,\"\")","v":""},{"$f":"IF(Table1311[[#This Row],[LOCALE NAME\n(must match your application)]]<>\"\",'Overview & Questionnaire'!B$20,\"\")","v":""},{"$f":"IF(Table1311[[#This Row],[LOCALE NAME\n(must match your application)]]<>\"\",'Overview & Questionnaire'!B$36,\"\")","v":""}]
[{"$nulls":6},{"$f":"IF(Table1311[[#This Row],[LOCALE NAME\n(must match your application)]]<>\"\",'Overview & Questionnaire'!B19,\"\")","v":""},{"$f":"IF(Table1311[[#This Row],[LOCALE NAME\n(must match your application)]]<>\"\",'Overview & Questionnaire'!B$20,\"\")","v":""},{"$f":"IF(Table1311[[#This Row],[LOCALE NAME\n(must match your application)]]<>\"\",'Overview & Questionnaire'!B$36,\"\")","v":""}]
[{"$nulls":6},{"$f":"IF(Table1311[[#This Row],[LOCALE NAME\n(must match your application)]]<>\"\",'Overview & Questionnaire'!B20,\"\")","v":""},{"$f":"IF(Table1311[[#This Row],[LOCALE NAME\n(must match your application)]]<>\"\",'Overview & Questionnaire'!B$20,\"\")","v":""},{"$f":"IF(Table1311[[#This Row],[LOCALE NAME\n(must match your application)]]<>\"\",'Overview & Questionnaire'!B$36,\"\")","v":""}]
[{"$nulls":6},{"$f":"IF(Table1311[[#This Row],[LOCALE NAME\n(must match your application)]]<>\"\",'Overview & Questionnaire'!B21,\"\")","v":""},{"$f":"IF(Table1311[[#This Row],[LOCALE NAME\n(must match your application)]]<>\"\",'Overview & Questionnaire'!B$20,\"\")","v":""},{"$f":"IF(Table1311[[#This Row],[LOCALE NAME\n(must match your application)]]<>\"\",'Overview & Questionnaire'!B$36,\"\")","v":""}]
[{"$nulls":6},{"$f":"IF(Table1311[[#This Row],[LOCALE NAME\n(must match your application)]]<>\"\",'Overview & Questionnaire'!B22,\"\")","v":""},{"$f":"IF(Table1311[[#This Row],[LOCALE NAME\n(must match your application)]]<>\"\",'Overview & Questionnaire'!B$20,\"\")","v":""},{"$f":"IF(Table1311[[#This Row],[LOCALE NAME\n(must match your application)]]<>\"\",'Overview & Questionnaire'!B$36,\"\")","v":""}]
[{"$nulls":6},{"$f":"IF(Table1311[[#This Row],[LOCALE NAME\n(must match your application)]]<>\"\",'Overview & Questionnaire'!B23,\"\")","v":""},{"$f":"IF(Table1311[[#This Row],[LOCALE NAME\n(must match your application)]]<>\"\",'Overview & Questionnaire'!B$20,\"\")","v":""},{"$f":"IF(Table1311[[#This Row],[LOCALE NAME\n(must match your application)]]<>\"\",'Overview & Questionnaire'!B$36,\"\")","v":""}]
[{"$nulls":6},{"$f":"IF(Table1311[[#This Row],[LOCALE NAME\n(must match your application)]]<>\"\",'Overview & Questionnaire'!B24,\"\")","v":""},{"$f":"IF(Table1311[[#This Row],[LOCALE NAME\n(must match your application)]]<>\"\",'Overview & Questionnaire'!B$20,\"\")","v":""},{"$f":"IF(Table1311[[#This Row],[LOCALE NAME\n(must match your application)]]<>\"\",'Overview & Questionnaire'!B$36,\"\")","v":""}]
[{"$nulls":6},{"$f":"IF(Table1311[[#This Row],[LOCALE NAME\n(must match your application)]]<>\"\",'Overview & Questionnaire'!B25,\"\")","v":""},{"$f":"IF(Table1311[[#This Row],[LOCALE NAME\n(must match your application)]]<>\"\",'Overview & Questionnaire'!B$20,\"\")","v":""},{"$f":"IF(Table1311[[#This Row],[LOCALE NAME\n(must match your application)]]<>\"\",'Overview & Questionnaire'!B$36,\"\")","v":""}]
[{"$nulls":6},{"$f":"IF(Table1311[[#This Row],[LOCALE NAME\n(must match your application)]]<>\"\",'Overview & Questionnaire'!B26,\"\")","v":""},{"$f":"IF(Table1311[[#This Row],[LOCALE NAME\n(must match your application)]]<>\"\",'Overview & Questionnaire'!B$20,\"\")","v":""},{"$f":"IF(Table1311[[#This Row],[LOCALE NAME\n(must match your application)]]<>\"\",'Overview & Questionnaire'!B$36,\"\")","v":""}]
[{"$nulls":6},{"$f":"IF(Table1311[[#This Row],[LOCALE NAME\n(must match your application)]]<>\"\",'Overview & Questionnaire'!B27,\"\")","v":""},{"$f":"IF(Table1311[[#This Row],[LOCALE NAME\n(must match your application)]]<>\"\",'Overview & Questionnaire'!B$20,\"\")","v":""},{"$f":"IF(Table1311[[#This Row],[LOCALE NAME\n(must match your application)]]<>\"\",'Overview & Questionnaire'!B$36,\"\")","v":""}]
[{"$nulls":6},{"$f":"IF(Table1311[[#This Row],[LOCALE NAME\n(must match your application)]]<>\"\",'Overview & Questionnaire'!B28,\"\")","v":""},{"$f":"IF(Table1311[[#This Row],[LOCALE NAME\n(must match your application)]]<>\"\",'Overview & Questionnaire'!B$20,\"\")","v":""},{"$f":"IF(Table1311[[#This Row],[LOCALE NAME\n(must match your application)]]<>\"\",'Overview & Questionnaire'!B$36,\"\")","v":""}]
[{"$nulls":6},{"$f":"IF(Table1311[[#This Row],[LOCALE NAME\n(must match your application)]]<>\"\",'Overview & Questionnaire'!B29,\"\")","v":""},{"$f":"IF(Table1311[[#This Row],[LOCALE NAME\n(must match your application)]]<>\"\",'Overview & Questionnaire'!B$20,\"\")","v":""},{"$f":"IF(Table1311[[#This Row],[LOCALE NAME\n(must match your application)]]<>\"\",'Overview & Questionnaire'!B$36,\"\")","v":""}]
[{"$nulls":6},{"$f":"IF(Table1311[[#This Row],[LOCALE NAME\n(must match your application)]]<>\"\",'Overview & Questionnaire'!B30,\"\")","v":""},{"$f":"IF(Table1311[[#This Row],[LOCALE NAME\n(must match your application)]]<>\"\",'Overview & Questionnaire'!B$20,\"\")","v":""},{"$f":"IF(Table1311[[#This Row],[LOCALE NAME\n(must match your application)]]<>\"\",'Overview & Questionnaire'!B$36,\"\")","v":""}]
[{"$nulls":6},{"$f":"IF(Table1311[[#This Row],[LOCALE NAME\n(must match your application)]]<>\"\",'Overview & Questionnaire'!B31,\"\")","v":""},{"$f":"IF(Table1311[[#This Row],[LOCALE NAME\n(must match your application)]]<>\"\",'Overview & Questionnaire'!B$20,\"\")","v":""},{"$f":"IF(Table1311[[#This Row],[LOCALE NAME\n(must match your application)]]<>\"\",'Overview & Questionnaire'!B$36,\"\")","v":""}]
[{"$nulls":6},{"$f":"IF(Table1311[[#This Row],[LOCALE NAME\n(must match your application)]]<>\"\",'Overview & Questionnaire'!B32,\"\")","v":""},{"$f":"IF(Table1311[[#This Row],[LOCALE NAME\n(must match your application)]]<>\"\",'Overview & Questionnaire'!B$20,\"\")","v":""},{"$f":"IF(Table1311[[#This Row],[LOCALE NAME\n(must match your application)]]<>\"\",'Overview & Questionnaire'!B$36,\"\")","v":""}]
[{"$nulls":6},{"$f":"IF(Table1311[[#This Row],[LOCALE NAME\n(must match your application)]]<>\"\",'Overview & Questionnaire'!B33,\"\")","v":""},{"$f":"IF(Table1311[[#This Row],[LOCALE NAME\n(must match your application)]]<>\"\",'Overview & Questionnaire'!B$20,\"\")","v":""},{"$f":"IF(Table1311[[#This Row],[LOCALE NAME\n(must match your application)]]<>\"\",'Overview & Questionnaire'!B$36,\"\")","v":""}]
[{"$nulls":6},{"$f":"IF(Table1311[[#This Row],[LOCALE NAME\n(must match your application)]]<>\"\",'Overview & Questionnaire'!B34,\"\")","v":""},{"$f":"IF(Table1311[[#This Row],[LOCALE NAME\n(must match your application)]]<>\"\",'Overview & Questionnaire'!B$20,\"\")","v":""},{"$f":"IF(Table1311[[#This Row],[LOCALE NAME\n(must match your application)]]<>\"\",'Overview & Questionnaire'!B$36,\"\")","v":""}]
[{"$nulls":6},{"$f":"IF(Table1311[[#This Row],[LOCALE NAME\n(must match your application)]]<>\"\",'Overview & Questionnaire'!B35,\"\")","v":""},{"$f":"IF(Table1311[[#This Row],[LOCALE NAME\n(must match your application)]]<>\"\",'Overview & Questionnaire'!B$20,\"\")","v":""},{"$f":"IF(Table1311[[#This Row],[LOCALE NAME\n(must match your application)]]<>\"\",'Overview & Questionnaire'!B$36,\"\")","v":""}]
[{"$nulls":6},{"$f":"IF(Table1311[[#This Row],[LOCALE NAME\n(must match your application)]]<>\"\",'Overview & Questionnaire'!B36,\"\")","v":""},{"$f":"IF(Table1311[[#This Row],[LOCALE NAME\n(must match your application)]]<>\"\",'Overview & Questionnaire'!B$20,\"\")","v":""},{"$f":"IF(Table1311[[#This Row],[LOCALE NAME\n(must match your application)]]<>\"\",'Overview & Questionnaire'!B$36,\"\")","v":""}]
[{"$nulls":6},{"$f":"IF(Table1311[[#This Row],[LOCALE NAME\n(must match your application)]]<>\"\",'Overview & Questionnaire'!B37,\"\")","v":""},{"$f":"IF(Table1311[[#This Row],[LOCALE NAME\n(must match your application)]]<>\"\",'Overview & Questionnaire'!B$20,\"\")","v":""},{"$f":"IF(Table1311[[#This Row],[LOCALE NAME\n(must match your application)]]<>\"\",'Overview & Questionnaire'!B$36,\"\")","v":""}]
[{"$nulls":6},{"$f":"IF(Table1311[[#This Row],[LOCALE NAME\n(must match your application)]]<>\"\",'Overview & Questionnaire'!B38,\"\")","v":""},{"$f":"IF(Table1311[[#This Row],[LOCALE NAME\n(must match your application)]]<>\"\",'Overview & Questionnaire'!B$20,\"\")","v":""},{"$f":"IF(Table1311[[#This Row],[LOCALE NAME\n(must match your application)]]<>\"\",'Overview & Questionnaire'!B$36,\"\")","v":""}]
[{"$nulls":6},{"$f":"IF(Table1311[[#This Row],[LOCALE NAME\n(must match your application)]]<>\"\",'Overview & Questionnaire'!B39,\"\")","v":""},{"$f":"IF(Table1311[[#This Row],[LOCALE NAME\n(must match your application)]]<>\"\",'Overview & Questionnaire'!B$20,\"\")","v":""},{"$f":"IF(Table1311[[#This Row],[LOCALE NAME\n(must match your application)]]<>\"\",'Overview & Questionnaire'!B$36,\"\")","v":""}]
[{"$nulls":6},{"$f":"IF(Table1311[[#This Row],[LOCALE NAME\n(must match your application)]]<>\"\",'Overview & Questionnaire'!B40,\"\")","v":""},{"$f":"IF(Table1311[[#This Row],[LOCALE NAME\n(must match your application)]]<>\"\",'Overview & Questionnaire'!B$20,\"\")","v":""},{"$f":"IF(Table1311[[#This Row],[LOCALE NAME\n(must match your application)]]<>\"\",'Overview & Questionnaire'!B$36,\"\")","v":""}]
[{"$nulls":6},{"$f":"IF(Table1311[[#This Row],[LOCALE NAME\n(must match your application)]]<>\"\",'Overview & Questionnaire'!B41,\"\")","v":""},{"$f":"IF(Table1311[[#This Row],[LOCALE NAME\n(must match your application)]]<>\"\",'Overview & Questionnaire'!B$20,\"\")","v":""},{"$f":"IF(Table1311[[#This Row],[LOCALE NAME\n(must match your application)]]<>\"\",'Overview & Questionnaire'!B$36,\"\")","v":""}]
[{"$nulls":6},{"$f":"IF(Table1311[[#This Row],[LOCALE NAME\n(must match your application)]]<>\"\",'Overview & Questionnaire'!B42,\"\")","v":""},{"$f":"IF(Table1311[[#This Row],[LOCALE NAME\n(must match your application)]]<>\"\",'Overview & Questionnaire'!B$20,\"\")","v":""},{"$f":"IF(Table1311[[#This Row],[LOCALE NAME\n(must match your application)]]<>\"\",'Overview & Questionnaire'!B$36,\"\")","v":""}]
[{"$nulls":6},{"$f":"IF(Table1311[[#This Row],[LOCALE NAME\n(must match your application)]]<>\"\",'Overview & Questionnaire'!B43,\"\")","v":""},{"$f":"IF(Table1311[[#This Row],[LOCALE NAME\n(must match your application)]]<>\"\",'Overview & Questionnaire'!B$20,\"\")","v":""},{"$f":"IF(Table1311[[#This Row],[LOCALE NAME\n(must match your application)]]<>\"\",'Overview & Questionnaire'!B$36,\"\")","v":""}]
[{"$nulls":6},{"$f":"IF(Table1311[[#This Row],[LOCALE NAME\n(must match your application)]]<>\"\",'Overview & Questionnaire'!B44,\"\")","v":""},{"$f":"IF(Table1311[[#This Row],[LOCALE NAME\n(must match your application)]]<>\"\",'Overview & Questionnaire'!B$20,\"\")","v":""},{"$f":"IF(Table1311[[#This Row],[LOCALE NAME\n(must match your application)]]<>\"\",'Overview & Questionnaire'!B$36,\"\")","v":""}]
[{"$nulls":6},{"$f":"IF(Table1311[[#This Row],[LOCALE NAME\n(must match your application)]]<>\"\",'Overview & Questionnaire'!B45,\"\")","v":""},{"$f":"IF(Table1311[[#This Row],[LOCALE NAME\n(must match your application)]]<>\"\",'Overview & Questionnaire'!B$20,\"\")","v":""},{"$f":"IF(Table1311[[#This Row],[LOCALE NAME\n(must match your application)]]<>\"\",'Overview & Questionnaire'!B$36,\"\")","v":""}]
[{"$nulls":6},{"$f":"IF(Table1311[[#This Row],[LOCALE NAME\n(must match your application)]]<>\"\",'Overview & Questionnaire'!B46,\"\")","v":""},{"$f":"IF(Table1311[[#This Row],[LOCALE NAME\n(must match your application)]]<>\"\",'Overview & Questionnaire'!B$20,\"\")","v":""},{"$f":"IF(Table1311[[#This Row],[LOCALE NAME\n(must match your application)]]<>\"\",'Overview & Questionnaire'!B$36,\"\")","v":""}]
[null,"Total",null,{"$f":"SUBTOTAL(101,Table1311[PROGRESS (%)])","v":{"$error":"#DIV/0!"}},{"$nulls":4},{"$f":"SUBTOTAL(104,Table1311[TimeStamp\n(auto fill)])","v":"00:00:00"}]
[]
[{"$nulls":4},"Published October 2020 - Ver. 1.1"]

{"sheet":"Highway Progress","index":5,"n_rows":39,"n_cols":12,"rows_kept":39,"merged":[[0,1,0,8],[1,1,1,8],[2,1,2,8],[3,1,3,8],[4,1,4,8],[38,7,38,8]]}
[null,"Highway Progress"]
[]
[null,"Instructions"]
[null,"Complete the yellow sections."]
[null,"All Site IDs, Inland Ferries & Rest Areas, and Highway Number - Names identified in the approved 'Template 2 - Application Workbook' MUST be listed below."]
[]
[null,"SITE ID","SITE TYPE\n(use drop-down)","SOLUTION TYPE\n(use drop-down)","INLAND FERRIES & REST AREAS\n(use drop-down)","HIGHWAY NUMBER - NAME\n(use drop-down)","PROGRESS (%)","STATUS\n(use drop-down)","ESTIMATED\nCOMPETION DATE","Applicant Name","Project Name","TimeStamp\n(auto fill)"]
[{"$nulls":9},{"$f":"IF(Table131112[[#This Row],[SITE ID]]<>\"\",'Overview & Questionnaire'!B$18,\"\")","v":""},{"$f":"IF(Table131112[[#This Row],[SITE ID]]<>\"\",'Overview & Questionnaire'!B$20,\"\")","v":""},{"$f":"IF(Table131112[[#This Row],[SOLUTION TYPE\n(use drop-down)]]<>\"\",'Overview & Questionnaire'!B$36,\"\")","v":""}]
[{"$nulls":9},{"$f":"IF(Table131112[[#This Row],[SITE ID]]<>\"\",'Overview & Questionnaire'!B$18,\"\")","v":""},{"$f":"IF(Table131112[[#This Row],[SITE ID]]<>\"\",'Overview & Questionnaire'!B$20,\"\")","v":""},{"$f":"IF(Table131112[[#This Row],[SOLUTION TYPE\n(use drop-down)]]<>\"\",'Overview & Questionnaire'!B$36,\"\")","v":""}]
[{"$nulls":9},{"$f":"IF(Table131112[[#This Row],[SITE ID]]<>\"\",'Overview & Questionnaire'!B$18,\"\")","v":""},{"$f":"IF(Table131112[[#This Row],[SITE ID]]<>\"\",'Overview & Questionnaire'!B$20,\"\")","v":""},{"$f":"IF(Table131112[[#This Row],[SOLUTION TYPE\n(use drop-down)]]<>\"\",'Overview & Questionnaire'!B$36,\"\")","v":""}]
[{"$nulls":9},{"$f":"IF(Table131112[[#This Row],[SITE ID]]<>\"\",'Overview & Questionnaire'!B$18,\"\")","v":""},{"$f":"IF(Table131112[[#This Row],[SITE ID]]<>\"\",'Overview & Questionnaire'!B$20,\"\")","v":""},{"$f":"IF(Table131112[[#This Row],[SOLUTION TYPE\n(use drop-down)]]<>\"\",'Overview & Questionnaire'!B$36,\"\")","v":""}]
[{"$nulls":9},{"$f":"IF(Table131112[[#This Row],[SITE ID]]<>\"\",'Overview & Questionnaire'!B$18,\"\")","v":""},{"$f":"IF(Table131112[[#This Row],[SITE ID]]<>\"\",'Overview & Questionnaire'!B$20,\"\")","v":""},{"$f":"IF(Table131112[[#This Row],[SOLUTION TYPE\n(use drop-down)]]<>\"\",'Overview & Questionnaire'!B$36,\"\")","v":""}]
[{"$nulls":9},{"$f":"IF(Table131112[[#This Row],[SITE ID]]<>\"\",'Overview & Questionnaire'!B$18,\"\")","v":""},{"$f":"IF(Table131112[[#This Row],[SITE ID]]<>\"\",'Overview & Questionnaire'!B$20,\"\")","v":""},{"$f":"IF(Table131112[[#This Row],[SOLUTION TYPE\n(use drop-down)]]<>\"\",'Overview & Questionnaire'!B$36,\"\")","v":""}]
[{"$nulls":9},{"$f":"IF(Table131112[[#This Row],[SITE ID]]<>\"\",'Overview & Questionnaire'!B$18,\"\")","v":""},{"$f":"IF(Table131112[[#This Row],[SITE ID]]<>\"\",'Overview & Questionnaire'!B$20,\"\")","v":""},{"$f":"IF(Table131112[[#This Row],[SOLUTION TYPE\n(use drop-down)]]<>\"\",'Overview & Questionnaire'!B$36,\"\")","v":""}]
[{"$nulls":9},{"$f":"IF(Table131112[[#This Row],[SITE ID]]<>\"\",'Overview & Questionnaire'!B$18,\"\")","v":""},{"$f":"IF(Table131112[[#This Row],[SITE ID]]<>\"\",'Overview & Questionnaire'!B$20,\"\")","v":""},{"$f":"IF(Table131112[[#This Row],[SOLUTION TYPE\n(use drop-down)]]<>\"\",'Overview & Questionnaire'!B$36,\"\")","v":""}]
[{"$nulls":9},{"$f":"IF(Table131112[[#This Row],[SITE ID]]<>\"\",'Overview & Questionnaire'!B$18,\"\")","v":""},{"$f":"IF(Table131112[[#This Row],[SITE ID]]<>\"\",'Overview & Questionnaire'!B$20,\"\")","v":""},{"$f":"IF(Table131112[[#This Row],[SOLUTION TYPE\n(use drop-down)]]<>\"\",'Overview & Questionnaire'!B$36,\"\")","v":""}]
[{"$nulls":9},{"$f":"IF(Table131112[[#This Row],[SITE ID]]<>\"\",'Overview & Questionnaire'!B$18,\"\")","v":""},{"$f":"IF(Table131112[[#This Row],[SITE ID]]<>\"\",'Overview & Questionnaire'!B$20,\"\")","v":""},{"$f":"IF(Table131112[[#This Row],[SOLUTION TYPE\n(use drop-down)]]<>\"\",'Overview & Questionnaire'!B$36,\"\")","v":""}]
[{"$nulls":9},{"$f":"IF(Table131112[[#This Row],[SITE ID]]<>\"\",'Overview & Questionnaire'!B$18,\"\")","v":""},{"$f":"IF(Table131112[[#This Row],[SITE ID]]<>\"\",'Overview & Questionnaire'!B$20,\"\")","v":""},{"$f":"IF(Table131112[[#This Row],[SOLUTION TYPE\n(use drop-down)]]<>\"\",'Overview & Questionnaire'!B$36,\"\")","v":""}]
[{"$nulls":9},{"$f":"IF(Table131112[[#This Row],[SITE ID]]<>\"\",'Overview & Questionnaire'!B$18,\"\")","v":""},{"$f":"IF(Table131112[[#This Row],[SITE ID]]<>\"\",'Overview & Questionnaire'!B$20,\"\")","v":""},{"$f":"IF(Table131112[[#This Row],[SOLUTION TYPE\n(use drop-down)]]<>\"\",'Overview & Questionnaire'!B$36,\"\")","v":""}]
[{"$nulls":9},{"$f":"IF(Table131112[[#This Row],[SITE ID]]<>\"\",'Overview & Questionnaire'!B$18,\"\")","v":""},{"$f":"IF(Table131112[[#This Row],[SITE ID]]<>\"\",'Overview & Questionnaire'!B$20,\"\")","v":""},{"$f":"IF(Table131112[[#This Row],[SOLUTION TYPE\n(use drop-down)]]<>\"\",'Overview & Questionnaire'!B$36,\"\")","v":""}]
[{"$nulls":9},{"$f":"IF(Table131112[[#This Row],[SITE ID]]<>\"\",'Overview & Questionnaire'!B$18,\"\")","v":""},{"$f":"IF(Table131112[[#This Row],[SITE ID]]<>\"\",'Overview & Questionnaire'!B$20,\"\")","v":""},{"$f":"IF(Table131112[[#This Row],[SOLUTION TYPE\n(use drop-down)]]<>\"\",'Overview & Questionnaire'!B$36,\"\")","v":""}]
[{"$nulls":9},{"$f":"IF(Table131112[[#This Row],[SITE ID]]<>\"\",'Overview & Questionnaire'!B$18,\"\")","v":""},{"$f":"IF(Table131112[[#This Row],[SITE ID]]<>\"\",'Overview & Questionnaire'!B$20,\"\")","v":""},{"$f":"IF(Table131112[[#This Row],[SOLUTION TYPE\n(use drop-down)]]<>\"\",'Overview & Questionnaire'!B$36,\"\")","v":""}]
[{"$nulls":9},{"$f":"IF(Table131112[[#This Row],[SITE ID]]<>\"\",'Overview & Questionnaire'!B$18,\"\")","v":""},{"$f":"IF(Table131112[[#This Row],[SITE ID]]<>\"\",'Overview & Questionnaire'!B$20,\"\")","v":""},{"$f":"IF(Table131112[[#This Row],[SOLUTION TYPE\n(use drop-down)]]<>\"\",'Overview & Questionnaire'!B$36,\"\")","v":""}]
[{"$nulls":9},{"$f":"IF(Table131112[[#This Row],[SITE ID]]<>\"\",'Overview & Questionnaire'!B$18,\"\")","v":""},{"$f":"IF(Table131112[[#This Row],[SITE ID]]<>\"\",'Overview & Questionnaire'!B$20,\"\")","v":""},{"$f":"IF(Table131112[[#This Row],[SOLUTION TYPE\n(use drop-down)]]<>\"\",'Overview & Questionnaire'!B$36,\"\")","v":""}]
[{"$nulls":9},{"$f":"IF(Table131112[[#This Row],[SITE ID]]<>\"\",'Overview & Questionnaire'!B$18,\"\")","v":""},{"$f":"IF(Table131112[[#This Row],[SITE ID]]<>\"\",'Overview & Questionnaire'!B$20,\"\")","v":""},{"$f":"IF(Table131112[[#This Row],[SOLUTION TYPE\n(use drop-down)]]<>\"\",'Overview & Questionnaire'!B$36,\"\")","v":""}]
[{"$nulls":9},{"$f":"IF(Table131112[[#This Row],[SITE ID]]<>\"\",'Overview & Questionnaire'!B$18,\"\")","v":""},{"$f":"IF(Table131112[[#This Row],[SITE ID]]<>\"\",'Overview & Questionnaire'!B$20,\"\")","v":""},{"$f":"IF(Table131112[[#This Row],[SOLUTION TYPE\n(use drop-down)]]<>\"\",'Overview & Questionnaire'!B$36,\"\")","v":""}]
[{"$nulls":9},{"$f":"IF(Table131112[[#This Row],[SITE ID]]<>\"\",'Overview & Questionnaire'!B$18,\"\")","v":""},{"$f":"IF(Table131112[[#This Row],[SITE ID]]<>\"\",'Overview & Questionnaire'!B$20,\"\")","v":""},{"$f":"IF(Table131112[[#This Row],[SOLUTION TYPE\n(use drop-down)]]<>\"\",'Overview & Questionnaire'!B$36,\"\")","v":""}]
[{"$nulls":9},{"$f":"IF(Table131112[[#This Row],[SITE ID]]<>\"\",'Overview & Questionnaire'!B$18,\"\")","v":""},{"$f":"IF(Table131112[[#This Row],[SITE ID]]<>\"\",'Overview & Questionnaire'!B$20,\"\")","v":""},{"$f":"IF(Table131112[[#This Row],[SOLUTION TYPE\n(use drop-down)]]<>\"\",'Overview & Questionnaire'!B$36,\"\")","v":""}]
[{"$nulls":9},{"$f":"IF(Table131112[[#This Row],[SITE ID]]<>\"\",'Overview & Questionnaire'!B$18,\"\")","v":""},{"$f":"IF(Table131112[[#This Row],[SITE ID]]<>\"\",'Overview & Questionnaire'!B$20,\"\")","v":""},{"$f":"IF(Table131112[[#This Row],[SOLUTION TYPE\n(use drop-down)]]<>\"\",'Overview & Questionnaire'!B$36,\"\")","v":""}]
[{"$nulls":9},{"$f":"IF(Table131112[[#This Row],[SITE ID]]<>\"\",'Overview & Questionnaire'!B$18,\"\")","v":""},{"$f":"IF(Table131112[[#This Row],[SITE ID]]<>\"\",'Overview & Questionnaire'!B$20,\"\")","v":""},{"$f":"IF(Table131112[[#This Row],[SOLUTION TYPE\n(use drop-down)]]<>\"\",'Overview & Questionnaire'!B$36,\"\")","v":""}]
[{"$nulls":9},{"$f":"IF(Table131112[[#This Row],[SITE ID]]<>\"\",'Overview & Questionnaire'!B$18,\"\")","v":""},{"$f":"IF(Table131112[[#This Row],[SITE ID]]<>\"\",'Overview & Questionnaire'!B$20,\"\")","v":""},{"$f":"IF(Table131112[[#This Row],[SOLUTION TYPE\n(use drop-down)]]<>\"\",'Overview & Questionnaire'!B$36,\"\")","v":""}]
[{"$nulls":9},{"$f":"IF(Table131112[[#This Row],[SITE ID]]<>\"\",'Overview & Questionnaire'!B$18,\"\")","v":""},{"$f":"IF(Table131112[[#This Row],[SITE ID]]<>\"\",'Overview & Questionnaire'!B$20,\"\")","v":""},{"$f":"IF(Table131112[[#This Row],[SOLUTION TYPE\n(use drop-down)]]<>\"\",'Overview & Questionnaire'!B$36,\"\")","v":""}]
[{"$nulls":9},{"$f":"IF(Table131112[[#This Row],[SITE ID]]<>\"\",'Overview & Questionnaire'!B$18,\"\")","v":""},{"$f":"IF(Table131112[[#This Row],[SITE ID]]<>\"\",'Overview & Questionnaire'!B$20,\"\")","v":""},{"$f":"IF(Table131112[[#This Row],[SOLUTION TYPE\n(use drop-down)]]<>\"\",'Overview & Questionnaire'!B$36,\"\")","v":""}]
[{"$nulls":9},{"$f":"IF(Table131112[[#This Row],[SITE ID]]<>\"\",'Overview & Questionnaire'!B$18,\"\")","v":""},{"$f":"IF(Table131112[[#This Row],[SITE ID]]<>\"\",'Overview & Questionnaire'!B$20,\"\")","v":""},{"$f":"IF(Table131112[[#This Row],[SOLUTION TYPE\n(use drop-down)]]<>\"\",'Overview & Questionnaire'!B$36,\"\")","v":""}]
[{"$nulls":9},{"$f":"IF(Table131112[[#This Row],[SITE ID]]<>\"\",'Overview & Questionnaire'!B$18,\"\")","v":""},{"$f":"IF(Table131112[[#This Row],[SITE ID]]<>\"\",'Overview & Questionnaire'!B$20,\"\")","v":""},{"$f":"IF(Table131112[[#This Row],[SOLUTION TYPE\n(use drop-down)]]<>\"\",'Overview & Questionnaire'!B$36,\"\")","v":""}]
[{"$nulls":9},{"$f":"IF(Table131112[[#This Row],[SITE ID]]<>\"\",'Overview & Questionnaire'!B$18,\"\")","v":""},{"$f":"IF(Table131112[[#This Row],[SITE ID]]<>\"\",'Overview & Questionnaire'!B$20,\"\")","v":""},{"$f":"IF(Table131112[[#This Row],[SOLUTION TYPE\n(use drop-down)]]<>\"\",'Overview & Questionnaire'!B$36,\"\")","v":""}]
[null,"Total",{"$nulls":4},{"$f":"SUBTOTAL(101,Table131112[PROGRESS (%)])","v":{"$error":"#DIV/0!"}},{"$nulls":4},{"$f":"SUBTOTAL(104,Table131112[TimeStamp\n(auto fill)])","v":"00:00:00"}]
[]
[{"$nulls":7},"Published October 2020 - Ver. 1.1"]

{"sheet":"Milestone Summary","index":6,"n_rows":28,"n_cols":16,"rows_kept":28,"merged":[[0,1,0,15],[1,1,1,6],[1,8,1,15],[2,2,2,3],[2,4,2,5],[2,8,2,15],[27,5,27,7]]}
[null,"Milestone Summary"]
[{"$nulls":8},"HIDE; NOT WORKING"]
[null,"MILESTONE","PLANNED",null,"ACTUAL",null,"DELAY","PROGRESS","QUARTER"]
[null,null,"Start","Completion","Start","Completion",null,null,{"$f":"'Milestone Progress'!C12","v":"00:00:00"},{"$f":"DATE(YEAR(I4),MONTH(I4)+3,DAY(I4))","v":"1900-03-31"},{"$f":"DATE(YEAR(J4),MONTH(J4)+3,DAY(J4))","v":"1900-07-01"},"1900-10-01","1901-01-01","1901-04-01","1901-07-01","1901-10-01"]
[null,{"$f":"IF('Milestone Progress'!B12<>\"\",'Milestone Progress'!B12,\"\")","v":"Project Start"},{"$f":"'Milestone Progress'!H12","v":"Q1 1900"},{"$f":"'Milestone Progress'!I12","v":"Q1 1900"},{"$f":"'Milestone Progress'!L12","v":""},{"$f":"'Milestone Progress'!M12","v":""},{"$f":"'Milestone Progress'!K12","v":""},{"$f":"IF(B5<>\"\",'Milestone Progress'!G12,\"\")","v":{"v":0,"d":"0%"}}]
[null,{"$f":"IF('Milestone Progress'!B13<>\"\",'Milestone Progress'!B13,\"\")","v":"insert milestone here"},{"$f":"'Milestone Progress'!H13","v":"Q1 1900"},{"$f":"'Milestone Progress'!I13","v":"Q1 1900"},{"$f":"'Milestone Progress'!L13","v":""},{"$f":"'Milestone Progress'!M13","v":""},{"$f":"'Milestone Progress'!K13","v":""},{"$f":"IF(B6<>\"\",'Milestone Progress'!G13,\"\")","v":{"v":0,"d":"0%"}}]
[null,{"$f":"IF('Milestone Progress'!B14<>\"\",'Milestone Progress'!B14,\"\")","v":"insert milestone here"},{"$f":"'Milestone Progress'!H14","v":"Q1 1900"},{"$f":"'Milestone Progress'!I14","v":"Q1 1900"},{"$f":"'Milestone Progress'!L14","v":""},{"$f":"'Milestone Progress'!M14","v":""},{"$f":"'Milestone Progress'!K14","v":""},{"$f":"IF(B7<>\"\",'Milestone Progress'!G14,\"\")","v":{"v":0,"d":"0%"}}]
[null,{"$f":"IF('Milestone Progress'!B15<>\"\",'Milestone Progress'!B15,\"\")","v":"insert milestone here"},{"$f":"'Milestone Progress'!H15","v":"Q1 1900"},{"$f":"'Milestone Progress'!I15","v":"Q1 1900"},{"$f":"'Milestone Progress'!L15","v":""},{"$f":"'Milestone Progress'!M15","v":""},{"$f":"'Milestone Progress'!K15","v":""},{"$f":"IF(B8<>\"\",'Milestone Progress'!G15,\"\")","v":{"v":0,"d":"0%"}}]
[null,{"$f":"IF('Milestone Progress'!B16<>\"\",'Milestone Progress'!B16,\"\")","v":"insert milestone here"},{"$f":"'Milestone Progress'!H16","v":"Q1 1900"},{"$f":"'Milestone Progress'!I16","v":"Q1 1900"},{"$f":"'Milestone Progress'!L16","v":""},{"$f":"'Milestone Progress'!M16","v":""},{"$f":"'Milestone Progress'!K16","v":""},{"$f":"IF(B9<>\"\",'Milestone Progress'!G16,\"\")","v":{"v":0,"d":"0%"}}]
[null,{"$f":"IF('Milestone Progress'!B17<>\"\",'Milestone Progress'!B17,\"\")","v":"insert milestone here"},{"$f":"'Milestone Progress'!H17","v":"Q1 1900"},{"$f":"'Milestone Progress'!I17","v":"Q1 1900"},{"$f":"'Milestone Progress'!L17","v":""},{"$f":"'Milestone Progress'!M17","v":""},{"$f":"'Milestone Progress'!K17","v":""},{"$f":"IF(B10<>\"\",'Milestone Progress'!G17,\"\")","v":{"v":0,"d":"0%"}}]
[null,{"$f":"IF('Milestone Progress'!B18<>\"\",'Milestone Progress'!B18,\"\")","v":"insert milestone here"},{"$f":"'Milestone Progress'!H18","v":"Q1 1900"},{"$f":"'Milestone Progress'!I18","v":"Q1 1900"},{"$f":"'Milestone Progress'!L18","v":""},{"$f":"'Milestone Progress'!M18","v":""},{"$f":"'Milestone Progress'!K18","v":""},{"$f":"IF(B11<>\"\",'Milestone Progress'!G18,\"\")","v":{"v":0,"d":"0%"}}]
[null,{"$f":"IF('Milestone Progress'!B19<>\"\",'Milestone Progress'!B19,\"\")","v":"insert milestone here"},{"$f":"'Milestone Progress'!H19","v":"Q1 1900"},{"$f":"'Milestone Progress'!I19","v":"Q1 1900"},{"$f":"'Milestone Progress'!L19","v":""},{"$f":"'Milestone Progress'!M19","v":""},{"$f":"'Milestone Progress'!K19","v":""},{"$f":"IF(B12<>\"\",'Milestone Progress'!G19,\"\")","v":{"v":0,"d":"0%"}}]
[null,{"$f":"IF('Milestone Progress'!B20<>\"\",'Milestone Progress'!B20,\"\")","v":"insert milestone here"},{"$f":"'Milestone Progress'!H20","v":"Q1 1900"},{"$f":"'Milestone Progress'!I20","v":"Q1 1900"},{"$f":"'Milestone Progress'!L20","v":""},{"$f":"'Milestone Progress'!M20","v":""},{"$f":"'Milestone Progress'!K20","v":""},{"$f":"IF(B13<>\"\",'Milestone Progress'!G20,\"\")","v":{"v":0,"d":"0%"}}]
[null,{"$f":"IF('Milestone Progress'!B21<>\"\",'Milestone Progress'!B21,\"\")","v":"Project Completion"},{"$f":"'Milestone Progress'!H21","v":"Q1 1900"},{"$f":"'Milestone Progress'!I21","v":"Q1 1900"},{"$f":"'Milestone Progress'!L21","v":""},{"$f":"'Milestone Progress'!M21","v":""},{"$f":"'Milestone Progress'!K21","v":""},{"$f":"IF(B14<>\"\",'Milestone Progress'!G21,\"\")","v":{"v":0,"d":"0%"}}]
[null,{"$f":"IF('Milestone Progress'!B22<>\"\",'Milestone Progress'!B22,\"\")","v":""},{"$f":"'Milestone Progress'!H22","v":""},{"$f":"'Milestone Progress'!I22","v":""},{"$f":"'Milestone Progress'!L22","v":""},{"$f":"'Milestone Progress'!M22","v":""},{"$f":"'Milestone Progress'!K22","v":""},{"$f":"IF(B15<>\"\",'Milestone Progress'!G22,\"\")","v":""}]
[null,{"$f":"IF('Milestone Progress'!B23<>\"\",'Milestone Progress'!B23,\"\")","v":""},{"$f":"'Milestone Progress'!H23","v":""},{"$f":"'Milestone Progress'!I23","v":""},{"$f":"'Milestone Progress'!L23","v":""},{"$f":"'Milestone Progress'!M23","v":""},{"$f":"'Milestone Progress'!K23","v":""},{"$f":"IF(B16<>\"\",'Milestone Progress'!G23,\"\")","v":""}]
[null,{"$f":"IF('Milestone Progress'!B24<>\"\",'Milestone Progress'!B24,\"\")","v":""},{"$f":"'Milestone Progress'!H24","v":""},{"$f":"'Milestone Progress'!I24","v":""},{"$f":"'Milestone Progress'!L24","v":""},{"$f":"'Milestone Progress'!M24","v":""},{"$f":"'Milestone Progress'!K24","v":""},{"$f":"IF(B17<>\"\",'Milestone Progress'!G24,\"\")","v":""}]
[null,{"$f":"IF('Milestone Progress'!B25<>\"\",'Milestone Progress'!B25,\"\")","v":""},{"$f":"'Milestone Progress'!H25","v":""},{"$f":"'Milestone Progress'!I25","v":""},{"$f":"'Milestone Progress'!L25","v":""},{"$f":"'Milestone Progress'!M25","v":""},{"$f":"'Milestone Progress'!K25","v":""},{"$f":"IF(B18<>\"\",'Milestone Progress'!G25,\"\")","v":""}]
[null,{"$f":"IF('Milestone Progress'!B26<>\"\",'Milestone Progress'!B26,\"\")","v":""},{"$f":"'Milestone Progress'!H26","v":""},{"$f":"'Milestone Progress'!I26","v":""},{"$f":"'Milestone Progress'!L26","v":""},{"$f":"'Milestone Progress'!M26","v":""},{"$f":"'Milestone Progress'!K26","v":""},{"$f":"IF(B19<>\"\",'Milestone Progress'!G26,\"\")","v":""}]
[null,{"$f":"IF('Milestone Progress'!B27<>\"\",'Milestone Progress'!B27,\"\")","v":""},{"$f":"'Milestone Progress'!H27","v":""},{"$f":"'Milestone Progress'!I27","v":""},{"$f":"'Milestone Progress'!L27","v":""},{"$f":"'Milestone Progress'!M27","v":""},{"$f":"'Milestone Progress'!K27","v":""},{"$f":"IF(B20<>\"\",'Milestone Progress'!G27,\"\")","v":""}]
[null,{"$f":"IF('Milestone Progress'!B28<>\"\",'Milestone Progress'!B28,\"\")","v":""},{"$f":"'Milestone Progress'!H28","v":""},{"$f":"'Milestone Progress'!I28","v":""},{"$f":"'Milestone Progress'!L28","v":""},{"$f":"'Milestone Progress'!M28","v":""},{"$f":"'Milestone Progress'!K28","v":""},{"$f":"IF(B21<>\"\",'Milestone Progress'!G28,\"\")","v":""}]
[null,{"$f":"IF('Milestone Progress'!B29<>\"\",'Milestone Progress'!B29,\"\")","v":""},{"$f":"'Milestone Progress'!H29","v":""},{"$f":"'Milestone Progress'!I29","v":""},{"$f":"'Milestone Progress'!L29","v":""},{"$f":"'Milestone Progress'!M29","v":""},{"$f":"'Milestone Progress'!K29","v":""},{"$f":"IF(B22<>\"\",'Milestone Progress'!G29,\"\")","v":""}]
[null,{"$f":"IF('Milestone Progress'!B30<>\"\",'Milestone Progress'!B30,\"\")","v":""},{"$f":"'Milestone Progress'!H30","v":""},{"$f":"'Milestone Progress'!I30","v":""},{"$f":"'Milestone Progress'!L30","v":""},{"$f":"'Milestone Progress'!M30","v":""},{"$f":"'Milestone Progress'!K30","v":""},{"$f":"IF(B23<>\"\",'Milestone Progress'!G30,\"\")","v":""}]
[null,{"$f":"IF('Milestone Progress'!B31<>\"\",'Milestone Progress'!B31,\"\")","v":""},{"$f":"'Milestone Progress'!H31","v":""},{"$f":"'Milestone Progress'!I31","v":""},{"$f":"'Milestone Progress'!L31","v":""},{"$f":"'Milestone Progress'!M31","v":""},{"$f":"'Milestone Progress'!K31","v":""},{"$f":"IF(B24<>\"\",'Milestone Progress'!G31,\"\")","v":""}]
[null,"Total",{"$nulls":4},{"$f":"SUBTOTAL(109,Table6[Column5])","v":0},{"$f":"SUBTOTAL(101,Table6[Column6])","v":{"v":0,"d":"0%"}}]
[{"$nulls":10},"Plan Duration",null,null,"Actual Start"]
[]
[{"$nulls":5},"Published October 2020 - Ver. 1.1"]

{"sheet":"Named Community List","index":7,"n_rows":1245,"n_cols":8,"rows_kept":1245,"merged":[[0,6,0,7],[1,1,1,7]]}
[{"$nulls":6},"Published October 2020 - Ver. 1.1"]
[null,"Find a Community"]
[null,"Place ID\n","Place Name1 \n(*denotes an indigenous community)","Existing 50/10 Mbps Availability\nInternet2\n(Yes or No)","Existing 25/5 Mbps Availability\n(Yes or No)2","Existing LTE Cellular Availity\n(Yes or No)","Regional District","Economic Region"]
[null,50604,"?Akisq'nuk First Nation*","No","No","Yes","Regional District of East Kootenay","Kootenay"]
[null,8013,"?Akisq'nuk*","No","Yes","Yes","Regional District of East Kootenay","Kootenay"]
[null,50602,"?aqam*","No","Yes","Yes","Regional District of East Kootenay","Kootenay"]
[null,50709,"?Esdilagh First Nation*","Yes","Yes","Yes","Cariboo Regional District","Cariboo"]
[null,8482,"100 Mile House","Yes","Yes","Yes","Cariboo Regional District","Cariboo"]
[null,8481,"103 Mile","Yes","Yes","Yes","Cariboo Regional District","Cariboo"]
[null,8480,"105 Mile House","Yes","Yes","Yes","Cariboo Regional District","Cariboo"]
[null,8479,"108 Mile Ranch","Yes","Yes","Yes","Cariboo Regional District","Cariboo"]
[null,8477,"122 Mile House","No","Yes","Yes","Cariboo Regional District","Cariboo"]
[null,8475,"141 Mile House","No","No","Yes","Cariboo Regional District","Cariboo"]
[null,8458,"150 Mile House","No","No","Yes","Cariboo Regional District","Cariboo"]
[null,8988,"40 Mile Flats","No","No","No","Regional District of Kitimat-Stikine","North Coast"]
[null,8263,"70 Mile House","No","Yes","Yes","Thompson-Nicola Regional District","Thompson--Okanagan"]
[null,8494,"93 Mile","No","No","Yes","Cariboo Regional District","Cariboo"]
[null,8070,"Abbotsford","Yes","Yes","Yes","Fraser Valley Regional District","Lower Mainland--Southwest"]
[null,8073,"Aberdeen","Yes","Yes","Yes","Fraser Valley Regional District","Lower Mainland--Southwest"]
[null,8315,"Adams Lake*","Yes","Yes","Yes","Columbia-Shuswap Regional District","Thompson--Okanagan"]
[null,50684,"Adams Lake*","No","No","Yes","Thompson-Nicola Regional District","Thompson--Okanagan"]
[null,8050,"Agassiz","Yes","Yes","Yes","Fraser Valley Regional District","Lower Mainland--Southwest"]
[null,50659,"Ahousaht*","No","No","No","Regional District of Alberni-Clayoquot","Vancouver Island and Coast"]
[null,7956,"Ainsworth Hot Springs","Yes","Yes","Yes","Regional District of Central Kootenay","Kootenay"]
[null,50558,"Aitchelitz*","Yes","Yes","Yes","Fraser Valley Regional District","Lower Mainland--Southwest"]
[null,8642,"Albert Head","Yes","Yes","Yes","Capital Regional District","Vancouver Island and Coast"]
[null,8406,"Albreda","Yes","Yes","No","Regional District of Fraser-Fort George","Cariboo"]
[null,8075,"Aldergrove","Yes","Yes","Yes","Metro Vancouver Regional District","Lower Mainland--Southwest"]
[null,8556,"Alert Bay","No","Yes","Yes","Regional District of Mount Waddington","Vancouver Island and Coast"]
[null,8509,"Alexis Creek","No","No","No","Cariboo Regional District","Cariboo"]
[null,50710,"Alexis Creek*","Yes","Yes","No","Cariboo Regional District","Cariboo"]
[null,8419,"Aleza Lake","No","No","Yes","Regional District of Fraser-Fort George","Cariboo"]
[null,8894,"Alice Arm","No","No","No","Regional District of Kitimat-Stikine","North Coast"]
[null,50711,"Alkali Lake (Esk'etemc)*","Yes","Yes","No","Cariboo Regional District","Cariboo"]
[null,8279,"Allison Lake","No","No","No","Regional District of Okanagan-Similkameen","Thompson--Okanagan"]
[null,8163,"Alpine Meadows","Yes","Yes","Yes","Squamish-Lillooet Regional District","Lower Mainland--Southwest"]
[null,8952,"Altona","No","No","Yes","Peace River Regional District","Northeast"]
[null,8521,"Anahim Lake","No","No","No","Cariboo Regional District","Cariboo"]
[null,8493,"Anderson Subdivision","Yes","Yes","Yes","Cariboo Regional District","Cariboo"]
[null,8360,"Anglemont","No","Yes","Yes","Columbia-Shuswap Regional District","Thompson--Okanagan"]
[null,8112,"Anmore","Yes","Yes","Yes","Metro Vancouver Regional District","Lower Mainland--Southwest"]
[null,8309,"Annis","No","No","Yes","Columbia-Shuswap Regional District","Thompson--Okanagan"]
[null,8905,"Anzac","No","No","No","Regional District of Fraser-Fort George","Cariboo"]
[null,8000,"Apex Mountain","No","Yes","Yes","Regional District of Okanagan-Similkameen","Thompson--Okanagan"]
[null,100119,"Appledale","No","Yes","No","Regional District of Central Kootenay","Kootenay"]
[null,8666,"Arbutus Ridge","Yes","Yes","Yes","Cowichan Valley Regional District","Vancouver Island and Coast"]
[null,8658,"Ardmore","Yes","Yes","Yes","Capital Regional District","Vancouver Island and Coast"]
[null,9029,"Argenta","Yes","Yes","No","Regional District of Central Kootenay","Kootenay"]
[null,8294,"Armstrong","Yes","Yes","Yes","Regional District of North Okanagan","Thompson--Okanagan"]
[null,8916,"Arras","No","Yes","Yes","Peace River Regional District","Northeast"]
[null,100111,"Arrow Creek","Yes","Yes","Yes","Regional District of Central Kootenay","Kootenay"]
[null,8266,"Ashcroft","Yes","Yes","Yes","Thompson-Nicola Regional District","Thompson--Okanagan"]
[null,50685,"Ashcroft*","No","No","Yes","Thompson-Nicola Regional District","Thompson--Okanagan"]
[null,100152,"Ashnola / Riverside*","No","No","Yes","Regional District of Okanagan-Similkameen","Thompson--Okanagan"]
[null,8300,"Ashton Creek","Yes","Yes","Yes","Regional District of North Okanagan","Thompson--Okanagan"]
[null,100359,"Aspen Grove","No","No","Yes","Thompson-Nicola Regional District","Thompson--Okanagan"]
[null,8996,"Atlin","No","No","No","Stikine Regional District (Unincorporated)","Nechako"]
[null,8925,"Attachie","No","No","Yes","Peace River Regional District","Northeast"]
[null,8401,"Avola","No","No","Yes","Thompson-Nicola Regional District","Thompson--Okanagan"]
[null,9059,"Baker Creek","No","No","No","Cariboo Regional District","Cariboo"]
[null,8101,"Baker Trails","Yes","Yes","Yes","Fraser Valley Regional District","Lower Mainland--Southwest"]
[null,8531,"Baldy Hughes","No","No","Yes","Regional District of Fraser-Fort George","Cariboo"]
[null,7950,"Balfour","Yes","Yes","Yes","Regional District of Central Kootenay","Kootenay"]
[null,8355,"Balmoral","No","Yes","Yes","Columbia-Shuswap Regional District","Thompson--Okanagan"]
[null,8603,"Bamfield","Yes","Yes","Yes","Regional District of Alberni-Clayoquot","Vancouver Island and Coast"]
[null,8280,"Bankeir","No","No","No","Regional District of Okanagan-Similkameen","Thompson--Okanagan"]
[null,8438,"Barlow Creek","Yes","Yes","Yes","Cariboo Regional District","Cariboo"]
[null,8200,"Barney's Bar","Yes","Yes","Yes","qathet Regional District","Vancouver Island and Coast"]
[null,8371,"Barnhartvale","Yes","Yes","Yes","Thompson-Nicola Regional District","Thompson--Okanagan"]
[null,8843,"Barrett Lake","No","No","Yes","Bulkley Nechako Regional District","Nechako"]
[null,8392,"Barriere","No","No","Yes","Thompson-Nicola Regional District","Thompson--Okanagan"]
[null,7928,"Baynes Lake","No","Yes","Yes","Regional District of East Kootenay","Kootenay"]
[null,8995,"Bear Camp","No","No","No","Stikine Regional District (Unincorporated)","Nechako"]
[null,8223,"Bear Creek","No","No ","No","Fraser Valley Regional District","Lower Mainland--Southwest"]
[null,8926,"Bear Flat","No","No","Yes","Peace River Regional District","Northeast"]
[null,8429,"Bear Lake","No","Yes","Yes","Regional District of Fraser-Fort George","Cariboo"]
[null,8904,"Bear Lake","No","Yes","Yes","Stikine Regional District (Unincorporated)","Nechako"]
[null,8346,"Beaton","No","No","No","Columbia-Shuswap Regional District","Thompson--Okanagan"]
[null,8963,"Beatton Ranch","No","No","Yes","Peace River Regional District","Northeast"]
[null,8142,"Beaverdell","No","No","Yes","Regional District of Kootenay Boundary","Kootenay"]
[null,8835,"Beaverley","Yes","Yes","Yes","Regional District of Fraser-Fort George","Cariboo"]
[null,50640,"Beecher Bay*","Yes","Yes","Yes","Capital Regional District","Vancouver Island and Coast"]
[null,8108,"Belcarra","Yes","Yes","Yes","Metro Vancouver Regional District","Lower Mainland--Southwest"]
[null,8102,"Bell Acres","Yes","Yes","Yes","Fraser Valley Regional District","Lower Mainland--Southwest"]
[null,8898,"Bell II","No","No","No","Regional District of Kitimat-Stikine","North Coast"]
[null,50538,"Bella Bella (Heiltsuk)*","No","Yes","Yes","Central Coast Regional District","Vancouver Island and Coast"]
[null,8524,"Bella Coola*","No","Yes","Yes","Central Coast Regional District","Vancouver Island and Coast"]
[null,8999,"Bennett","No","No","No","Stikine Regional District (Unincorporated)","Nechako"]
[null,8942,"Bessborough","No","Yes","Yes","Peace River Regional District","Northeast"]
[null,8505,"Big Bar Creek","No","No","No","Thompson-Nicola Regional District","Thompson--Okanagan"]
[null,8761,"Big Bay","No","No","Yes","Strathcona Regional District","Vancouver Island and Coast"]
[null,8511,"Big Creek","No","No","No","Cariboo Regional District","Cariboo"]
[null,8449,"Big Lake Ranch","No","No","No","Cariboo Regional District","Cariboo"]
[null,8155,"Big White","Yes","Yes","Yes","Regional District of Kootenay Boundary","Kootenay"]
[null,8399,"Birch Island","No","No","Yes","Thompson-Nicola Regional District","Thompson--Okanagan"]
[null,9033,"Birchdale","No","No","No","Regional District of Central Kootenay","Kootenay"]
[null,8168,"Birken","No","No","No","Squamish-Lillooet Regional District","Lower Mainland--Southwest"]
[null,8468,"Black Creek","No","No","No","Cariboo Regional District","Cariboo"]
[null,8748,"Black Creek","Yes","Yes","Yes","Comox Valley Regional District","Vancouver Island and Coast"]
[null,8387,"Black Pines","No","No","No","Thompson-Nicola Regional District","Thompson--Okanagan"]
[null,8202,"Black Point","Yes","Yes","Yes","qathet Regional District","Vancouver Island and Coast"]
[null,8398,"Blackpool","No","Yes","Yes","Thompson-Nicola Regional District","Thompson--Okanagan"]
[null,8529,"Blackwater","No","No","No","Cariboo Regional District","Cariboo"]
[null,8333,"Blaeberry","No","No","Yes","Columbia-Shuswap Regional District","Thompson--Okanagan"]
[null,8327,"Blind Bay","Yes","Yes","Yes","Columbia-Shuswap Regional District","Thompson--Okanagan"]
[null,8769,"Blind Channel","No","No","No","Strathcona Regional District","Vancouver Island and Coast"]
[null,8758,"Bliss Landing","No","No","No","qathet Regional District","Vancouver Island and Coast"]
[null,8766,"Bloedel","No","No","Yes","Strathcona Regional District","Vancouver Island and Coast"]
[null,8581,"Blowhole","No","No","No","Strathcona Regional District","Vancouver Island and Coast"]
[null,8402,"Blue River","No","No","Yes","Thompson-Nicola Regional District","Thompson--Okanagan"]
[null,8151,"Blue Springs","No","No","Yes","Regional District of North Okanagan","Thompson--Okanagan"]
[null,7971,"Blueberry Creek","Yes","Yes","Yes","Regional District of Central Kootenay","Kootenay"]
[null,50547,"Blueberry River First Nations*","No","No","No","Peace River Regional District","Northeast"]
[null,8587,"Boat Basin","No","No","No","Regional District of Alberni-Clayoquot","Vancouver Island and Coast"]
[null,8897,"Bob Quinn Lake","No","No","No","Regional District of Kitimat-Stikine","North Coast"]
[null,8763,"Bold Point","No","No","Yes","Strathcona Regional District","Vancouver Island and Coast"]
[null,50686,"Bonaparte*","No","No","Yes","Thompson-Nicola Regional District","Thompson--Okanagan"]
[null,8426,"Bonnet Hill","Yes","Yes","Yes","Regional District of Fraser-Fort George","Cariboo"]
[null,7977,"Bonnington Falls","Yes","Yes","Yes","Regional District of Central Kootenay","Kootenay"]
[null,100134,"Booth Creek","No","No","Yes","Regional District of East Kootenay","Kootenay"]
[null,50700,"Boothroyd*","Yes","Yes","Yes","Fraser Valley Regional District","Lower Mainland--Southwest"]
[null,8961,"Boring Ranch","No","No","Yes","Peace River Regional District","Northeast"]
[null,8232,"Boston Bar","Yes","Yes","Yes","Fraser Valley Regional District","Lower Mainland--Southwest"]
[null,50701,"Boston Bar First Nation*","Yes","Yes","Yes","Fraser Valley Regional District","Lower Mainland--Southwest"]
[null,8268,"Boston Flats","No","No","Yes","Thompson-Nicola Regional District","Thompson--Okanagan"]
[null,8031,"Boswell","No","Yes","Yes","Regional District of Central Kootenay","Kootenay"]
[null,8443,"Bouchie Lake","Yes","Yes","Yes","Cariboo Regional District","Cariboo"]
[null,8722,"Bowser","Yes","Yes","Yes","Regional District of Nanaimo","Vancouver Island and Coast"]
[null,8159,"Brackendale","Yes","Yes","Yes","Squamish-Lillooet Regional District","Lower Mainland--Southwest"]
[null,8962,"Brady Ranch","No","No","Yes","Peace River Regional District","Northeast"]
[null,8139,"Braeloch","Yes","Yes","Yes","Regional District of Central Okanagan","Thompson--Okanagan"]
[null,8760,"Brem River*","No","No","No","Strathcona Regional District","Vancouver Island and Coast"]
[null,8653,"Brentwood Bay","Yes","Yes","Yes","Capital Regional District","Vancouver Island and Coast"]
[null,8198,"Brew Bay","Yes","Yes","Yes","qathet Regional District","Vancouver Island and Coast"]
[null,7991,"Bridesville","No","No","Yes","Regional District of Kootenay Boundary","Kootenay"]
[null,8496,"Bridge Lake","No","No","Yes","Cariboo Regional District","Cariboo"]
[null,50590,"Bridge River*","No","No","Yes","Squamish-Lillooet Regional District","Lower Mainland--Southwest"]
[null,7980,"Brilliant","Yes","Yes","Yes","Regional District of Central Kootenay","Kootenay"]
[null,8340,"Brisco","No","Yes","Yes","Regional District of East Kootenay","Kootenay"]
[null,100113,"Brisco","No","Yes","Yes","Regional District of East Kootenay","Kootenay"]
[null,9051,"Britannia Beach","Yes","Yes","Yes","Squamish-Lillooet Regional District","Lower Mainland--Southwest"]
[null,8789,"Broman Lake*","Yes","Yes","Yes","Bulkley Nechako Regional District","Nechako"]
[null,8278,"Brookmere","No","No","No","Thompson-Nicola Regional District","Thompson--Okanagan"]
[null,8082,"Brookswood","Yes","Yes","Yes","Metro Vancouver Regional District","Lower Mainland--Southwest"]
[null,8349,"Brouse","No","Yes","Yes","Regional District of Central Kootenay","Kootenay"]
[null,8430,"Buckhorn","Yes","Yes","Yes","Regional District of Fraser-Fort George","Cariboo"]
[null,8968,"Buckinghorse River","No","No","No","Peace River Regional District","Northeast"]
[null,8728,"Buckley Bay","Yes","Yes","Yes","Comox Valley Regional District","Vancouver Island and Coast"]
[null,8483,"Buffalo Creek","No","No","Yes","Cariboo Regional District","Cariboo"]
[null,8955,"Buick","No","No","Yes","Peace River Regional District","Northeast"]
[null,8903,"Bulkley House","No","No","No","Bulkley Nechako Regional District","Nechako"]
[null,50632,"Bull Harbour (Tlatlasikwala)*","No","No","No","Regional District of Mount Waddington","Vancouver Island and Coast"]
[null,7932,"Bull River","No","No","Yes","Regional District of East Kootenay","Kootenay"]
[null,8105,"Burnaby","Yes","Yes","Yes","Metro Vancouver Regional District","Lower Mainland--Southwest"]
[null,8783,"Burns Lake","No","Yes","Yes","Bulkley Nechako Regional District","Nechako"]
[null,50619,"Burns Lake*","No","Yes","Yes","Bulkley Nechako Regional District","Nechako"]
[null,50549,"Burrard (Tsleil-Waututh Nation)*","Yes","Yes","Yes","Metro Vancouver Regional District","Lower Mainland--Southwest"]
[null,8025,"Burton","No","No","Yes","Regional District of Central Kootenay","Kootenay"]
[null,8883,"Butedale","No","No","No","Regional District of Kitimat-Stikine","North Coast"]
[null,8265,"Cache Creek","Yes","Yes","Yes","Thompson-Nicola Regional District","Thompson--Okanagan"]
[null,8289,"Caesars","No","Yes","Yes","Regional District of Central Okanagan","Thompson--Okanagan"]
[null,8389,"Cahilty","No","No","No","Thompson-Nicola Regional District","Thompson--Okanagan"]
[null,100146,"Calder Road-Selkirk View","No","Yes","Yes","Regional District of Central Kootenay","Kootenay"]
[null,8369,"Campbell Creek","Yes","Yes","Yes","Thompson-Nicola Regional District","Thompson--Okanagan"]
[null,8752,"Campbell River","Yes","Yes","Yes","Strathcona Regional District","Vancouver Island and Coast"]
[null,50622,"Campbell River No.11*","Yes","Yes","Yes","Strathcona Regional District","Vancouver Island and Coast"]
[null,8010,"Canal Flats","Yes","Yes","Yes","Regional District of East Kootenay","Kootenay"]
[null,8490,"Canim Lake","No","No","No","Cariboo Regional District","Cariboo"]
[null,50713,"Canim Lake*","No","No","No","Cariboo Regional District","Cariboo"]
[null,8312,"Canoe","Yes","Yes","Yes","Columbia-Shuswap Regional District","Thompson--Okanagan"]
[null,50723,"Canoe Creek (Stswecem'c Xgat'tem First Nation)*","Yes","Yes","No","Cariboo Regional District","Cariboo"]
[null,8502,"Canoe Creek*","Yes","Yes","No","Cariboo Regional District","Cariboo"]
[null,8504,"Canoe Creek*","Yes","Yes","No","Thompson-Nicola Regional District","Thompson--Okanagan"]
[null,7946,"Canyon","Yes","Yes","Yes","Regional District of Central Kootenay","Kootenay"]
[null,8331,"Canyon Hot Springs","No","Yes","Yes","Columbia-Shuswap Regional District","Thompson--Okanagan"]
[null,50623,"Cape Mudge*","Yes","Yes","Yes","Strathcona Regional District","Vancouver Island and Coast"]
[null,8143,"Carmi","No","No","Yes","Regional District of Kootenay Boundary","Kootenay"]
[null,8350,"Carrolls Landing","No","No","Yes","Regional District of Central Kootenay","Kootenay"]
[null,8034,"Cascade","No","Yes","Yes","Regional District of Kootenay Boundary","Kootenay"]
[null,8696,"Cassidy","Yes","Yes","Yes","Regional District of Nanaimo","Vancouver Island and Coast"]
[null,7970,"Castlegar","Yes","Yes","Yes","Regional District of Central Kootenay","Kootenay"]
[null,8123,"Caulfeild","Yes","Yes","Yes","Metro Vancouver Regional District","Lower Mainland--Southwest"]
[null,7995,"Cawston","No","Yes","Yes","Regional District of Okanagan-Similkameen","Thompson--Okanagan"]
[null,8606,"Caycuse","No","No","No","Cowichan Valley Regional District","Vancouver Island and Coast"]
[null,50591,"Cayoose Creek*","No","No","Yes","Squamish-Lillooet Regional District","Lower Mainland--Southwest"]
[null,8946,"Cecil Lake","No","Yes","Yes","Peace River Regional District","Northeast"]
[null,8697,"Cedar","Yes","Yes","Yes","Regional District of Nanaimo","Vancouver Island and Coast"]
[null,8408,"Cedarside","No","No","Yes","Regional District of Fraser-Fort George","Cariboo"]
[null,8860,"Cedarvale","No","No","No","Regional District of Kitimat-Stikine","North Coast"]
[null,8582,"Ceepeecee","No","No","No","Strathcona Regional District","Vancouver Island and Coast"]
[null,8359,"Celista","No","No","Yes","Columbia-Shuswap Regional District","Thompson--Okanagan"]
[null,8655,"Central Saanich","Yes","Yes","Yes","Capital Regional District","Vancouver Island and Coast"]
[null,8620,"Chamiss Bay","No","No","No","Strathcona Regional District","Vancouver Island and Coast"]
[null,8929,"Charlie Lake","Yes","Yes","Yes","Peace River Regional District","Northeast"]
[null,8934,"Charlie Lake part B","Yes","Yes","Yes","Peace River Regional District","Northeast"]
[null,8324,"Chase","No","No","Yes","Thompson-Nicola Regional District","Thompson--Okanagan"]
[null,8262,"Chasm","No","No","Yes","Thompson-Nicola Regional District","Thompson--Okanagan"]
[null,50583,"Chawathil*","No","No","Yes","Fraser Valley Regional District","Lower Mainland--Southwest"]
[null,50584,"Cheam*","Yes","Yes","Yes","Fraser Valley Regional District","Lower Mainland--Southwest"]
[null,50559,"Chehalis (Sts'ailes)*","Yes","Yes","Yes","Fraser Valley Regional District","Lower Mainland--Southwest"]
[null,8680,"Chemainus","Yes","Yes","Yes","Cowichan Valley Regional District","Vancouver Island and Coast"]
[null,50641,"Chemainus (Stz'uminus First Nation)*","Yes","Yes","Yes","Cowichan Valley Regional District","Vancouver Island and Coast"]
[null,8618,"Chemainus*","Yes","Yes","Yes","Cowichan Valley Regional District","Vancouver Island and Coast"]
[null,8694,"Chemainus*","Yes","Yes","Yes","Cowichan Valley Regional District","Vancouver Island and Coast"]
[null,8381,"Cherry Creek","No","No","Yes","Thompson-Nicola Regional District","Thompson--Okanagan"]
[null,8739,"Cherry Creek","Yes","Yes","Yes","Regional District of Alberni-Clayoquot","Vancouver Island and Coast"]
[null,8664,"Cherry Point","Yes","Yes","Yes","Cowichan Valley Regional District","Vancouver Island and Coast"]
[null,8154,"Cherryville","No","No","Yes","Regional District of North Okanagan","Thompson--Okanagan"]
[null,8819,"Cheslatta","No","No","No","Bulkley Nechako Regional District","Nechako"]
[null,50620,"Cheslatta Carrier Nation*","No","No","Yes","Bulkley Nechako Regional District","Nechako"]
[null,8907,"Chetwynd","No","Yes","Yes","Peace River Regional District","Northeast"]
[null,8514,"Chezacut","No","No","No","Cariboo Regional District","Cariboo"]
[null,8513,"Chilanko Forks","No","No","No","Cariboo Regional District","Cariboo"]
[null,8460,"Chilcotin Road Area","Yes","Yes","Yes","Cariboo Regional District","Cariboo"]
[null,8058,"Chilliwack","Yes","Yes","Yes","Fraser Valley Regional District","Lower Mainland--Southwest"]
[null,8393,"Chinook Cove","No","No","Yes","Thompson-Nicola Regional District","Thompson--Okanagan"]
[null,9025,"Christian Valley","No","No","No","Regional District of Kootenay Boundary","Kootenay"]
[null,7984,"Christina Lake","Yes","Yes","Yes","Regional District of Kootenay Boundary","Kootenay"]
[null,8436,"Cinema","No","No","Yes","Cariboo Regional District","Cariboo"]
[null,8700,"Cinnabar Valley","Yes","Yes","Yes","Regional District of Nanaimo","Vancouver Island and Coast"]
[null,8930,"Clairmont","Yes","Yes","Yes","Peace River Regional District","Northeast"]
[null,8944,"Clayhurst","No","No","Yes","Peace River Regional District","Northeast"]
[null,8074,"Clearbrook","Yes","Yes","Yes","Fraser Valley Regional District","Lower Mainland--Southwest"]
[null,100135,"Clearview","No","No","Yes","Regional District of East Kootenay","Kootenay"]
[null,8397,"Clearwater","No","Yes","Yes","Thompson-Nicola Regional District","Thompson--Okanagan"]
[null,8825,"Clemretta","No","No","No","Bulkley Nechako Regional District","Nechako"]
[null,8261,"Clinton","Yes","Yes","Yes","Thompson-Nicola Regional District","Thompson--Okanagan"]
[null,8634,"Clo-oose*","No","No","No","Cowichan Valley Regional District","Vancouver Island and Coast"]
[null,8088,"Cloverdale","Yes","Yes","Yes","Metro Vancouver Regional District","Lower Mainland--Southwest"]
[null,8547,"Coal Harbour","No","No","Yes","Regional District of Mount Waddington","Vancouver Island and Coast"]
[null,8978,"Coal River","No","No","No","Northern Rockies Regional Municipality","Northeast"]
[null,8128,"Coalmont","No","No","No","Regional District of Okanagan-Similkameen","Thompson--Okanagan"]
[null,8665,"Cobble Hill","Yes","Yes","Yes","Cowichan Valley Regional District","Vancouver Island and Coast"]
[null,7935,"Cokato","Yes","Yes","Yes","Regional District of East Kootenay","Kootenay"]
[null,8283,"Coldstream","Yes","Yes","Yes","Regional District of North Okanagan","Thompson--Okanagan"]
[null,8277,"Coldwater*","No","No","Yes","Thompson-Nicola Regional District","Thompson--Okanagan"]
[null,50693,"Coldwater*","No","No","Yes","Thompson-Nicola Regional District","Thompson--Okanagan"]
[null,8826,"Colleymount","No","No","No","Bulkley Nechako Regional District","Nechako"]
[null,8643,"Colwood","Yes","Yes","Yes","Capital Regional District","Vancouver Island and Coast"]
[null,8465,"Commodore Heights","Yes","Yes","Yes","Cariboo Regional District","Cariboo"]
[null,8733,"Comox","Yes","Yes","Yes","Comox Valley Regional District","Vancouver Island and Coast"]
[null,50624,"Comox (K'ómoks First Nation)*","Yes","Yes","Yes","Comox Valley Regional District","Vancouver Island and Coast"]
[null,50692,"Cook's Ferry (Oregon Jack Creek)*","No","Yes","Yes","Thompson-Nicola Regional District","Thompson--Okanagan"]
[null,50694,"Cook's Ferry*","No","No","Yes","Thompson-Nicola Regional District","Thompson--Okanagan"]
[null,8715,"Coombs","Yes","Yes","Yes","Regional District of Nanaimo","Vancouver Island and Coast"]
[null,8022,"Cooper Creek","No","Yes","No","Regional District of Central Kootenay","Kootenay"]
[null,8115,"Coquitlam","Yes","Yes","Yes","Metro Vancouver Regional District","Lower Mainland--Southwest"]
[null,8444,"Cottonwood","No","No","No","Cariboo Regional District","Cariboo"]
[null,8732,"Courtenay","Yes","Yes","Yes","Comox Valley Regional District","Vancouver Island and Coast"]
[null,8672,"Cowichan Bay","Yes","Yes","Yes","Cowichan Valley Regional District","Vancouver Island and Coast"]
[null,8673,"Cowichan Station","Yes","Yes","Yes","Cowichan Valley Regional District","Vancouver Island and Coast"]
[null,8614,"Cowichan*","Yes","Yes","Yes","Cowichan Valley Regional District","Vancouver Island and Coast"]
[null,8678,"Cowichan*","Yes","Yes","Yes","Cowichan Valley Regional District","Vancouver Island and Coast"]
[null,50642,"Cowichan*","Yes","Yes","Yes","Cowichan Valley Regional District","Vancouver Island and Coast"]
[null,8212,"Cranberry","Yes","Yes","Yes","qathet Regional District","Vancouver Island and Coast"]
[null,8892,"Cranberry Junction","No","No","No","Regional District of Kitimat-Stikine","North Coast"]
[null,7934,"Cranbrook","Yes","Yes","Yes","Regional District of East Kootenay","Kootenay"]
[null,7949,"Crawford Bay","No","Yes","Yes","Regional District of Central Kootenay","Kootenay"]
[null,8413,"Crescent Spur","No","No","Yes","Regional District of Fraser-Fort George","Cariboo"]
[null,100126,"Crescent Valley","Yes","Yes","Yes","Regional District of Central Kootenay","Kootenay"]
[null,7943,"Creston","Yes","Yes","Yes","Regional District of Central Kootenay","Kootenay"]
[null,8499,"Criss Creek","No","No","No","Thompson-Nicola Regional District","Thompson--Okanagan"]
[null,8615,"Crofton","Yes","Yes","Yes","Cowichan Valley Regional District","Vancouver Island and Coast"]
[null,8353,"Crowsnest","No","No","Yes","Regional District of East Kootenay","Kootenay"]
[null,8061,"Cultus Lake","Yes","Yes","Yes","Fraser Valley Regional District","Lower Mainland--Southwest"]
[null,8730,"Cumberland","Yes","Yes","Yes","Comox Valley Regional District","Vancouver Island and Coast"]
[null,8370,"Dallas","Yes","Yes","Yes","Thompson-Nicola Regional District","Thompson--Okanagan"]
[null,50635,"Da'naxda'xw First Nation*","No","No","No","Regional District of Mount Waddington","Vancouver Island and Coast"]
[null,8811,"Danskin","No","No","Yes","Bulkley Nechako Regional District","Nechako"]
[null,8169,"D'Arcy*","No","No","No","Squamish-Lillooet Regional District","Lower Mainland--Southwest"]
[null,8395,"Darfield","No","No","Yes","Thompson-Nicola Regional District","Thompson--Okanagan"]
[null,8713,"Dashwood","Yes","Yes","Yes","Regional District of Nanaimo","Vancouver Island and Coast"]
[null,8184,"Davis Bay","Yes","Yes","Yes","Sunshine Coast Regional District","Lower Mainland--Southwest"]
[null,8938,"Dawson Creek","Yes","Yes","Yes","Peace River Regional District","Northeast"]
[null,8539,"Dawsons Landing","No","No","No","Central Coast Regional District","Vancouver Island and Coast"]
[null,8983,"Dease Lake","No","No","No","Regional District of Kitimat-Stikine","North Coast"]
[null,8787,"Decker Lake","No","No","Yes","Bulkley Nechako Regional District","Nechako"]
[null,8723,"Deep Bay","Yes","Yes","Yes","Regional District of Nanaimo","Vancouver Island and Coast"]
[null,8118,"Deep Cove","Yes","Yes","Yes","Metro Vancouver Regional District","Lower Mainland--Southwest"]
[null,8659,"Deep Cove","Yes","Yes","Yes","Capital Regional District","Vancouver Island and Coast"]
[null,8306,"Deep Creek","No","No","Yes","Columbia-Shuswap Regional District","Thompson--Okanagan"]
[null,9021,"Deer Park","No","Yes","No","Regional District of Central Kootenay","Kootenay"]
[null,8675,"Deerholme","Yes","Yes","Yes","Cowichan Valley Regional District","Vancouver Island and Coast"]
[null,8488,"Deka Lake","No","Yes","Yes","Cariboo Regional District","Cariboo"]
[null,8119,"Delbrook","Yes","Yes","Yes","Metro Vancouver Regional District","Lower Mainland--Southwest"]
[null,9004,"Delkatla","No","Yes","Yes","North Coast Regional District","North Coast"]
[null,8736,"Denman Island","No","No","Yes","Comox Valley Regional District","Vancouver Island and Coast"]
[null,8703,"Departure Bay","Yes","Yes","Yes","Regional District of Nanaimo","Vancouver Island and Coast"]
[null,50579,"Deroche (Leq' a: mel First Nation)*","Yes","Yes","Yes","Fraser Valley Regional District","Lower Mainland--Southwest"]
[null,8693,"Diamond","Yes","Yes","Yes","Cowichan Valley Regional District","Vancouver Island and Coast"]
[null,50662,"Ditidaht*","No","No","No","Cowichan Valley Regional District","Vancouver Island and Coast"]
[null,8869,"Dodge Cove","Yes","Yes","Yes","North Coast Regional District","North Coast"]
[null,8461,"Dog Creek","Yes","Yes","Yes","Cariboo Regional District","Cariboo"]
[null,8500,"Dog Creek","Yes","Yes","No","Cariboo Regional District","Cariboo"]
[null,8839,"Dog Creek","No","No","Yes","Bulkley Nechako Regional District","Nechako"]
[null,8225,"Dogwood Valley","No","Yes","Yes","Fraser Valley Regional District","Lower Mainland--Southwest"]
[null,50548,"Doig River First Nation*","No","No","Yes","Peace River Regional District","Northeast"]
[null,8912,"Dokie Siding","No","Yes","Yes","Peace River Regional District","Northeast"]
[null,8708,"Dolphin Beach","Yes","Yes","Yes","Regional District of Nanaimo","Vancouver Island and Coast"]
[null,8415,"Dome Creek","No","No","Yes","Regional District of Fraser-Fort George","Cariboo"]
[null,8334,"Donald","No","Yes","Yes","Columbia-Shuswap Regional District","Thompson--Okanagan"]
[null,8841,"Donald Landing","No","No","No","Bulkley Nechako Regional District","Nechako"]
[null,8191,"Donnely Landing","Yes","Yes","Yes","Sunshine Coast Regional District","Lower Mainland--Southwest"]
[null,8861,"Dorreen","No","No","No","Regional District of Kitimat-Stikine","North Coast"]
[null,8086,"Douglas","Yes","Yes","Yes","Metro Vancouver Regional District","Lower Mainland--Southwest"]
[null,8385,"Douglas Lake","No","No","No","Thompson-Nicola Regional District","Thompson--Okanagan"]
[null,50561,"Douglas*","No","No","No","Fraser Valley Regional District","Lower Mainland--Southwest"]
[null,8341,"Dry Gulch","Yes","Yes","Yes","Regional District of East Kootenay","Kootenay"]
[null,8319,"Duck Range","No","No","Yes","Thompson-Nicola Regional District","Thompson--Okanagan"]
[null,8469,"Dugan Lake","No","No","No","Cariboo Regional District","Cariboo"]
[null,8676,"Duncan","Yes","Yes","Yes","Cowichan Valley Regional District","Vancouver Island and Coast"]
[null,8541,"Duncanby Landing","No","No","No","Central Coast Regional District","Vancouver Island and Coast"]
[null,8121,"Dundarave","Yes","Yes","Yes","Metro Vancouver Regional District","Lower Mainland--Southwest"]
[null,8720,"Dunsmuir","Yes","Yes","Yes","Regional District of Nanaimo","Vancouver Island and Coast"]
[null,8411,"Dunster","No","No","Yes","Regional District of Fraser-Fort George","Cariboo"]
[null,8099,"Durieu","Yes","Yes","Yes","Fraser Valley Regional District","Lower Mainland--Southwest"]
[null,8362,"Eagle Bay","No","No","Yes","Columbia-Shuswap Regional District","Thompson--Okanagan"]
[null,8487,"Eagle Creek","No","No","No","Cariboo Regional District","Cariboo"]
[null,8677,"Eagle Heights","Yes","Yes","Yes","Cowichan Valley Regional District","Vancouver Island and Coast"]
[null,8204,"Earls Cove","No","No","Yes","Sunshine Coast Regional District","Lower Mainland--Southwest"]
[null,8915,"East Pine","No","Yes","Yes","Peace River Regional District","Northeast"]
[null,100151,"East Princeton","Yes","Yes","Yes","Regional District of Okanagan-Similkameen","Thompson--Okanagan"]
[null,8639,"East Sooke","Yes","Yes","Yes","Capital Regional District","Vancouver Island and Coast"]
[null,8704,"East Wellington","Yes","Yes","Yes","Regional District of Nanaimo","Vancouver Island and Coast"]
[null,8041,"Eastgate","No","No","Yes","Regional District of Okanagan-Similkameen","Thompson--Okanagan"]
[null,8567,"Echo Bay","No","No","No","Regional District of Mount Waddington","Vancouver Island and Coast"]
[null,8989,"Eddontenajon","No","No","No","Regional District of Kitimat-Stikine","North Coast"]
[null,8020,"Edgewater","No","Yes","Yes","Regional District of East Kootenay","Kootenay"]
[null,8028,"Edgewood","No","Yes","Yes","Regional District of Central Kootenay","Kootenay"]
[null,100141,"Edwards Lake*","No","No","Yes","Regional District of East Kootenay","Kootenay"]
[null,8205,"Egmont","No","No","Yes","Sunshine Coast Regional District","Lower Mainland--Southwest"]
[null,8574,"Ehatis 11 (Ehattesaht)","No","No","No","Strathcona Regional District","Vancouver Island and Coast"]
[null,8628,"Ehatisaht","No","No","No","Strathcona Regional District","Vancouver Island and Coast"]
[null,50634,"Ehattesaht*","No","No","No","Strathcona Regional District","Vancouver Island and Coast"]
[null,8764,"Elk Bay","No","No","No","Strathcona Regional District","Vancouver Island and Coast"]
[null,7939,"Elkford","Yes","Yes","Yes","Regional District of East Kootenay","Kootenay"]
[null,7929,"Elko","No","Yes","Yes","Regional District of East Kootenay","Kootenay"]
[null,8140,"Ellison","Yes","Yes","Yes","Regional District of Central Okanagan","Thompson--Okanagan"]
[null,100112,"Emerald Lake","No","No","No","Columbia-Shuswap Regional District","Thompson--Okanagan"]
[null,8784,"Endako","Yes","Yes","Yes","Bulkley Nechako Regional District","Nechako"]
[null,8295,"Enderby","Yes","Yes","Yes","Regional District of North Okanagan","Thompson--Okanagan"]
[null,8710,"Englishman River North","Yes","Yes","Yes","Regional District of Nanaimo","Vancouver Island and Coast"]
[null,8718,"Englishman River South","Yes","Yes","Yes","Regional District of Nanaimo","Vancouver Island and Coast"]
[null,9038,"Erie","No","Yes","No","Regional District of Central Kootenay","Kootenay"]
[null,8716,"Errington","Yes","Yes","Yes","Regional District of Nanaimo","Vancouver Island and Coast"]
[null,100150,"Erris","No","No","No","Regional District of Okanagan-Similkameen","Thompson--Okanagan"]
[null,8459,"Esler","Yes","Yes","Yes","Cariboo Regional District","Cariboo"]
[null,8583,"Esperanza","No","No","No","Strathcona Regional District","Vancouver Island and Coast"]
[null,8650,"Esquimalt","Yes","Yes","Yes","Capital Regional District","Vancouver Island and Coast"]
[null,50644,"Esquimalt*","Yes","Yes","Yes","Capital Regional District","Vancouver Island and Coast"]
[null,8586,"Estevan Point","No","No","Yes","Regional District of Alberni-Clayoquot","Vancouver Island and Coast"]
[null,8699,"Extension","Yes","Yes","Yes","Regional District of Nanaimo","Vancouver Island and Coast"]
[null,8621,"Fair Harbour","No","No","No","Strathcona Regional District","Vancouver Island and Coast"]
[null,8012,"Fairmont Hot Springs","Yes","Yes","Yes","Regional District of East Kootenay","Kootenay"]
[null,8303,"Falkland","Yes","Yes","Yes","Columbia-Shuswap Regional District","Thompson--Okanagan"]
[null,8726,"Fanny Bay","Yes","Yes","Yes","Comox Valley Regional District","Vancouver Island and Coast"]
[null,8937,"Farmington","No","Yes","Yes","Peace River Regional District","Northeast"]
[null,8927,"Farrell Creek","No","No","Yes","Peace River Regional District","Northeast"]
[null,8027,"Fauquier","No","Yes","Yes","Regional District of Central Kootenay","Kootenay"]
[null,8966,"Federal Ranch","No","No","Yes","Peace River Regional District","Northeast"]
[null,8348,"Ferguson","No","No","No","Columbia-Shuswap Regional District","Thompson--Okanagan"]
[null,8083,"Fern Ridge","Yes","Yes","Yes","Metro Vancouver Regional District","Lower Mainland--Southwest"]
[null,7936,"Fernie","Yes","Yes","Yes","Regional District of East Kootenay","Kootenay"]
[null,8688,"Fernwood","Yes","Yes","Yes","Capital Regional District","Vancouver Island and Coast"]
[null,8342,"Field","No","Yes","Yes","Columbia-Shuswap Regional District","Thompson--Okanagan"]
[null,8286,"Fintry","Yes","Yes","Yes","Regional District of Central Okanagan","Thompson--Okanagan"]
[null,8979,"Fireside","No","No","No","Northern Rockies Regional Municipality","Northeast"]
[null,8522,"Firvale","No","No","No","Central Coast Regional District","Vancouver Island and Coast"]
[null,8425,"Foreman","No","No","Yes","Regional District of Fraser-Fort George","Cariboo"]
[null,8485,"Forest Grove","No","No","Yes","Cariboo Regional District","Cariboo"]
[null,8799,"Fort Babine*","No","No","No","Bulkley Nechako Regional District","Nechako"]
[null,8778,"Fort Fraser","Yes","Yes","Yes","Bulkley Nechako Regional District","Nechako"]
[null,8085,"Fort Langley","Yes","Yes","Yes","Metro Vancouver Regional District","Lower Mainland--Southwest"]
[null,8970,"Fort Nelson","Yes","Yes","Yes","Northern Rockies Regional Municipality","Northeast"]
[null,50543,"Fort Nelson First Nation*","Yes","Yes","Yes","Northern Rockies Regional Municipality","Northeast"]
[null,8551,"Fort Rupert","Yes","Yes","Yes","Regional District of Mount Waddington","Vancouver Island and Coast"]
[null,8802,"Fort St. James","Yes","Yes","Yes","Bulkley Nechako Regional District","Nechako"]
[null,8931,"Fort St. John","Yes","Yes","Yes","Peace River Regional District","Northeast"]
[null,8006,"Fort Steele","No","No","Yes","Regional District of East Kootenay","Kootenay"]
[null,50610,"Fort Ware (Kwadacha)*","No","No","No","Peace River Regional District","Northeast"]
[null,9027,"Fosthall","No","No","Yes","Regional District of Central Kootenay","Kootenay"]
[null,8464,"Fox Mountain","No","No","Yes","Cariboo Regional District","Cariboo"]
[null,8813,"François Lake","Yes","Yes","Yes","Bulkley Nechako Regional District","Nechako"]
[null,8630,"Franklin Camp","No","No","No","Regional District of Alberni-Clayoquot","Vancouver Island and Coast"]
[null,8998,"Fraser","No","No","No","Stikine Regional District (Unincorporated)","Nechako"]
[null,8780,"Fraser Lake","Yes","Yes","Yes","Bulkley Nechako Regional District","Nechako"]
[null,8712,"French Creek","Yes","Yes","Yes","Regional District of Nanaimo","Vancouver Island and Coast"]
[null,7963,"Fruitvale","Yes","Yes","Yes","Regional District of Kootenay Boundary","Kootenay"]
[null,8687,"Fulford Harbour","Yes","Yes","Yes","Capital Regional District","Vancouver Island and Coast"]
[null,8344,"Galena","No","No","No","Columbia-Shuswap Regional District","Thompson--Okanagan"]
[null,8345,"Galena Bay","No","No","No","Columbia-Shuswap Regional District","Thompson--Okanagan"]
[null,8175,"Gambier Harbour","Yes","Yes","Yes","Metro Vancouver Regional District","Lower Mainland--Southwest"]
[null,8503,"Gang Ranch","No","No","No","Cariboo Regional District","Cariboo"]
[null,8681,"Ganges","Yes","Yes","Yes","Capital Regional District","Vancouver Island and Coast"]
[null,8192,"Garden Bay","Yes","Yes","Yes","Sunshine Coast Regional District","Lower Mainland--Southwest"]
[null,8215,"Garibaldi","Yes","Yes","Yes","Squamish-Lillooet Regional District","Lower Mainland--Southwest"]
[null,8160,"Garibaldi Highlands","Yes","Yes","Yes","Squamish-Lillooet Regional District","Lower Mainland--Southwest"]
[null,8484,"Gateway","No","No","Yes","Cariboo Regional District","Cariboo"]
[null,7968,"Genelle","Yes","Yes","Yes","Regional District of Kootenay Boundary","Kootenay"]
[null,9019,"Georgetown Mills","No","No","No","North Coast Regional District","North Coast"]
[null,8901,"Germansen Landing","No","No","No","Bulkley Nechako Regional District","Nechako"]
[null,8177,"Gibsons","Yes","Yes","Yes","Sunshine Coast Regional District","Lower Mainland--Southwest"]
[null,8193,"Gillies Bay","No","No","Yes","qathet Regional District","Vancouver Island and Coast"]
[null,8035,"Gilpin","No","No","Yes","Regional District of Kootenay Boundary","Kootenay"]
[null,8421,"Giscome","No","No","Yes","Regional District of Fraser-Fort George","Cariboo"]
[null,50537,"Gitanyow*","No","No","No","Regional District of Kitimat-Stikine","North Coast"]
[null,50679,"Gitwinksihlkw (Nisga'a Village of Gitwinksihlkw)*","No","No","No","Regional District of Kitimat-Stikine","North Coast"]
[null,7975,"Glade","Yes","Yes","Yes","Regional District of Central Kootenay","Kootenay"]
[null,50533,"Glen Vowell*","Yes","Yes","Yes","Regional District of Kitimat-Stikine","North Coast"]
[null,8297,"Glenemma","Yes","Yes","Yes","Columbia-Shuswap Regional District","Thompson--Okanagan"]
[null,100105,"Glenlily","No","Yes","Yes","Regional District of Central Kootenay","Kootenay"]
[null,7981,"Glenmerry","Yes","Yes","Yes","Regional District of Kootenay Boundary","Kootenay"]
[null,8136,"Glenrosa","Yes","Yes","Yes","Regional District of Central Okanagan","Thompson--Okanagan"]
[null,8172,"Gold Bridge","No","No","No","Squamish-Lillooet Regional District","Lower Mainland--Southwest"]
[null,8626,"Gold River","No","No","No","Strathcona Regional District","Vancouver Island and Coast"]
[null,8335,"Golden","Yes","Yes","Yes","Columbia-Shuswap Regional District","Thompson--Okanagan"]
[null,8538,"Good Hope","No","No","No","Central Coast Regional District","Vancouver Island and Coast"]
[null,50504,"Good Hope Lake (Dease River)*","No","No","No","Stikine Regional District (Unincorporated)","Nechako"]
[null,8945,"Goodlow","No","No","Yes","Peace River Regional District","Northeast"]
[null,8537,"Goose Bay","No","No","No","Central Coast Regional District","Vancouver Island and Coast"]
[null,100140,"Grainger Road, Columbia Lake","Yes","Yes","Yes","Regional District of East Kootenay","Kootenay"]
[null,7985,"Grand Forks","Yes","Yes","Yes","Regional District of Kootenay Boundary","Kootenay"]
[null,8932,"Grand Haven","Yes","Yes","Yes","Peace River Regional District","Northeast"]
[null,8794,"Granisle","No","Yes","Yes","Bulkley Nechako Regional District","Nechako"]
[null,8762,"Granite Bay","No","No","No","Strathcona Regional District","Vancouver Island and Coast"]
[null,8742,"Grantham","Yes","Yes","Yes","Comox Valley Regional District","Vancouver Island and Coast"]
[null,7927,"Grasmere","No","No","Yes","Regional District of East Kootenay","Kootenay"]
[null,8812,"Grassy Plains*","No","No","No","Bulkley Nechako Regional District","Nechako"]
[null,8452,"Gravelle Ferry","No","Yes","Yes","Cariboo Regional District","Cariboo"]
[null,9036,"Gray Creek","No","Yes","Yes","Regional District of Central Kootenay","Kootenay"]
[null,7988,"Greenwood","Yes","Yes","Yes","Regional District of Kootenay Boundary","Kootenay"]
[null,8304,"Grindrod","Yes","Yes","Yes","Regional District of North Okanagan","Thompson--Okanagan"]
[null,8917,"Groundbirch","No","No","Yes","Peace River Regional District","Northeast"]
[null,50724,"Gwa'Sala-Nakwaxda'xw*","Yes","Yes","Yes","Regional District of Mount Waddington","Vancouver Island and Coast"]
[null,50627,"Gwawaenuk Tribe*","No","No","No","Regional District of Mount Waddington","Vancouver Island and Coast"]
[null,8523,"Hagensborg","No","No","Yes","Central Coast Regional District","Vancouver Island and Coast"]
[null,50534,"Hagwilget (Hagwilget Village)*","No","Yes","Yes","Regional District of Kitimat-Stikine","North Coast"]
[null,8049,"Haig*","Yes","Yes","Yes","Fraser Valley Regional District","Lower Mainland--Southwest"]
[null,50645,"Halalt*","Yes","Yes","Yes","Cowichan Valley Regional District","Vancouver Island and Coast"]
[null,100106,"Halcyon Hot Springs","No","No","No","Regional District of Central Kootenay","Kootenay"]
[null,8187,"Halfmoon Bay","Yes","Yes","Yes","Sunshine Coast Regional District","Lower Mainland--Southwest"]
[null,50546,"Halfway River First Nation*","No","No","Yes","Peace River Regional District","Northeast"]
[null,9037,"Hall","No","No","Yes","Regional District of Central Kootenay","Kootenay"]
[null,100109,"Hall's Landing","No","No","No","Columbia-Shuswap Regional District","Thompson--Okanagan"]
[null,8506,"Hanceville","No","No","No","Cariboo Regional District","Cariboo"]
[null,9054,"Hardwicke Island","No","No","No","Strathcona Regional District","Vancouver Island and Coast"]
[null,8047,"Harrison Hot Springs","Yes","Yes","Yes","Fraser Valley Regional District","Lower Mainland--Southwest"]
[null,8052,"Harrison Mills","Yes","Yes","Yes","Fraser Valley Regional District","Lower Mainland--Southwest"]
[null,8338,"Harrogate","No","No","Yes","Columbia-Shuswap Regional District","Thompson--Okanagan"]
[null,7952,"Harrop","Yes","Yes","Yes","Regional District of Central Kootenay","Kootenay"]
[null,50675,"Hartley Bay (Gitga'at First Nation)*","No","No","Yes","North Coast Regional District","North Coast"]
[null,8910,"Hasler Flat","No","No","Yes","Peace River Regional District","Northeast"]
[null,8100,"Hatzic Island","Yes","Yes","Yes","Fraser Valley Regional District","Lower Mainland--Southwest"]
[null,50531,"Hazelton (Gitanmaax)*","Yes","Yes","Yes","Regional District of Kitimat-Stikine","North Coast"]
[null,8743,"Headquarters","No","No","Yes","Comox Valley Regional District","Vancouver Island and Coast"]
[null,50625,"Health Bay (Kwikwasut'inuxw Haxwa'mis)*","No","No","No","Regional District of Mount Waddington","Vancouver Island and Coast"]
[null,7999,"Hedley","No","Yes","Yes","Regional District of Okanagan-Similkameen","Thompson--Okanagan"]
[null,8376,"Heffley Creek","Yes","Yes","Yes","Thompson-Nicola Regional District","Thompson--Okanagan"]
[null,8043,"Hemlock Valley","No","Yes","Yes","Fraser Valley Regional District","Lower Mainland--Southwest"]
[null,8755,"Heriot Bay","No","No","Yes","Strathcona Regional District","Vancouver Island and Coast"]
[null,50661,"Hesquiaht*","No","Yes","Yes","Regional District of Alberni-Clayoquot","Vancouver Island and Coast"]
[null,8585,"Hesquiat*","No","No","Yes","Regional District of Alberni-Clayoquot","Vancouver Island and Coast"]
[null,9053,"Heydon Bay*","No","No","No","Strathcona Regional District","Vancouver Island and Coast"]
[null,50703,"High Bar*","No","No","No","Thompson-Nicola Regional District","Thompson--Okanagan"]
[null,8651,"Highlands","Yes","Yes","Yes","Capital Regional District","Vancouver Island and Coast"]
[null,8714,"Hilliers","Yes","Yes","Yes","Regional District of Nanaimo","Vancouver Island and Coast"]
[null,8024,"Hills","No","No","Yes","Regional District of Central Kootenay","Kootenay"]
[null,8434,"Hixon","No","No","Yes","Regional District of Fraser-Fort George","Cariboo"]
[null,8542,"Holberg","No","No","No","Regional District of Mount Waddington","Vancouver Island and Coast"]
[null,8122,"Hollyburn","Yes","Yes","Yes","Metro Vancouver Regional District","Lower Mainland--Southwest"]
[null,8318,"Holmwood","No","No","Yes","Thompson-Nicola Regional District","Thompson--Okanagan"]
[null,50552,"Homalco*","No","Yes","Yes","Strathcona Regional District","Vancouver Island and Coast"]
[null,8611,"Honeymoon Bay","Yes","Yes","Yes","Cowichan Valley Regional District","Vancouver Island and Coast"]
[null,8044,"Hope","Yes","Yes","Yes","Fraser Valley Regional District","Lower Mainland--Southwest"]
[null,8724,"Hornby Island","No","No","Yes","Comox Valley Regional District","Vancouver Island and Coast"]
[null,8446,"Horsefly","No","No","No","Cariboo Regional District","Cariboo"]
[null,8173,"Horseshoe Bay","Yes","Yes","Yes","Metro Vancouver Regional District","Lower Mainland--Southwest"]
[null,7937,"Hosmer","Yes","Yes","Yes","Regional District of East Kootenay","Kootenay"]
[null,8590,"Hot Springs Cove*","No","Yes","Yes","Regional District of Alberni-Clayoquot","Vancouver Island and Coast"]
[null,8793,"Houston","Yes","Yes","Yes","Bulkley Nechako Regional District","Nechako"]
[null,8352,"Howser","No","No","No","Regional District of Central Kootenay","Kootenay"]
[null,8924,"Hudson's Hope","Yes","Yes","Yes","Peace River Regional District","Northeast"]
[null,8298,"Hullcar","No","No","Yes","Regional District of North Okanagan","Thompson--Okanagan"]
[null,8072,"Huntingdon","Yes","Yes","Yes","Fraser Valley Regional District","Lower Mainland--Southwest"]
[null,8881,"Hunts Inlet","No","No","Yes","North Coast Regional District","North Coast"]
[null,50664,"Hupacasath First Nation*","Yes","Yes","Yes","Regional District of Alberni-Clayoquot","Vancouver Island and Coast"]
[null,7947,"Huscroft","No","Yes","Yes","Regional District of Central Kootenay","Kootenay"]
[null,8382,"Hustalen 1 (Adams Lake)*","No","Yes","Yes","Columbia-Shuswap Regional District","Thompson--Okanagan"]
[null,50663,"Huu-ay-aht First Nations*","No","No","No","Regional District of Alberni-Clayoquot","Vancouver Island and Coast"]
[null,8631,"Huu-ay-aht*","No","No","Yes","Regional District of Alberni-Clayoquot","Vancouver Island and Coast"]
[null,8555,"Hyde Creek","Yes","Yes","Yes","Regional District of Mount Waddington","Vancouver Island and Coast"]
[null,8448,"Hydraulic","No","No","No","Cariboo Regional District","Cariboo"]
[null,8491,"Imperial Ranchettes","Yes","Yes","Yes","Cariboo Regional District","Cariboo"]
[null,8015,"Invermere","Yes","Yes","Yes","Regional District of East Kootenay","Kootenay"]
[null,50683,"Iskut*","No","No","No","Regional District of Kitimat-Stikine","North Coast"]
[null,8832,"Isle Pierre","No","No","Yes","Regional District of Fraser-Fort George","Cariboo"]
[null,8982,"Jade City","No","No","No","Stikine Regional District (Unincorporated)","Nechako"]
[null,7930,"Jaffray","No","Yes","Yes","Regional District of East Kootenay","Kootenay"]
[null,9040,"Jersey","No","Yes","Yes","Regional District of Central Kootenay","Kootenay"]
[null,9032,"Johnsons Landing","Yes","Yes","No","Regional District of Central Kootenay","Kootenay"]
[null,9007,"Juskatla","No","No","No","North Coast Regional District","North Coast"]
[null,8598,"Kakawis","No","No","Yes","Regional District of Alberni-Clayoquot","Vancouver Island and Coast"]
[null,8002,"Kaleden","Yes","Yes","Yes","Regional District of Okanagan-Similkameen","Thompson--Okanagan"]
[null,8373,"Kamloops","Yes","Yes","Yes","Thompson-Nicola Regional District","Thompson--Okanagan"]
[null,8378,"Kamloops*","Yes","Yes","Yes","Thompson-Nicola Regional District","Thompson--Okanagan"]
[null,50704,"Kanaka Bar*","No","No","Yes","Thompson-Nicola Regional District","Thompson--Okanagan"]
[null,8011,"Kaslo","Yes","Yes","Yes","Regional District of Central Kootenay","Kootenay"]
[null,50563,"Katzie*","Yes","Yes","Yes","Metro Vancouver Regional District","Lower Mainland--Southwest"]
[null,8291,"Kedleston","Yes","Yes","Yes","Regional District of North Okanagan","Thompson--Okanagan"]
[null,9001,"Kelly Lake","No","No","Yes","Peace River Regional District","Northeast"]
[null,8133,"Kelowna","Yes","Yes","Yes","Regional District of Central Okanagan","Thompson--Okanagan"]
[null,8872,"Kemano","No","No","No","Regional District of Kitimat-Stikine","North Coast"]
[null,8580,"Kendrick Camp","No","No","No","Strathcona Regional District","Vancouver Island and Coast"]
[null,52635,"Keogh No.2 (Da'naxda'xw First Nation)*","No","No","No","Regional District of Mount Waddington","Vancouver Island and Coast"]
[null,7998,"Keremeos","Yes","Yes","Yes","Regional District of Okanagan-Similkameen","Thompson--Okanagan"]
[null,8451,"Kersley","No","Yes","Yes","Cariboo Regional District","Cariboo"]
[null,8036,"Kettle Valley","No","Yes","Yes","Regional District of Kootenay Boundary","Kootenay"]
[null,8885,"Kildala Arm","No","No","No","Regional District of Kitimat-Stikine","North Coast"]
[null,8941,"Kilkerran","No","Yes","Yes","Peace River Regional District","Northeast"]
[null,8285,"Killiney Beach","Yes","Yes","Yes","Regional District of Central Okanagan","Thompson--Okanagan"]
[null,8004,"Kimberley","Yes","Yes","Yes","Regional District of East Kootenay","Kootenay"]
[null,8622,"Kimsquit","No","No","No","Central Coast Regional District","Vancouver Island and Coast"]
[null,50636,"Kingcome (Dzawada'enuxw First Nation)*","No","No","No","Regional District of Mount Waddington","Vancouver Island and Coast"]
[null,9056,"Kingcome Inlet","No","No","No","Regional District of Mount Waddington","Vancouver Island and Coast"]
[null,8329,"Kingfisher","No","No","No","Regional District of North Okanagan","Thompson--Okanagan"]
[null,9041,"Kingsgate","No","Yes","No","Regional District of Central Kootenay","Kootenay"]
[null,7972,"Kinnaird","Yes","Yes","Yes","Regional District of Central Kootenay","Kootenay"]
[null,50532,"Kispiox*","Yes","Yes","Yes","Regional District of Kitimat-Stikine","North Coast"]
[null,50676,"Kitamaat Village (Haisla Nation)*","Yes","Yes","Yes","Regional District of Kitimat-Stikine","North Coast"]
[null,7942,"Kitchener","No","Yes","Yes","Regional District of Central Kootenay","Kootenay"]
[null,8874,"Kitimat","Yes","Yes","Yes","Regional District of Kitimat-Stikine","North Coast"]
[null,50672,"Kitkatla (Gitxaala Nation)*","No","No","No","North Coast Regional District","North Coast"]
[null,8893,"Kitsault","No","No","No","Regional District of Kitimat-Stikine","North Coast"]
[null,50535,"Kitseguecla (Gitsegukla)*","No","No","Yes","Regional District of Kitimat-Stikine","North Coast"]
[null,8863,"Kitselas*","No","Yes","Yes","Regional District of Kitimat-Stikine","North Coast"]
[null,50680,"Kitselas*","Yes","Yes","Yes","Regional District of Kitimat-Stikine","North Coast"]
[null,50681,"Kitsumkalum*","Yes","Yes","Yes","Regional District of Kitimat-Stikine","North Coast"]
[null,50536,"Kitwanga (Gitwangak)*","No","No","Yes","Regional District of Kitimat-Stikine","North Coast"]
[null,50553,"Klahoose First Nation*","No","No","Yes","Strathcona Regional District","Vancouver Island and Coast"]
[null,8516,"Kleena Kleene","No","No","No","Cariboo Regional District","Cariboo"]
[null,50540,"Klemtu (Kitasoo)*","No","Yes","Yes","Regional District of Kitimat-Stikine","North Coast"]
[null,50721,"Kluskus (Lhoosk'uz Dene Nation)*","No","No","No","Cariboo Regional District","Cariboo"]
[null,8958,"Kobes","No","No","Yes","Peace River Regional District","Northeast"]
[null,100130,"Koocanusa Marina","No","Yes","Yes","Regional District of East Kootenay","Kootenay"]
[null,9035,"Kootenay Bay","No","Yes","Yes","Regional District of Central Kootenay","Kootenay"]
[null,9047,"Kootenay Crossing","No","No","No","Regional District of East Kootenay","Kootenay"]
[null,100128,"Kragmont","No","Yes","Yes","Regional District of East Kootenay","Kootenay"]
[null,7978,"Krestova","Yes","Yes","Yes","Regional District of Central Kootenay","Kootenay"]
[null,8853,"'Ksan*","Yes","Yes","Yes","Regional District of Kitimat-Stikine","North Coast"]
[null,8029,"Kuskonook","No","No","Yes","Regional District of Central Kootenay","Kootenay"]
[null,50626,"Kwakiutl*","Yes","Yes","Yes","Regional District of Mount Waddington","Vancouver Island and Coast"]
[null,50564,"Kwantlen First Nation*","Yes","Yes","Yes","Metro Vancouver Regional District","Lower Mainland--Southwest"]
[null,50580,"Kwaw-kwaw-Apilt*","Yes","Yes","Yes","Fraser Valley Regional District","Lower Mainland--Southwest"]
[null,50628,"Kwiakah*","No","No","No","Strathcona Regional District","Vancouver Island and Coast"]
[null,50560,"Kwikwetlem First Nation*","Yes","Yes","Yes","Metro Vancouver Regional District","Lower Mainland--Southwest"]
[null,50638,"Kyuquot (Ka:'yu:'k't'h'/Che:k:tles7et'h' First Nations)*","No","No","No","Strathcona Regional District","Vancouver Island and Coast"]
[null,8476,"Lac la Hache","No","Yes","Yes","Cariboo Regional District","Cariboo"]
[null,8383,"Lac Le Jeune","No","No","Yes","Thompson-Nicola Regional District","Thompson--Okanagan"]
[null,8091,"Ladner","Yes","Yes","Yes","Metro Vancouver Regional District","Lower Mainland--Southwest"]
[null,8691,"Ladysmith","Yes","Yes","Yes","Cowichan Valley Regional District","Vancouver Island and Coast"]
[null,8045,"Laidlaw","No","Yes","Yes","Fraser Valley Regional District","Lower Mainland--Southwest"]
[null,50607,"Lake Babine Nation*","No","Yes","Yes","Bulkley Nechako Regional District","Nechako"]
[null,8795,"Lake Babine*","Yes","Yes","Yes","Bulkley Nechako Regional District","Nechako"]
[null,8613,"Lake Cowichan","Yes","Yes","Yes","Cowichan Valley Regional District","Vancouver Island and Coast"]
[null,50643,"Lake Cowichan First Nation*","Yes","Yes","Yes","Cowichan Valley Regional District","Vancouver Island and Coast"]
[null,8097,"Lake Errock","Yes","Yes","Yes","Fraser Valley Regional District","Lower Mainland--Southwest"]
[null,8876,"Lakelse Lake","No","Yes","Yes","Regional District of Kitimat-Stikine","North Coast"]
[null,8197,"Lang Bay","Yes","Yes","Yes","qathet Regional District","Vancouver Island and Coast"]
[null,8179,"Langdale","Yes","Yes","Yes","Sunshine Coast Regional District","Lower Mainland--Southwest"]
[null,8644,"Langford","Yes","Yes","Yes","Capital Regional District","Vancouver Island and Coast"]
[null,8079,"Langley","Yes","Yes","Yes","Metro Vancouver Regional District","Lower Mainland--Southwest"]
[null,8705,"Lantzville","Yes","Yes","Yes","Regional District of Nanaimo","Vancouver Island and Coast"]
[null,8023,"Lardeau","Yes","Yes","No","Regional District of Central Kootenay","Kootenay"]
[null,8203,"Lasqueti","No","No","Yes","qathet Regional District","Vancouver Island and Coast"]
[null,8150,"Lavington","Yes","Yes","Yes","Regional District of North Okanagan","Thompson--Okanagan"]
[null,9010,"Lawnhill","Yes","Yes","Yes","North Coast Regional District","North Coast"]
[null,50674,"Lax Kw'alaams*","No","No","No","North Coast Regional District","North Coast"]
[null,50678,"Laxgalts'ap (Nisga'a Village of Laxgalt'sap)*","No","No","Yes","Regional District of Kitimat-Stikine","North Coast"]
[null,8735,"Lazo","Yes","Yes","Yes","Comox Valley Regional District","Vancouver Island and Coast"]
[null,100138,"Lazy Lake","No","No","Yes","Regional District of East Kootenay","Kootenay"]
[null,100120,"Lebahdo","No","Yes","No","Regional District of Central Kootenay","Kootenay"]
[null,8364,"Lee Creek","Yes","Yes","Yes","Columbia-Shuswap Regional District","Thompson--Okanagan"]
[null,100116,"Lemon Creek","No","Yes","No","Regional District of Central Kootenay","Kootenay"]
[null,8911,"Lemoray","No","No","Yes","Peace River Regional District","Northeast"]
[null,9058,"Leo Creek","No","No","No","Bulkley Nechako Regional District","Nechako"]
[null,8094,"Leq' a: mel","Yes","Yes","Yes","Fraser Valley Regional District","Lower Mainland--Southwest"]
[null,8096,"Leq' a: mel*","Yes","Yes","Yes","Fraser Valley Regional District","Lower Mainland--Southwest"]
[null,100145,"Lewis Bay","No","Yes","Yes","Regional District of Central Kootenay","Kootenay"]
[null,50611,"Lheidli T'enneh*","Yes","Yes","Yes","Regional District of Fraser-Fort George","Cariboo"]
[null,8977,"Liard River","No","No","No","Northern Rockies Regional Municipality","Northeast"]
[null,8682,"Lighthouse Point","No","No","Yes","Capital Regional District","Vancouver Island and Coast"]
[null,8447,"Likely","No","No","No","Cariboo Regional District","Cariboo"]
[null,8246,"Lillooet","No","Yes","Yes","Squamish-Lillooet Regional District","Lower Mainland--Southwest"]
[null,8064,"Lindell Beach","Yes","Yes","Yes","Fraser Valley Regional District","Lower Mainland--Southwest"]
[null,8125,"Lions Bay","Yes","Yes","Yes","Metro Vancouver Regional District","Lower Mainland--Southwest"]
[null,7945,"Lister","No","Yes","Yes","Regional District of Central Kootenay","Kootenay"]
[null,8396,"Little Fort","No","Yes","Yes","Thompson-Nicola Regional District","Thompson--Okanagan"]
[null,8734,"Little River","Yes","Yes","Yes","Comox Valley Regional District","Vancouver Island and Coast"]
[null,50689,"Little Shuswap Lake*","No","Yes","Yes","Columbia-Shuswap Regional District","Thompson--Okanagan"]
[null,8276,"Logan Lake","No","No","Yes","Thompson-Nicola Regional District","Thompson--Okanagan"]
[null,8492,"Lone Butte","No","No","Yes","Cariboo Regional District","Cariboo"]
[null,8497,"Loon Lake","No","No","Yes","Thompson-Nicola Regional District","Thompson--Okanagan"]
[null,8414,"Loos","No","No","Yes","Regional District of Fraser-Fort George","Cariboo"]
[null,8391,"Louis Creek","No","No","Yes","Thompson-Nicola Regional District","Thompson--Okanagan"]
[null,8256,"Lower Hat Creek 2 (Bonaparte)*","No","No","No","Thompson-Nicola Regional District","Thompson--Okanagan"]
[null,50606,"Lower Kootenay*","Yes","Yes","Yes","Regional District of Central Kootenay","Kootenay"]
[null,8239,"Lower Nicola","Yes","Yes","Yes","Thompson-Nicola Regional District","Thompson--Okanagan"]
[null,8992,"Lower Post*","No","No","No","Stikine Regional District (Unincorporated)","Nechako"]
[null,50598,"Lower Similkameen*","No","No","Yes","Regional District of Okanagan-Similkameen","Thompson--Okanagan"]
[null,9042,"Lumberton","No","No","Yes","Regional District of East Kootenay","Kootenay"]
[null,8149,"Lumby","Yes","Yes","Yes","Regional District of North Okanagan","Thompson--Okanagan"]
[null,8213,"Lund","No","No","Yes","qathet Regional District","Vancouver Island and Coast"]
[null,50646,"Lyackson*","No","No","Yes","Cowichan Valley Regional District","Vancouver Island and Coast"]
[null,8117,"Lynn Valley","Yes","Yes","Yes","Metro Vancouver Regional District","Lower Mainland--Southwest"]
[null,8237,"Lytton","Yes","Yes","Yes","Thompson-Nicola Regional District","Thompson--Okanagan"]
[null,8236,"Lytton*","No","No","Yes","Thompson-Nicola Regional District","Thompson--Okanagan"]
[null,8244,"Lytton*","No","No","Yes","Thompson-Nicola Regional District","Thompson--Okanagan"]
[null,8259,"Lytton*","No","No","No","Thompson-Nicola Regional District","Thompson--Okanagan"]
[null,50705,"Lytton*","Yes","Yes","Yes","Thompson-Nicola Regional District","Thompson--Okanagan"]
[null,8801,"Mackenzie","Yes","Yes","Yes","Regional District of Fraser-Fort George","Cariboo"]
[null,8189,"Madeira Park","Yes","Yes","Yes","Sunshine Coast Regional District","Lower Mainland--Southwest"]
[null,8361,"Magna Bay","No","Yes","Yes","Columbia-Shuswap Regional District","Thompson--Okanagan"]
[null,8544,"Mahatta River","No","No","No","Regional District of Mount Waddington","Vancouver Island and Coast"]
[null,8489,"Mahood Falls","No","No","No","Cariboo Regional District","Cariboo"]
[null,100104,"Majestic Subdivision","No","Yes","Yes","Regional District of Central Kootenay","Kootenay"]
[null,8670,"Malahat","Yes","Yes","Yes","Cowichan Valley Regional District","Vancouver Island and Coast"]
[null,50647,"Malahat Nation*","Yes","Yes","Yes","Cowichan Valley Regional District","Vancouver Island and Coast"]
[null,8325,"Malakwa","No","No","Yes","Columbia-Shuswap Regional District","Thompson--Okanagan"]
[null,8214,"Malibu","No","No","No","Sunshine Coast Regional District","Lower Mainland--Southwest"]
[null,50629,"Mamalilikulla-Qwe'Qwa'Sot'Em (Mamalilikulla First Nation)*","No","No","Yes","Regional District of Mount Waddington","Vancouver Island and Coast"]
[null,8040,"Manning Park","No","Yes","No","Regional District of Okanagan-Similkameen","Thompson--Okanagan"]
[null,8902,"Manson Creek","No","No","No","Bulkley Nechako Regional District","Nechako"]
[null,8216,"Mansons Landing","No","No","Yes","Strathcona Regional District","Vancouver Island and Coast"]
[null,8807,"Mapes","Yes","Yes","Yes","Bulkley Nechako Regional District","Nechako"]
[null,8679,"Maple Bay","Yes","Yes","Yes","Cowichan Valley Regional District","Vancouver Island and Coast"]
[null,8127,"Maple Ridge","Yes","Yes","Yes","Metro Vancouver Regional District","Lower Mainland--Southwest"]
[null,8308,"Mara","Yes","Yes","Yes","Regional District of North Okanagan","Thompson--Okanagan"]
[null,8820,"Marilla","No","No","No","Bulkley Nechako Regional District","Nechako"]
[null,8592,"Marktosis*","No","No","No","Regional District of Alberni-Clayoquot","Vancouver Island and Coast"]
[null,8195,"Marshall School Junction","No","No","Yes","qathet Regional District","Vancouver Island and Coast"]
[null,8320,"Martin Prairie","No","No","Yes","Thompson-Nicola Regional District","Thompson--Okanagan"]
[null,10003,"Martin Valley","No","No","No","Central Coast Regional District","Vancouver Island and Coast"]
[null,8008,"Marysville","Yes","Yes","Yes","Regional District of East Kootenay","Kootenay"]
[null,9003,"Masset","No","Yes","Yes","North Coast Regional District","North Coast"]
[null,8767,"Matilpi","No","No","No","Strathcona Regional District","Vancouver Island and Coast"]
[null,8071,"Matsqui","Yes","Yes","Yes","Fraser Valley Regional District","Lower Mainland--Southwest"]
[null,8076,"Matsqui*","Yes","Yes","Yes","Metro Vancouver Regional District","Lower Mainland--Southwest"]
[null,50565,"Matsqui*","Yes","Yes","Yes","Fraser Valley Regional District","Lower Mainland--Southwest"]
[null,8684,"Mayne","No","No","Yes","Capital Regional District","Vancouver Island and Coast"]
[null,7933,"Mayook","No","No","Yes","Regional District of East Kootenay","Kootenay"]
[null,8412,"McBride","No","Yes","Yes","Regional District of Fraser-Fort George","Cariboo"]
[null,9026,"McCulloch","No","No","Yes","Regional District of Central Okanagan","Thompson--Okanagan"]
[null,8980,"McDame","No","No","No","Stikine Regional District (Unincorporated)","Nechako"]
[null,8821,"McDonalds Landing","No","No","No","Bulkley Nechako Regional District","Nechako"]
[null,8964,"McKearney Ranch","No","No","Yes","Peace River Regional District","Northeast"]
[null,8453,"McLeese Lake","No","No","Yes","Cariboo Regional District","Cariboo"]
[null,50618,"McLeod Lake*","No","No","Yes","Regional District of Fraser-Fort George","Cariboo"]
[null,8390,"McLure","No","Yes","Yes","Thompson-Nicola Regional District","Thompson--Okanagan"]
[null,9044,"Meachen","No","No","No","Regional District of East Kootenay","Kootenay"]
[null,8021,"Meadow Creek","No","Yes","No","Regional District of Central Kootenay","Kootenay"]
[null,100137,"Meadowbrook","No","Yes","Yes","Regional District of East Kootenay","Kootenay"]
[null,9039,"Meadows","No","Yes","No","Regional District of Central Kootenay","Kootenay"]
[null,8240,"Merritt","Yes","Yes","Yes","Thompson-Nicola Regional District","Thompson--Okanagan"]
[null,8744,"Merville","Yes","Yes","Yes","Comox Valley Regional District","Vancouver Island and Coast"]
[null,8612,"Mesachie Lake","Yes","Yes","Yes","Cowichan Valley Regional District","Vancouver Island and Coast"]
[null,8641,"Metchosin","Yes","Yes","Yes","Capital Regional District","Vancouver Island and Coast"]
[null,50673,"Metlakatla First Nation*","Yes","Yes","Yes","North Coast Regional District","North Coast"]
[null,8896,"Meziadin Junction","No","No","No","Regional District of Kitimat-Stikine","North Coast"]
[null,8403,"Mica Creek","No","No","No","Columbia-Shuswap Regional District","Thompson--Okanagan"]
[null,8840,"Middle River*","No","No","No","Bulkley Nechako Regional District","Nechako"]
[null,7989,"Midway","Yes","Yes","Yes","Regional District of Kootenay Boundary","Kootenay"]
[null,8928,"Mile 62 1/2","No","No","Yes","Peace River Regional District","Northeast"]
[null,8668,"Mill Bay","Yes","Yes","Yes","Cowichan Valley Regional District","Vancouver Island and Coast"]
[null,100587,"Miller Creek","Yes","Yes","No","North Coast Regional District","North Coast"]
[null,8568,"Minstrel Island","No","No","No","Regional District of Mount Waddington","Vancouver Island and Coast"]
[null,8467,"Miocene","No","No","No","Cariboo Regional District","Cariboo"]
[null,9034,"Mirror Lake","Yes","Yes","Yes","Regional District of Central Kootenay","Kootenay"]
[null,8077,"Mission","Yes","Yes","Yes","Fraser Valley Regional District","Lower Mainland--Southwest"]
[null,8557,"Mitchell Bay","No","No","Yes","Regional District of Mount Waddington","Vancouver Island and Coast"]
[null,8427,"Miworth","Yes","Yes","Yes","Regional District of Fraser-Fort George","Cariboo"]
[null,8922,"Moberly Lake","No","No","Yes","Peace River Regional District","Northeast"]
[null,100142,"Moberly School Rd.","No","No","Yes","Columbia-Shuswap Regional District","Thompson--Okanagan"]
[null,8258,"Moha","No","No","No","Squamish-Lillooet Regional District","Lower Mainland--Southwest"]
[null,8368,"Monte Creek","Yes","Yes","Yes","Thompson-Nicola Regional District","Thompson--Okanagan"]
[null,8316,"Monte Lake","No","Yes","Yes","Thompson-Nicola Regional District","Thompson--Okanagan"]
[null,8948,"Montney","No","Yes","Yes","Peace River Regional District","Northeast"]
[null,7964,"Montrose","Yes","Yes","Yes","Regional District of Kootenay Boundary","Kootenay"]
[null,8629,"Mooyah Bay","No","No","No","Strathcona Regional District","Vancouver Island and Coast"]
[null,9017,"Moresby Camp","No","No","No","North Coast Regional District","North Coast"]
[null,50530,"Moricetown (Witset First Nation)*","Yes","Yes","Yes","Regional District of Kitimat-Stikine","North Coast"]
[null,7992,"Mount Baldy","No","Yes","Yes","Regional District of Kootenay Boundary","Kootenay"]
[null,8166,"Mount Currie","Yes","Yes","Yes","Squamish-Lillooet Regional District","Lower Mainland--Southwest"]
[null,50557,"Mount Currie (Lil'wat Nation)*","Yes","Yes","Yes","Squamish-Lillooet Regional District","Lower Mainland--Southwest"]
[null,8410,"Mount Robson","No","No","No","Regional District of Fraser-Fort George","Cariboo"]
[null,50630,"Mowachaht/Muchalaht*","No","No","No","Strathcona Regional District","Vancouver Island and Coast"]
[null,7940,"Moyie","Yes","Yes","Yes","Regional District of East Kootenay","Kootenay"]
[null,8725,"Mud Bay","Yes","Yes","Yes","Comox Valley Regional District","Vancouver Island and Coast"]
[null,8834,"Mud River","No","No","Yes","Regional District of Fraser-Fort George","Cariboo"]
[null,8976,"Muncho Lake","No","No","No","Northern Rockies Regional Municipality","Northeast"]
[null,8078,"Murrayville","Yes","Yes","Yes","Metro Vancouver Regional District","Lower Mainland--Southwest"]
[null,8674,"Musgrave Landing","No","No","Yes","Capital Regional District","Vancouver Island and Coast"]
[null,50550,"Musqueam*","Yes","Yes","Yes","Metro Vancouver Regional District","Lower Mainland--Southwest"]
[null,8199,"Myrtle Point","Yes","Yes","Yes","qathet Regional District","Vancouver Island and Coast"]
[null,50612,"Nadleh Whuten*","Yes","Yes","Yes","Bulkley Nechako Regional District","Nechako"]
[null,8288,"Nahun","No","Yes","Yes","Regional District of Central Okanagan","Thompson--Okanagan"]
[null,50614,"Nak'azdli Whut'en*","Yes","Yes","Yes","Bulkley Nechako Regional District","Nechako"]
[null,8838,"Nak'azdli*","Yes","Yes","No","Bulkley Nechako Regional District","Nechako"]
[null,8026,"Nakusp","Yes","Yes","Yes","Regional District of Central Kootenay","Kootenay"]
[null,50631,"Namgis First Nation*","No","No","Yes","Regional District of Mount Waddington","Vancouver Island and Coast"]
[null,8624,"Namu","No","No","No","Central Coast Regional District","Vancouver Island and Coast"]
[null,8702,"Nanaimo","Yes","Yes","Yes","Regional District of Nanaimo","Vancouver Island and Coast"]
[null,8707,"Nanoose Bay","Yes","Yes","Yes","Regional District of Nanaimo","Vancouver Island and Coast"]
[null,50649,"Nanoose First Nation*","Yes","Yes","Yes","Regional District of Nanaimo","Vancouver Island and Coast"]
[null,8131,"Naramata","Yes","Yes","Yes","Regional District of Okanagan-Similkameen","Thompson--Okanagan"]
[null,8891,"Nass Camp","No","No","No","Regional District of Kitimat-Stikine","North Coast"]
[null,8528,"Nazko","No","No","No","Cariboo Regional District","Cariboo"]
[null,50720,"Nazko First Nation*","No","No","No","Cariboo Regional District","Cariboo"]
[null,8527,"Nazko*","No","No","No","Cariboo Regional District","Cariboo"]
[null,8815,"Nee-Tahi-Buhn*","Yes","Yes","Yes","Bulkley Nechako Regional District","Nechako"]
[null,50726,"Nee-Tahi-Buhn*","No","No","No","Bulkley Nechako Regional District","Nechako"]
[null,7957,"Nelson","Yes","Yes","Yes","Regional District of Central Kootenay","Kootenay"]
[null,8032,"Nelway","No","Yes","No","Regional District of Central Kootenay","Kootenay"]
[null,8773,"Nemaiah Valley","No","No","No","Cariboo Regional District","Cariboo"]
[null,51637,"Nenagwas (Tlowitsis Nation)*","No","No","Yes","Strathcona Regional District","Vancouver Island and Coast"]
[null,50690,"Neskonlith*","Yes","Yes","Yes","Thompson-Nicola Regional District","Thompson--Okanagan"]
[null,50677,"New Aiyansh (Nisga'a Village of New Aiyansh)*","No","No","Yes","Regional District of Kitimat-Stikine","North Coast"]
[null,8176,"New Brighton","No","Yes","Yes","Sunshine Coast Regional District","Lower Mainland--Southwest"]
[null,7961,"New Denver","Yes","Yes","Yes","Regional District of Central Kootenay","Kootenay"]
[null,8849,"New Hazelton","No","Yes","Yes","Regional District of Kitimat-Stikine","North Coast"]
[null,8106,"New Westminster","Yes","Yes","Yes","Metro Vancouver Regional District","Lower Mainland--Southwest"]
[null,50566,"New Westminster*","Yes","Yes","Yes","Metro Vancouver Regional District","Lower Mainland--Southwest"]
[null,7987,"Niagara","No","No","No","Regional District of Kootenay Boundary","Kootenay"]
[null,8336,"Nicholson","Yes","Yes","Yes","Columbia-Shuswap Regional District","Thompson--Okanagan"]
[null,50696,"Nicomen*","No","No","Yes","Thompson-Nicola Regional District","Thompson--Okanagan"]
[null,8569,"Nimpkish","No","No","No","Regional District of Mount Waddington","Vancouver Island and Coast"]
[null,8520,"Nimpo Lake","No","No","No","Cariboo Regional District","Cariboo"]
[null,50671,"Nisga'a Village of Gingolx*","No","No","Yes","Regional District of Kitimat-Stikine","North Coast"]
[null,50699,"Nooaitch*","No","No","No","Thompson-Nicola Regional District","Thompson--Okanagan"]
[null,8579,"Nootka","No","No","No","Strathcona Regional District","Vancouver Island and Coast"]
[null,8822,"Noralee","No","No","No","Bulkley Nechako Regional District","Nechako"]
[null,100144,"Norbury Lake","No","No","Yes","Regional District of East Kootenay","Kootenay"]
[null,8231,"North Bend","Yes","Yes","Yes","Fraser Valley Regional District","Lower Mainland--Southwest"]
[null,8090,"North Delta","Yes","Yes","Yes","Metro Vancouver Regional District","Lower Mainland--Southwest"]
[null,100139,"North Premier Lake","No","No","Yes","Regional District of East Kootenay","Kootenay"]
[null,8662,"North Saanich","Yes","Yes","Yes","Capital Regional District","Vancouver Island and Coast"]
[null,8110,"North Vancouver","Yes","Yes","Yes","Metro Vancouver Regional District","Lower Mainland--Southwest"]
[null,8356,"Notch Hill","No","No","Yes","Columbia-Shuswap Regional District","Thompson--Okanagan"]
[null,50556,"N'Quatqua*","No","No","No","Squamish-Lillooet Regional District","Lower Mainland--Southwest"]
[null,50639,"Nuchatlaht*","No","No","No","Strathcona Regional District","Vancouver Island and Coast"]
[null,8776,"Nukko Lake","Yes","Yes","Yes","Regional District of Fraser-Fort George","Cariboo"]
[null,8829,"Nulki*","Yes","Yes","Yes","Bulkley Nechako Regional District","Nechako"]
[null,100154,"Nursery","Yes","Yes","Yes","Regional District of Kootenay Boundary","Kootenay"]
[null,50539,"Nuxalk Nation*","No","No","Yes","Central Coast Regional District","Vancouver Island and Coast"]
[null,8645,"Oak Bay","Yes","Yes","Yes","Capital Regional District","Vancouver Island and Coast"]
[null,8532,"Ocean Falls","No","No","No","Central Coast Regional District","Vancouver Island and Coast"]
[null,8751,"Ocean Grove","Yes","Yes","Yes","Strathcona Regional District","Vancouver Island and Coast"]
[null,8171,"Ogden","No","No","No","Squamish-Lillooet Regional District","Lower Mainland--Southwest"]
[null,8147,"Okanagan Centre","Yes","Yes","Yes","Regional District of Central Okanagan","Thompson--Okanagan"]
[null,8037,"Okanagan Falls","Yes","Yes","Yes","Regional District of Okanagan-Similkameen","Thompson--Okanagan"]
[null,8138,"Okanagan Mission","Yes","Yes","Yes","Regional District of Central Okanagan","Thompson--Okanagan"]
[null,8144,"Okanagan*","Yes","Yes","Yes","Regional District of Central Okanagan","Thompson--Okanagan"]
[null,8284,"Okanagan*","Yes","Yes","Yes","Regional District of North Okanagan","Thompson--Okanagan"]
[null,8293,"Okanagan*","No","Yes","Yes","Regional District of North Okanagan","Thompson--Okanagan"]
[null,8296,"Okanagan*","No","Yes","Yes","Columbia-Shuswap Regional District","Thompson--Okanagan"]
[null,50616,"Okanagan*","Yes","Yes","Yes","Regional District of North Okanagan","Thompson--Okanagan"]
[null,8038,"Olalla","No","Yes","Yes","Regional District of Okanagan-Similkameen","Thompson--Okanagan"]
[null,8933,"Old Fort","Yes","Yes","Yes","Peace River Regional District","Northeast"]
[null,8798,"Old Fort*","Yes","Yes","Yes","Bulkley Nechako Regional District","Nechako"]
[null,50669,"Old Massett (Old Massett Village Council)*","No","Yes","Yes","North Coast Regional District","North Coast"]
[null,9043,"Old Town","No","No","Yes","Regional District of East Kootenay","Kootenay"]
[null,7996,"Oliver","Yes","Yes","Yes","Regional District of Okanagan-Similkameen","Thompson--Okanagan"]
[null,9050,"Oliver's Landing","Yes","Yes","Yes","Squamish-Lillooet Regional District","Lower Mainland--Southwest"]
[null,8880,"Oona River","No","No","Yes","North Coast Regional District","North Coast"]
[null,7969,"Ootischenia","Yes","Yes","Yes","Regional District of Central Kootenay","Kootenay"]
[null,8824,"Ootsa Lake","No","No","No","Bulkley Nechako Regional District","Nechako"]
[null,50660,"Opitsat (Tla-o-qui-aht First Nations)*","No","No","Yes","Regional District of Alberni-Clayoquot","Vancouver Island and Coast"]
[null,8270,"Oregon Jack Creek*","No","No","Yes","Thompson-Nicola Regional District","Thompson--Okanagan"]
[null,8950,"Osborn","No","No","Yes","Peace River Regional District","Northeast"]
[null,8878,"Osland","No","No","No","North Coast Regional District","North Coast"]
[null,7993,"Osoyoos","Yes","Yes","Yes","Regional District of Okanagan-Similkameen","Thompson--Okanagan"]
[null,50596,"Osoyoos*","Yes","Yes","Yes","Regional District of Okanagan-Similkameen","Thompson--Okanagan"]
[null,50541,"Oweekeno (Wuikinuxv Nation)*","No","No","No","Central Coast Regional District","Vancouver Island and Coast"]
[null,9057,"Owen Bay","No","No","No","Strathcona Regional District","Vancouver Island and Coast"]
[null,8148,"Oyama","Yes","Yes","Yes","Regional District of Central Okanagan","Thompson--Okanagan"]
[null,8746,"Oyster River","Yes","Yes","Yes","Strathcona Regional District","Vancouver Island and Coast"]
[null,50658,"Pacheedaht First Nation*","No","No","No","Capital Regional District","Vancouver Island and Coast"]
[null,8018,"Panorama","No","Yes","Yes","Regional District of East Kootenay","Kootenay"]
[null,7983,"Park Siding","No","Yes","No","Regional District of Kootenay Boundary","Kootenay"]
[null,8709,"Parksville","Yes","Yes","Yes","Regional District of Nanaimo","Vancouver Island and Coast"]
[null,8337,"Parson","No","No","No","Columbia-Shuswap Regional District","Thompson--Okanagan"]
[null,100149,"Pass Creek","No","No","No","Regional District of East Kootenay","Kootenay"]
[null,100122,"Passmore","No","Yes","No","Regional District of Central Kootenay","Kootenay"]
[null,8033,"Paterson","No","No","No","Regional District of Kootenay Boundary","Kootenay"]
[null,50652,"Pauquachin*","Yes","Yes","Yes","Capital Regional District","Vancouver Island and Coast"]
[null,50594,"Pavilion (Ts'kw'aylaxw First Nation)*","No","No","No","Squamish-Lillooet Regional District","Lower Mainland--Southwest"]
[null,8132,"Peachland","Yes","Yes","Yes","Regional District of Central Okanagan","Thompson--Okanagan"]
[null,8951,"Peejay","No","No","Yes","Peace River Regional District","Northeast"]
[null,8165,"Pemberton","Yes","Yes","Yes","Squamish-Lillooet Regional District","Lower Mainland--Southwest"]
[null,8170,"Pemberton Meadows","Yes","Yes","Yes","Squamish-Lillooet Regional District","Lower Mainland--Southwest"]
[null,8842,"Pendleton Bay","No","No","No","Bulkley Nechako Regional District","Nechako"]
[null,50650,"Penelakut (Penelakut Tribe)*","Yes","Yes","Yes","Cowichan Valley Regional District","Vancouver Island and Coast"]
[null,8416,"Penny","No","No","Yes","Regional District of Fraser-Fort George","Cariboo"]
[null,8001,"Penticton","Yes","Yes","Yes","Regional District of Okanagan-Similkameen","Thompson--Okanagan"]
[null,50597,"Penticton*","Yes","Yes","Yes","Regional District of Okanagan-Similkameen","Thompson--Okanagan"]
[null,8792,"Perow","Yes","Yes","No","Bulkley Nechako Regional District","Nechako"]
[null,100117,"Perrys","No","Yes","No","Regional District of Central Kootenay","Kootenay"]
[null,50586,"Peters First Nation*","Yes","Yes","Yes","Fraser Valley Regional District","Lower Mainland--Southwest"]
[null,9052,"Phillips Arm","No","No","No","Strathcona Regional District","Vancouver Island and Coast"]
[null,8367,"Pinantan Lake","No","No","No","Thompson-Nicola Regional District","Thompson--Okanagan"]
[null,8804,"Pinchi Lake","No","No","Yes","Bulkley Nechako Regional District","Nechako"]
[null,8805,"Pinchi*","No","No","No","Bulkley Nechako Regional District","Nechako"]
[null,8463,"Pine Valley","Yes","Yes","Yes","Cariboo Regional District","Cariboo"]
[null,8908,"Pine Valley","No","No","Yes","Peace River Regional District","Northeast"]
[null,8201,"Pinetree","Yes","Yes","Yes","qathet Regional District","Vancouver Island and Coast"]
[null,8431,"Pineview","No","No","Yes","Regional District of Fraser-Fort George","Cariboo"]
[null,8960,"Pink Mountain","No","No","Yes","Peace River Regional District","Northeast"]
[null,8126,"Pitt Meadows","Yes","Yes","Yes","Metro Vancouver Regional District","Lower Mainland--Southwest"]
[null,100125,"Playmor Junction","Yes","Yes","Yes","Regional District of Central Kootenay","Kootenay"]
[null,8994,"Pleasant Camp","No","No","No","Stikine Regional District (Unincorporated)","Nechako"]
[null,8113,"Pleasantside","Yes","Yes","Yes","Metro Vancouver Regional District","Lower Mainland--Southwest"]
[null,8190,"Pope Landing","Yes","Yes","Yes","Sunshine Coast Regional District","Lower Mainland--Southwest"]
[null,8055,"Popkum","Yes","Yes","Yes","Fraser Valley Regional District","Lower Mainland--Southwest"]
[null,50585,"Popkum*","No","Yes","Yes","Fraser Valley Regional District","Lower Mainland--Southwest"]
[null,8882,"Porcher Island","No","No","Yes","North Coast Regional District","North Coast"]
[null,8737,"Port Alberni","Yes","Yes","Yes","Regional District of Alberni-Clayoquot","Vancouver Island and Coast"]
[null,8561,"Port Alice","No","No","Yes","Regional District of Mount Waddington","Vancouver Island and Coast"]
[null,9006,"Port Clements","Yes","Yes","Yes","North Coast Regional District","North Coast"]
[null,8114,"Port Coquitlam","Yes","Yes","Yes","Metro Vancouver Regional District","Lower Mainland--Southwest"]
[null,8870,"Port Edward","Yes","Yes","Yes","North Coast Regional District","North Coast"]
[null,8550,"Port Hardy","Yes","Yes","Yes","Regional District of Mount Waddington","Vancouver Island and Coast"]
[null,8553,"Port McNeill","Yes","Yes","Yes","Regional District of Mount Waddington","Vancouver Island and Coast"]
[null,8107,"Port Moody","Yes","Yes","Yes","Metro Vancouver Regional District","Lower Mainland--Southwest"]
[null,8768,"Port Neville","No","No","Yes","Strathcona Regional District","Vancouver Island and Coast"]
[null,8608,"Port Renfrew","No","No","No","Capital Regional District","Vancouver Island and Coast"]
[null,8685,"Port Washington","No","No","Yes","Capital Regional District","Vancouver Island and Coast"]
[null,8909,"Powder King","No","No","No","Regional District of Fraser-Fort George","Cariboo"]
[null,8208,"Powell River","Yes","Yes","Yes","qathet Regional District","Vancouver Island and Coast"]
[null,9046,"Premier Lake","No","No","Yes","Regional District of East Kootenay","Kootenay"]
[null,8953,"Prespatou","No","Yes","Yes","Peace River Regional District","Northeast"]
[null,8422,"Prince George","Yes","Yes","Yes","Regional District of Fraser-Fort George","Cariboo"]
[null,8868,"Prince Rupert","Yes","Yes","Yes","North Coast Regional District","North Coast"]
[null,8039,"Princeton","Yes","Yes","Yes","Regional District of Okanagan-Similkameen","Thompson--Okanagan"]
[null,8321,"Pritchard","No","No","Yes","Thompson-Nicola Regional District","Thompson--Okanagan"]
[null,7951,"Procter","Yes","Yes","Yes","Regional District of Central Kootenay","Kootenay"]
[null,8919,"Progress","No","Yes","Yes","Peace River Regional District","Northeast"]
[null,8060,"Promontory","Yes","Yes","Yes","Fraser Valley Regional District","Lower Mainland--Southwest"]
[null,50544,"Prophet River First Nation*","No","No","Yes","Northern Rockies Regional Municipality","Northeast"]
[null,8530,"Punchaw","No","No","No","Regional District of Fraser-Fort George","Cariboo"]
[null,8721,"Qualicum Bay","Yes","Yes","Yes","Regional District of Nanaimo","Vancouver Island and Coast"]
[null,8711,"Qualicum Beach","Yes","Yes","Yes","Regional District of Nanaimo","Vancouver Island and Coast"]
[null,50651,"Qualicum First Nation*","Yes","Yes","Yes","Regional District of Nanaimo","Vancouver Island and Coast"]
[null,8754,"Quathiaski Cove","No","No","Yes","Strathcona Regional District","Vancouver Island and Coast"]
[null,8546,"Quatsino","No","No","Yes","Regional District of Mount Waddington","Vancouver Island and Coast"]
[null,50633,"Quatsino First Nation*","No","No","Yes","Regional District of Mount Waddington","Vancouver Island and Coast"]
[null,100118,"Queens Bay","Yes","Yes","Yes","Regional District of Central Kootenay","Kootenay"]
[null,8575,"Queens Cove","No","No","No","Strathcona Regional District","Vancouver Island and Coast"]
[null,8439,"Quesnel","Yes","Yes","Yes","Cariboo Regional District","Cariboo"]
[null,8450,"Quesnel Forks","No","No","No","Cariboo Regional District","Cariboo"]
[null,100360,"Quilchena*","No","Yes","Yes","Thompson-Nicola Regional District","Thompson--Okanagan"]
[null,8019,"Radium Hot Springs","Yes","Yes","Yes","Regional District of East Kootenay","Kootenay"]
[null,8305,"Ranchero","Yes","Yes","Yes","Columbia-Shuswap Regional District","Thompson--Okanagan"]
[null,7973,"Raspberry","Yes","Yes","Yes","Regional District of Central Kootenay","Kootenay"]
[null,8374,"Rayleigh","Yes","Yes","Yes","Thompson-Nicola Regional District","Thompson--Okanagan"]
[null,8219,"Read Island","No","No","Yes","Strathcona Regional District","Vancouver Island and Coast"]
[null,8440,"Red Bluff","Yes","Yes","Yes","Cariboo Regional District","Cariboo"]
[null,50715,"Red Bluff (Lhtako Dene Nation)*","Yes","Yes","Yes","Cariboo Regional District","Cariboo"]
[null,100148,"Red Mountain Rd","No","Yes","Yes","Regional District of Central Kootenay","Kootenay"]
[null,8432,"Red Rock","No","No","Yes","Regional District of Fraser-Fort George","Cariboo"]
[null,9060,"Redstone","No","No","No","Cariboo Regional District","Cariboo"]
[null,8759,"Refuge Cove","No","No","No","Strathcona Regional District","Vancouver Island and Coast"]
[null,8836,"Reid Lake","Yes","Yes","Yes","Regional District of Fraser-Fort George","Cariboo"]
[null,8877,"Remo","Yes","Yes","Yes","Regional District of Kitimat-Stikine","North Coast"]
[null,9020,"Renata","No","No","No","Regional District of Central Kootenay","Kootenay"]
[null,9028,"Retallack","Yes","Yes","No","Regional District of Central Kootenay","Kootenay"]
[null,8328,"Revelstoke","Yes","Yes","Yes","Columbia-Shuswap Regional District","Thompson--Okanagan"]
[null,9023,"Rhone","No","No","No","Regional District of Kootenay Boundary","Kootenay"]
[null,8442,"Rich Bar","Yes","Yes","Yes","Cariboo Regional District","Cariboo"]
[null,8092,"Richmond","Yes","Yes","Yes","Metro Vancouver Regional District","Lower Mainland--Southwest"]
[null,7953,"Riondel","No","Yes","Yes","Regional District of Central Kootenay","Kootenay"]
[null,8471,"Riske Creek","No","No","No","Cariboo Regional District","Cariboo"]
[null,8619,"River Jordan","No","No","No","Capital Regional District","Vancouver Island and Coast"]
[null,8535,"Rivers Inlet","No","No","No","Central Coast Regional District","Vancouver Island and Coast"]
[null,8180,"Roberts Creek","Yes","Yes","Yes","Sunshine Coast Regional District","Lower Mainland--Southwest"]
[null,7974,"Robson","Yes","Yes","Yes","Regional District of Central Kootenay","Kootenay"]
[null,8765,"Rock Bay","No","No","No","Strathcona Regional District","Vancouver Island and Coast"]
[null,7990,"Rock Creek","No","No","Yes","Regional District of Kootenay Boundary","Kootenay"]
[null,8495,"Roe Lake","No","No","Yes","Cariboo Regional District","Cariboo"]
[null,8332,"Rogers Pass","No","Yes","Yes","Columbia-Shuswap Regional District","Thompson--Okanagan"]
[null,8939,"Rolla","No","No","Yes","Peace River Regional District","Northeast"]
[null,7926,"Roosville","No","No","Yes","Regional District of East Kootenay","Kootenay"]
[null,9016,"Rose Harbour","No","No","No","North Coast Regional District","North Coast"]
[null,8949,"Rose Prairie","No","Yes","Yes","Peace River Regional District","Northeast"]
[null,8351,"Rosebery","Yes","Yes","Yes","Regional District of Central Kootenay","Kootenay"]
[null,8057,"Rosedale","Yes","Yes","Yes","Fraser Valley Regional District","Lower Mainland--Southwest"]
[null,100131,"Rosen Lake","No","Yes","Yes","Regional District of East Kootenay","Kootenay"]
[null,7967,"Rossland","Yes","Yes","Yes","Regional District of Kootenay Boundary","Kootenay"]
[null,8886,"Rosswood","No","No","No","Regional District of Kitimat-Stikine","North Coast"]
[null,8845,"Round Lake","No","No","Yes","Bulkley Nechako Regional District","Nechako"]
[null,8729,"Royston","Yes","Yes","Yes","Comox Valley Regional District","Vancouver Island and Coast"]
[null,8046,"Ruby Creek","No","Yes","Yes","Fraser Valley Regional District","Lower Mainland--Southwest"]
[null,8560,"Rumble Beach","No","No","Yes","Regional District of Mount Waddington","Vancouver Island and Coast"]
[null,8141,"Rutland","Yes","Yes","Yes","Regional District of Central Okanagan","Thompson--Okanagan"]
[null,8646,"Saanich","Yes","Yes","Yes","Capital Regional District","Vancouver Island and Coast"]
[null,8657,"Saanichton","Yes","Yes","Yes","Capital Regional District","Vancouver Island and Coast"]
[null,50615,"Saik'uz First Nation*","Yes","Yes","Yes","Bulkley Nechako Regional District","Nechako"]
[null,7962,"Salmo","Yes","Yes","Yes","Regional District of Central Kootenay","Kootenay"]
[null,8311,"Salmon Arm","Yes","Yes","Yes","Columbia-Shuswap Regional District","Thompson--Okanagan"]
[null,8435,"Salmon Valley","No","Yes","Yes","Regional District of Fraser-Fort George","Cariboo"]
[null,8692,"Saltair","Yes","Yes","Yes","Cowichan Valley Regional District","Vancouver Island and Coast"]
[null,8207,"Saltery Bay","No","No","Yes","qathet Regional District","Vancouver Island and Coast"]
[null,8220,"Samahquam*","No","No","No","Fraser Valley Regional District","Lower Mainland--Southwest"]
[null,50567,"Samahquam*","No","No","No","Fraser Valley Regional District","Lower Mainland--Southwest"]
[null,8030,"Sanca","No","Yes","No","Regional District of Central Kootenay","Kootenay"]
[null,9031,"Sandon","No","No","No","Regional District of Central Kootenay","Kootenay"]
[null,9011,"Sandspit","Yes","Yes","Yes","North Coast Regional District","North Coast"]
[null,8747,"Saratoga Beach","Yes","Yes","Yes","Comox Valley Regional District","Vancouver Island and Coast"]
[null,8059,"Sardis","Yes","Yes","Yes","Fraser Valley Regional District","Lower Mainland--Southwest"]
[null,8632,"Sarita","No","No","No","Regional District of Alberni-Clayoquot","Vancouver Island and Coast"]
[null,8671,"Saseenos","Yes","Yes","Yes","Capital Regional District","Vancouver Island and Coast"]
[null,8686,"Saturna","No","No","Yes","Capital Regional District","Vancouver Island and Coast"]
[null,50542,"Saulteau First Nations*","No","No","Yes","Peace River Regional District","Northeast"]
[null,8380,"Savona","No","Yes","Yes","Thompson-Nicola Regional District","Thompson--Okanagan"]
[null,8757,"Sayward","No","Yes","Yes","Strathcona Regional District","Vancouver Island and Coast"]
[null,8358,"Scotch Creek","Yes","Yes","Yes","Columbia-Shuswap Regional District","Thompson--Okanagan"]
[null,50568,"Scowlitz (Sq'éwlets)*","Yes","Yes","Yes","Fraser Valley Regional District","Lower Mainland--Southwest"]
[null,50581,"Seabird Island*","No","Yes","Yes","Fraser Valley Regional District","Lower Mainland--Southwest"]
[null,8771,"Seaford","No","No","Yes","Strathcona Regional District","Vancouver Island and Coast"]
[null,8182,"Sechelt","Yes","Yes","Yes","Sunshine Coast Regional District","Lower Mainland--Southwest"]
[null,50551,"Sechelt Indian Government District (Sechelt)*","Yes","Yes","Yes","Sunshine Coast Regional District","Lower Mainland--Southwest"]
[null,8188,"Secret Cove","Yes","Yes","Yes","Sunshine Coast Regional District","Lower Mainland--Southwest"]
[null,8185,"Selma Park","Yes","Yes","Yes","Sunshine Coast Regional District","Lower Mainland--Southwest"]
[null,50569,"Semiahmoo*","Yes","Yes","Yes","Metro Vancouver Regional District","Lower Mainland--Southwest"]
[null,8253,"Seton Lake*","No","No","No","Squamish-Lillooet Regional District","Lower Mainland--Southwest"]
[null,8252,"Seton Portage","No","No","No","Squamish-Lillooet Regional District","Lower Mainland--Southwest"]
[null,8943,"Seven Mile Corner","No","No","Yes","Peace River Regional District","Northeast"]
[null,9008,"Sewall","No","No","Yes","North Coast Regional District","North Coast"]
[null,9015,"Sewell Inlet","No","No","No","North Coast Regional District","North Coast"]
[null,8330,"Seymour Arm","No","No","No","Columbia-Shuswap Regional District","Thompson--Okanagan"]
[null,8120,"Seymour Heights","Yes","Yes","Yes","Metro Vancouver Regional District","Lower Mainland--Southwest"]
[null,50698,"Shackan*","No","No","No","Thompson-Nicola Regional District","Thompson--Okanagan"]
[null,8837,"Shady Valley","Yes","Yes","Yes","Regional District of Fraser-Fort George","Cariboo"]
[null,50595,"Shalalth (Tsal'alh)*","No","No","No","Squamish-Lillooet Regional District","Lower Mainland--Southwest"]
[null,8564,"Shawl Bay","No","No","No","Regional District of Mount Waddington","Vancouver Island and Coast"]
[null,8667,"Shawnigan Lake","Yes","Yes","Yes","Cowichan Valley Regional District","Vancouver Island and Coast"]
[null,8534,"Shearwater","No","No","Yes","Central Coast Regional District","Vancouver Island and Coast"]
[null,8423,"Shelley","Yes","Yes","Yes","Regional District of Fraser-Fort George","Cariboo"]
[null,8343,"Shelter Bay","No","No","No","Columbia-Shuswap Regional District","Thompson--Okanagan"]
[null,100108,"Shelter Bay","No","No","No","Columbia-Shuswap Regional District","Thompson--Okanagan"]
[null,8750,"Shelter Point","Yes","Yes","Yes","Strathcona Regional District","Vancouver Island and Coast"]
[null,8635,"Shirley","Yes","Yes","No","Capital Regional District","Vancouver Island and Coast"]
[null,7976,"Shoreacres","Yes","Yes","Yes","Regional District of Central Kootenay","Kootenay"]
[null,8405,"Shoreholme","No","Yes","Yes","Regional District of Central Kootenay","Kootenay"]
[null,50695,"Shulus (Lower Nicola)*","No","Yes","Yes","Thompson-Nicola Regional District","Thompson--Okanagan"]
[null,8322,"Shuswap","No","No","Yes","Thompson-Nicola Regional District","Thompson--Okanagan"]
[null,8152,"Shuswap Falls","No","No","Yes","Regional District of North Okanagan","Thompson--Okanagan"]
[null,50605,"Shuswap*","Yes","Yes","Yes","Regional District of East Kootenay","Kootenay"]
[null,9030,"Shutty Bench","Yes","Yes","No","Regional District of Central Kootenay","Kootenay"]
[null,50570,"Shxwhá:y Village*","Yes","Yes","Yes","Fraser Valley Regional District","Lower Mainland--Southwest"]
[null,50587,"Shxw'ow'hamel First Nation*","No","Yes","Yes","Fraser Valley Regional District","Lower Mainland--Southwest"]
[null,8310,"Sicamous","Yes","Yes","Yes","Columbia-Shuswap Regional District","Thompson--Okanagan"]
[null,8656,"Sidney","Yes","Yes","Yes","Capital Regional District","Vancouver Island and Coast"]
[null,8967,"Sikanni Chief","No","No","Yes","Peace River Regional District","Northeast"]
[null,8048,"Silver Creek","Yes","Yes","Yes","Fraser Valley Regional District","Lower Mainland--Southwest"]
[null,8302,"Silver Creek","Yes","Yes","Yes","Columbia-Shuswap Regional District","Thompson--Okanagan"]
[null,8224,"Silver River","No","No","No","Fraser Valley Regional District","Lower Mainland--Southwest"]
[null,8153,"Silver Star","Yes","Yes","Yes","Regional District of North Okanagan","Thompson--Okanagan"]
[null,7960,"Silverton","No","Yes","Yes","Regional District of Central Kootenay","Kootenay"]
[null,50691,"Simpcw First Nation*","No","No","Yes","Thompson-Nicola Regional District","Thompson--Okanagan"]
[null,8394,"Simpcw*","No","No","Yes","Thompson-Nicola Regional District","Thompson--Okanagan"]
[null,8965,"Simpson Ranch","No","No","Yes","Peace River Regional District","Northeast"]
[null,8417,"Sinclair Mills","No","No","No","Regional District of Fraser-Fort George","Cariboo"]
[null,8831,"Sinkut River","Yes","Yes","Yes","Bulkley Nechako Regional District","Nechako"]
[null,7986,"Sion","Yes","Yes","Yes","Regional District of Kootenay Boundary","Kootenay"]
[null,50706,"Siska*","No","No","No","Thompson-Nicola Regional District","Thompson--Okanagan"]
[null,7955,"Six Mile","Yes","Yes","Yes","Regional District of Central Kootenay","Kootenay"]
[null,8307,"Six Mile Point","Yes","Yes","Yes","Columbia-Shuswap Regional District","Thompson--Okanagan"]
[null,50582,"Skawahlook First Nation*","No","No","Yes","Fraser Valley Regional District","Lower Mainland--Southwest"]
[null,50687,"Skeetchestn*","No","No","No","Thompson-Nicola Regional District","Thompson--Okanagan"]
[null,9014,"Skidegate Landing","No","No","Yes","North Coast Regional District","North Coast"]
[null,50670,"Skidegate*","No","No","Yes","North Coast Regional District","North Coast"]
[null,8817,"Skin Tyee*","No","No","No","Bulkley Nechako Regional District","Nechako"]
[null,8828,"Skin Tyee*","No","No","No","Bulkley Nechako Regional District","Nechako"]
[null,50729,"Skin Tyee*","Yes","Yes","No","Bulkley Nechako Regional District","Nechako"]
[null,8354,"Skookumchuck","No","No","Yes","Regional District of East Kootenay","Kootenay"]
[null,50562,"Skookumchuck (Skatin Nations)*","No","No","No","Fraser Valley Regional District","Lower Mainland--Southwest"]
[null,50571,"Skowkale*","Yes","Yes","Yes","Fraser Valley Regional District","Lower Mainland--Southwest"]
[null,50707,"Skuppah*","No","No","Yes","Thompson-Nicola Regional District","Thompson--Okanagan"]
[null,50573,"Skwah*","Yes","Yes","Yes","Fraser Valley Regional District","Lower Mainland--Southwest"]
[null,8065,"Slesse Park","Yes","Yes","Yes","Fraser Valley Regional District","Lower Mainland--Southwest"]
[null,50554,"Sliammon (Tla'amin Nation)*","Yes","Yes","Yes",null,"Vancouver Island and Coast"]
[null,7959,"Slocan","Yes","Yes","Yes","Regional District of Central Kootenay","Kootenay"]
[null,100123,"Slocan Park","No","Yes","No","Regional District of Central Kootenay","Kootenay"]
[null,8846,"Smithers","Yes","Yes","Yes","Bulkley Nechako Regional District","Nechako"]
[null,8797,"Smithers Landing","No","No","No","Bulkley Nechako Regional District","Nechako"]
[null,8972,"Snake River","No","No","Yes","Northern Rockies Regional Municipality","Northeast"]
[null,8174,"Snug Cove","Yes","Yes","Yes","Metro Vancouver Regional District","Lower Mainland--Southwest"]
[null,50648,"Snuneymuxw First Nation*","Yes","Yes","Yes","Regional District of Nanaimo","Vancouver Island and Coast"]
[null,8698,"Snuneymuxw*","Yes","Yes","Yes","Regional District of Nanaimo","Vancouver Island and Coast"]
[null,8455,"Soda Creek","No","No","No","Cariboo Regional District","Cariboo"]
[null,8454,"Soda Creek*","Yes","Yes","No","Cariboo Regional District","Cariboo"]
[null,50716,"Soda Creek*","Yes","Yes","Yes","Cariboo Regional District","Cariboo"]
[null,8554,"Sointula","Yes","Yes","Yes","Regional District of Mount Waddington","Vancouver Island and Coast"]
[null,8326,"Solsqua","No","No","Yes","Columbia-Shuswap Regional District","Thompson--Okanagan"]
[null,50656,"Songhees Nation (Songhees First Nation)*","Yes","Yes","Yes","Capital Regional District","Vancouver Island and Coast"]
[null,8636,"Sooke","Yes","Yes","Yes","Capital Regional District","Vancouver Island and Coast"]
[null,50572,"Soowahlie*","Yes","Yes","Yes","Fraser Valley Regional District","Lower Mainland--Southwest"]
[null,8357,"Sorrento","Yes","Yes","Yes","Columbia-Shuswap Regional District","Thompson--Okanagan"]
[null,8625,"South Bentinck","No","No","No","Central Coast Regional District","Vancouver Island and Coast"]
[null,8851,"South Hazelton","Yes","Yes","Yes","Regional District of Kitimat-Stikine","North Coast"]
[null,8462,"South Lakeside","Yes","Yes","Yes","Cariboo Regional District","Cariboo"]
[null,8251,"South Shalalth","No","No","No","Squamish-Lillooet Regional District","Lower Mainland--Southwest"]
[null,100124,"South Slocan","Yes","Yes","Yes","Regional District of Central Kootenay","Kootenay"]
[null,8087,"South Surrey","Yes","Yes","Yes","Metro Vancouver Regional District","Lower Mainland--Southwest"]
[null,8935,"South Taylor","No","Yes","Yes","Peace River Regional District","Northeast"]
[null,8695,"South Wellington","Yes","Yes","Yes","Regional District of Nanaimo","Vancouver Island and Coast"]
[null,8810,"Southbank","No","No","Yes","Bulkley Nechako Regional District","Nechako"]
[null,50600,"Spallumcheen (Splatsin)*","Yes","Yes","Yes","Regional District of North Okanagan","Thompson--Okanagan"]
[null,7938,"Sparwood","Yes","Yes","Yes","Regional District of East Kootenay","Kootenay"]
[null,8272,"Spences Bridge","No","Yes","Yes","Thompson-Nicola Regional District","Thompson--Okanagan"]
[null,8339,"Spillimacheen","No","Yes","Yes","Regional District of East Kootenay","Kootenay"]
[null,8473,"Springhouse","No","No","Yes","Cariboo Regional District","Cariboo"]
[null,8741,"Sproat Lake","Yes","Yes","Yes","Regional District of Alberni-Clayoquot","Vancouver Island and Coast"]
[null,100133,"Spruceland and Wilks/Kahn","No","Yes","Yes","Regional District of East Kootenay","Kootenay"]
[null,8229,"Spuzzum","Yes","Yes","Yes","Fraser Valley Regional District","Lower Mainland--Southwest"]
[null,50708,"Spuzzum*","No","No","Yes","Fraser Valley Regional District","Lower Mainland--Southwest"]
[null,8156,"Squamish","Yes","Yes","Yes","Squamish-Lillooet Regional District","Lower Mainland--Southwest"]
[null,8157,"Squamish*","Yes","Yes","Yes","Squamish-Lillooet Regional District","Lower Mainland--Southwest"]
[null,8158,"Squamish*","Yes","Yes","Yes","Squamish-Lillooet Regional District","Lower Mainland--Southwest"]
[null,8161,"Squamish*","No","Yes","Yes","Squamish-Lillooet Regional District","Lower Mainland--Southwest"]
[null,50555,"Squamish*","Yes","Yes","Yes","Metro Vancouver Regional District","Lower Mainland--Southwest"]
[null,8226,"Squeah","No","No","Yes","Fraser Valley Regional District","Lower Mainland--Southwest"]
[null,50574,"Squiala First Nation*","Yes","Yes","Yes","Fraser Valley Regional District","Lower Mainland--Southwest"]
[null,8474,"St. Joseph Mission","No","No","Yes","Cariboo Regional District","Cariboo"]
[null,100107,"St. Leon Hot Springs","No","No","No","Regional District of Central Kootenay","Kootenay"]
[null,100136,"St. Marys Lake","No","No","No","Regional District of East Kootenay","Kootenay"]
[null,8007,"St. Mary's*","No","No","Yes","Regional District of East Kootenay","Kootenay"]
[null,8973,"Steamboat","No","No","Yes","Northern Rockies Regional Municipality","Northeast"]
[null,50613,"Stellat'en First Nation*","Yes","Yes","Yes","Bulkley Nechako Regional District","Nechako"]
[null,8588,"Stewardson Inlet","No","No","No","Regional District of Alberni-Clayoquot","Vancouver Island and Coast"]
[null,8895,"Stewart","No","No","Yes","Regional District of Kitimat-Stikine","North Coast"]
[null,8986,"Stikine","No","No","No","Regional District of Kitimat-Stikine","North Coast"]
[null,8194,"Stillwater","Yes","Yes","Yes","qathet Regional District","Vancouver Island and Coast"]
[null,50717,"Stone (Yunesit'in Government)*","Yes","Yes","No","Cariboo Regional District","Cariboo"]
[null,8433,"Stoner","No","No","Yes","Regional District of Fraser-Fort George","Cariboo"]
[null,8384,"Stump Lake","No","No","No","Thompson-Nicola Regional District","Thompson--Okanagan"]
[null,8683,"Sturdies Bay","No","No","Yes","Capital Regional District","Vancouver Island and Coast"]
[null,50719,"Sugarcane (Williams Lake)*","Yes","Yes","Yes","Cariboo Regional District","Cariboo"]
[null,8563,"Sullivan Bay","No","No","No","Regional District of Mount Waddington","Vancouver Island and Coast"]
[null,50578,"Sumas First Nation*","Yes","Yes","Yes","Fraser Valley Regional District","Lower Mainland--Southwest"]
[null,8130,"Summerland","Yes","Yes","Yes","Regional District of Okanagan-Similkameen","Thompson--Okanagan"]
[null,8404,"Summit Lake","No","No","No","Regional District of Central Kootenay","Kootenay"]
[null,8428,"Summit Lake","No","Yes","Yes","Regional District of Fraser-Fort George","Cariboo"]
[null,8974,"Summit Lake","No","No","No","Northern Rockies Regional Municipality","Northeast"]
[null,8377,"Sun Peaks","Yes","Yes","Yes","Thompson-Nicola Regional District","Thompson--Okanagan"]
[null,7982,"Sunningdale","Yes","Yes","Yes","Regional District of Kootenay Boundary","Kootenay"]
[null,8313,"Sunnybrae","No","Yes","Yes","Columbia-Shuswap Regional District","Thompson--Okanagan"]
[null,50617,"Sunnyside (Tl'azt'en Nation)*","No","No","Yes","Bulkley Nechako Regional District","Nechako"]
[null,8918,"Sunset Prairie","No","Yes","Yes","Peace River Regional District","Northeast"]
[null,8042,"Sunshine Valley","Yes","Yes","Yes","Fraser Valley Regional District","Lower Mainland--Southwest"]
[null,8770,"Surge Narrows","No","No","No","Strathcona Regional District","Vancouver Island and Coast"]
[null,8116,"Surrey","Yes","Yes","Yes","Metro Vancouver Regional District","Lower Mainland--Southwest"]
[null,8663,"Swartz Bay","Yes","Yes","Yes","Capital Regional District","Vancouver Island and Coast"]
[null,100129,"Sweetwater","No","Yes","Yes","Regional District of East Kootenay","Kootenay"]
[null,9045,"Ta Ta Creek","No","Yes","Yes","Regional District of East Kootenay","Kootenay"]
[null,8808,"Tachie*","No","No","Yes","Bulkley Nechako Regional District","Nechako"]
[null,7979,"Taghum","Yes","Yes","Yes","Regional District of Central Kootenay","Kootenay"]
[null,8984,"Tahltan","No","No","No","Regional District of Kitimat-Stikine","North Coast"]
[null,8577,"Tahsis","No","No","No","Strathcona Regional District","Vancouver Island and Coast"]
[null,50608,"Takla Landing (Takla Nation)*","No","No","No","Bulkley Nechako Regional District","Nechako"]
[null,50501,"Taku River Tlingit*","No","No","No","Stikine Regional District (Unincorporated)","Nechako"]
[null,8818,"Takysie Lake","No","No","No","Bulkley Nechako Regional District","Nechako"]
[null,8314,"Tappen*","No","No","Yes","Columbia-Shuswap Regional District","Thompson--Okanagan"]
[null,8823,"Tatalrose","No","No","No","Bulkley Nechako Regional District","Nechako"]
[null,8515,"Tatla Lake","No","No","No","Cariboo Regional District","Cariboo"]
[null,8772,"Tatlayoko Lake","No","No","No","Cariboo Regional District","Cariboo"]
[null,8990,"Tatogga","No","No","No","Regional District of Kitimat-Stikine","North Coast"]
[null,8478,"Tatton","Yes","Yes","Yes","Cariboo Regional District","Cariboo"]
[null,8936,"Taylor","Yes","Yes","Yes","Peace River Regional District","Northeast"]
[null,8814,"Tchesinkut Lake","Yes","Yes","Yes","Bulkley Nechako Regional District","Nechako"]
[null,8833,"Telachick","No","No","Yes","Regional District of Fraser-Fort George","Cariboo"]
[null,8570,"Telegraph Cove","No","Yes","Yes","Regional District of Mount Waddington","Vancouver Island and Coast"]
[null,50682,"Telegraph Creek (Tahltan)*","No","No","No","Regional District of Kitimat-Stikine","North Coast"]
[null,8844,"Telkwa","Yes","Yes","Yes","Bulkley Nechako Regional District","Nechako"]
[null,8437,"Ten Mile Lake","No","No","Yes","Cariboo Regional District","Cariboo"]
[null,8864,"Terrace","Yes","Yes","Yes","Regional District of Kitimat-Stikine","North Coast"]
[null,8409,"Tête Jaune Cache","No","No","Yes","Regional District of Fraser-Fort George","Cariboo"]
[null,8565,"Thompson Sound","No","No","No","Regional District of Mount Waddington","Vancouver Island and Coast"]
[null,8866,"Thornhill","Yes","Yes","Yes","Regional District of Kitimat-Stikine","North Coast"]
[null,100132,"Tie Lake","No","Yes","Yes","Regional District of East Kootenay","Kootenay"]
[null,8782,"Tintagel","Yes","Yes","Yes","Bulkley Nechako Regional District","Nechako"]
[null,8222,"Tipella","No","No","No","Fraser Valley Regional District","Lower Mainland--Southwest"]
[null,8260,"T'it'q'et*","No","No","Yes","Squamish-Lillooet Regional District","Lower Mainland--Southwest"]
[null,50593,"T'it'q'et*","No","Yes","Yes","Squamish-Lillooet Regional District","Lower Mainland--Southwest"]
[null,50688,"Tk'emlúps te Secwépemc*","Yes","Yes","Yes","Thompson-Nicola Regional District","Thompson--Okanagan"]
[null,8594,"Tla-o-qui-aht","Yes","Yes","Yes","Regional District of Alberni-Clayoquot","Vancouver Island and Coast"]
[null,8596,"Tla-o-qui-aht*","Yes","Yes","Yes","Regional District of Alberni-Clayoquot","Vancouver Island and Coast"]
[null,9009,"Tlell","Yes","Yes","No","North Coast Regional District","North Coast"]
[null,50712,"Tl'etinqox Government*","Yes","Yes","No","Cariboo Regional District","Cariboo"]
[null,8510,"Tl'etinqox-t'in Government Office*","Yes","Yes","No","Cariboo Regional District","Cariboo"]
[null,50637,"Tlowitsis Tribe*","No","No","No","Strathcona Regional District","Vancouver Island and Coast"]
[null,8975,"Toad River","No","No","No","Northern Rockies Regional Municipality","Northeast"]
[null,50603,"Tobacco Plains*","No","No","Yes","Regional District of East Kootenay","Kootenay"]
[null,8593,"Tofino","Yes","Yes","Yes","Regional District of Alberni-Clayoquot","Vancouver Island and Coast"]
[null,50718,"Toosey*","Yes","Yes","No","Cariboo Regional District","Cariboo"]
[null,8790,"Topley","No","No","Yes","Bulkley Nechako Regional District","Nechako"]
[null,8796,"Topley Landing","Yes","Yes","Yes","Bulkley Nechako Regional District","Nechako"]
[null,8602,"Toquaht*","No","No","Yes","Regional District of Alberni-Clayoquot","Vancouver Island and Coast"]
[null,50666,"Toquaht*","Yes","Yes","Yes","Regional District of Alberni-Clayoquot","Vancouver Island and Coast"]
[null,100588,"Tow Hill","Yes","Yes","Yes","North Coast Regional District","North Coast"]
[null,8517,"Towdystan","No","No","No","Cariboo Regional District","Cariboo"]
[null,8940,"Tower Lake","No","No","Yes","Peace River Regional District","Northeast"]
[null,8290,"Traders Cove","Yes","Yes","Yes","Regional District of Central Okanagan","Thompson--Okanagan"]
[null,7965,"Trail","Yes","Yes","Yes","Regional District of Kootenay Boundary","Kootenay"]
[null,8379,"Tranquille","No","No","Yes","Thompson-Nicola Regional District","Thompson--Okanagan"]
[null,8347,"Trout Lake","No","No","No","Columbia-Shuswap Regional District","Thompson--Okanagan"]
[null,50653,"Tsartlip*","Yes","Yes","Yes","Capital Regional District","Vancouver Island and Coast"]
[null,51635,"Tsatsisnukwomi (Da'naxda'xw First Nation)*","No","No","No","Regional District of Mount Waddington","Vancouver Island and Coast"]
[null,50654,"Tsawout First Nation*","Yes","Yes","Yes","Capital Regional District","Vancouver Island and Coast"]
[null,8089,"Tsawwassen","Yes","Yes","Yes","Metro Vancouver Regional District","Lower Mainland--Southwest"]
[null,50577,"Tsawwassen First Nation*","Yes","Yes","Yes","Metro Vancouver Regional District","Lower Mainland--Southwest"]
[null,50609,"Tsay Keh Dene*","No","No","No","Peace River Regional District","Northeast"]
[null,50665,"Tseshaht*","Yes","Yes","Yes","Regional District of Alberni-Clayoquot","Vancouver Island and Coast"]
[null,50655,"Tseycum*","Yes","Yes","Yes","Capital Regional District","Vancouver Island and Coast"]
[null,8254,"Ts'kw'aylaxw*","No","No","No","Thompson-Nicola Regional District","Thompson--Okanagan"]
[null,50657,"T'Sou-ke First Nation*","Yes","Yes","Yes","Capital Regional District","Vancouver Island and Coast"]
[null,8637,"T'Sou-ke*","Yes","Yes","Yes","Capital Regional District","Vancouver Island and Coast"]
[null,8129,"Tulameen","No","No","No","Regional District of Okanagan-Similkameen","Thompson--Okanagan"]
[null,8993,"Tulsequah","No","No","No","Stikine Regional District (Unincorporated)","Nechako"]
[null,9000,"Tumbler Ridge","No","Yes","Yes","Peace River Regional District","Northeast"]
[null,8206,"Tuwanek","Yes","Yes","Yes","Sunshine Coast Regional District","Lower Mainland--Southwest"]
[null,8914,"Twidwell Bend","No","No","Yes","Peace River Regional District","Northeast"]
[null,100153,"Twin Lakes","No","No","Yes","Regional District of Okanagan-Similkameen","Thompson--Okanagan"]
[null,8850,"Two Mile","Yes","Yes","Yes","Regional District of Kitimat-Stikine","North Coast"]
[null,50575,"Tzeachten*","Yes","Yes","Yes","Fraser Valley Regional District","Lower Mainland--Southwest"]
[null,50667,"Uchucklesaht*","No","No","No","Regional District of Alberni-Clayoquot","Vancouver Island and Coast"]
[null,8600,"Ucluelet","Yes","Yes","Yes","Regional District of Alberni-Clayoquot","Vancouver Island and Coast"]
[null,50668,"Ucluelet First Nation*","Yes","Yes","Yes","Regional District of Alberni-Clayoquot","Vancouver Island and Coast"]
[null,8599,"Ucluelet*","Yes","Yes","Yes","Regional District of Alberni-Clayoquot","Vancouver Island and Coast"]
[null,8518,"Ulkatcho*","Yes","Yes","No","Cariboo Regional District","Cariboo"]
[null,8519,"Ulkatcho*","No","No","No","Cariboo Regional District","Cariboo"]
[null,50722,"Ulkatcho*","Yes","Yes","No","Cariboo Regional District","Cariboo"]
[null,50588,"Union Bar First Nation*","Yes","Yes","Yes","Fraser Valley Regional District","Lower Mainland--Southwest"]
[null,8727,"Union Bay","Yes","Yes","Yes","Comox Valley Regional District","Vancouver Island and Coast"]
[null,8103,"University Hill","Yes","Yes","Yes","Metro Vancouver Regional District","Lower Mainland--Southwest"]
[null,100143,"Upper Donald","Yes","Yes","Yes","Columbia-Shuswap Regional District","Thompson--Okanagan"]
[null,8418,"Upper Fraser","No","No","No","Regional District of Fraser-Fort George","Cariboo"]
[null,8959,"Upper Halfway","No","No","Yes","Peace River Regional District","Northeast"]
[null,8255,"Upper Hat Creek 1 (Bonaparte)*","No","No","No","Thompson-Nicola Regional District","Thompson--Okanagan"]
[null,8281,"Upper Nicola*","No","No","Yes","Thompson-Nicola Regional District","Thompson--Okanagan"]
[null,50697,"Upper Nicola*","No","No","Yes","Thompson-Nicola Regional District","Thompson--Okanagan"]
[null,50599,"Upper Similkameen*","No","Yes","Yes","Regional District of Okanagan-Similkameen","Thompson--Okanagan"]
[null,8862,"Usk","Yes","Yes","Yes","Regional District of Kitimat-Stikine","North Coast"]
[null,8407,"Valemount","Yes","Yes","Yes","Regional District of Fraser-Fort George","Cariboo"]
[null,8372,"Valleyview","Yes","Yes","Yes","Thompson-Nicola Regional District","Thompson--Okanagan"]
[null,100121,"Vallican","No","Yes","No","Regional District of Central Kootenay","Kootenay"]
[null,8196,"Van Anda","No","Yes","Yes","qathet Regional District","Vancouver Island and Coast"]
[null,8104,"Vancouver","Yes","Yes","Yes","Metro Vancouver Regional District","Lower Mainland--Southwest"]
[null,8775,"Vanderhoof","Yes","Yes","Yes","Bulkley Nechako Regional District","Nechako"]
[null,8400,"Vavenby","No","Yes","Yes","Thompson-Nicola Regional District","Thompson--Okanagan"]
[null,8062,"Vedder Crossing","Yes","Yes","Yes","Fraser Valley Regional District","Lower Mainland--Southwest"]
[null,9048,"Vermilion Crossing","No","No","No","Regional District of East Kootenay","Kootenay"]
[null,8282,"Vernon","Yes","Yes","Yes","Regional District of North Okanagan","Thompson--Okanagan"]
[null,8584,"Vernon","Yes","Yes","Yes","Regional District of Mount Waddington","Vancouver Island and Coast"]
[null,8647,"Victoria","Yes","Yes","Yes","Capital Regional District","Vancouver Island and Coast"]
[null,8498,"Vidette","No","No","No","Thompson-Nicola Regional District","Thompson--Okanagan"]
[null,8648,"View Royal","Yes","Yes","Yes","Capital Regional District","Vancouver Island and Coast"]
[null,9013,"Village of Queen Charlotte","No","No","Yes","North Coast Regional District","North Coast"]
[null,8913,"Wabi Hill","No","Yes","Yes","Peace River Regional District","Northeast"]
[null,8540,"Wadhams","No","No","No","Central Coast Regional District","Vancouver Island and Coast"]
[null,8269,"Walhachin","No","No","Yes","Thompson-Nicola Regional District","Thompson--Okanagan"]
[null,100115,"Walkers","No","Yes","Yes","Regional District of Central Kootenay","Kootenay"]
[null,8084,"Walnut Grove","Yes","Yes","Yes","Metro Vancouver Regional District","Lower Mainland--Southwest"]
[null,7931,"Wardner","No","No","Yes","Regional District of East Kootenay","Kootenay"]
[null,7966,"Warfield","Yes","Yes","Yes","Regional District of Kootenay Boundary","Kootenay"]
[null,8009,"Wasa","Yes","Yes","Yes","Regional District of East Kootenay","Kootenay"]
[null,8884,"Weewanie","No","No","No","Regional District of Kitimat-Stikine","North Coast"]
[null,8186,"Welcome Beach","Yes","Yes","Yes","Sunshine Coast Regional District","Lower Mainland--Southwest"]
[null,8445,"Wells","Yes","Yes","No","Cariboo Regional District","Cariboo"]
[null,8830,"Weneez","Yes","Yes","Yes","Bulkley Nechako Regional District","Nechako"]
[null,100110,"West Creston","No","Yes","Yes","Regional District of Central Kootenay","Kootenay"]
[null,50545,"West Moberly First Nations*","No","No","Yes","Peace River Regional District","Northeast"]
[null,8054,"West Popkum","Yes","Yes","Yes","Fraser Valley Regional District","Lower Mainland--Southwest"]
[null,8137,"Westbank","Yes","Yes","Yes","Regional District of Central Okanagan","Thompson--Okanagan"]
[null,50601,"Westbank First Nation*","Yes","Yes","Yes","Regional District of Central Okanagan","Thompson--Okanagan"]
[null,9024,"Westbridge","No","No","Yes","Regional District of Kootenay Boundary","Kootenay"]
[null,100353,"Westham Island","No","Yes","Yes","Metro Vancouver Regional District","Lower Mainland--Southwest"]
[null,8616,"Westholme","Yes","Yes","Yes","Cowichan Valley Regional District","Vancouver Island and Coast"]
[null,8124,"Westmount","Yes","Yes","Yes","Metro Vancouver Regional District","Lower Mainland--Southwest"]
[null,8135,"Westside*","Yes","Yes","Yes","Regional District of Central Okanagan","Thompson--Okanagan"]
[null,8375,"Westsyde","Yes","Yes","Yes","Thompson-Nicola Regional District","Thompson--Okanagan"]
[null,8211,"Westview","Yes","Yes","Yes","qathet Regional District","Vancouver Island and Coast"]
[null,8317,"Westwold","No","Yes","Yes","Thompson-Nicola Regional District","Thompson--Okanagan"]
[null,50725,"Wet'suwet'en Village (Wet'suwet'en First Nation)*","Yes","Yes","Yes","Bulkley Nechako Regional District","Nechako"]
[null,8218,"Whaletown","No","No","Yes","Strathcona Regional District","Vancouver Island and Coast"]
[null,100147,"Whatshan Campground","No","Yes","Yes","Regional District of Central Kootenay","Kootenay"]
[null,8717,"Whisky Creek","Yes","Yes","Yes","Regional District of Nanaimo","Vancouver Island and Coast"]
[null,50702,"Whispering Pines/Clinton*","No","No","Yes","Thompson-Nicola Regional District","Thompson--Okanagan"]
[null,8162,"Whistler","Yes","Yes","Yes","Squamish-Lillooet Regional District","Lower Mainland--Southwest"]
[null,8164,"Whistler Creek","Yes","Yes","Yes","Squamish-Lillooet Regional District","Lower Mainland--Southwest"]
[null,8363,"White Lake","No","No","Yes","Columbia-Shuswap Regional District","Thompson--Okanagan"]
[null,8080,"White Rock","Yes","Yes","Yes","Metro Vancouver Regional District","Lower Mainland--Southwest"]
[null,8633,"Whyac*","No","No","No","Cowichan Valley Regional District","Vancouver Island and Coast"]
[null,8210,"Wildwood","Yes","Yes","Yes","qathet Regional District","Vancouver Island and Coast"]
[null,8466,"Wildwood","Yes","Yes","Yes","Cariboo Regional District","Cariboo"]
[null,8791,"Wiley","Yes","Yes","Yes","Bulkley Nechako Regional District","Nechako"]
[null,8745,"Williams Beach","Yes","Yes","Yes","Comox Valley Regional District","Vancouver Island and Coast"]
[null,8456,"Williams Lake","Yes","Yes","Yes","Cariboo Regional District","Cariboo"]
[null,8178,"Williamsons Landing","Yes","Yes","Yes","Sunshine Coast Regional District","Lower Mainland--Southwest"]
[null,8420,"Willow River","No","No","Yes","Regional District of Fraser-Fort George","Cariboo"]
[null,8920,"Willow Valley","No","No","Yes","Peace River Regional District","Northeast"]
[null,7997,"Willowbrook","Yes","Yes","No","Regional District of Okanagan-Similkameen","Thompson--Okanagan"]
[null,8017,"Wilmer","Yes","Yes","Yes","Regional District of East Kootenay","Kootenay"]
[null,8183,"Wilson Creek","Yes","Yes","Yes","Sunshine Coast Regional District","Lower Mainland--Southwest"]
[null,8287,"Wilson Landing","Yes","Yes","Yes","Regional District of Central Okanagan","Thompson--Okanagan"]
[null,8014,"Windermere","Yes","Yes","Yes","Regional District of East Kootenay","Kootenay"]
[null,8145,"Winfield","Yes","Yes","Yes","Regional District of Central Okanagan","Thompson--Okanagan"]
[null,7958,"Winlaw","No","Yes","No","Regional District of Central Kootenay","Kootenay"]
[null,8543,"Winter Harbour","No","No","No","Regional District of Mount Waddington","Vancouver Island and Coast"]
[null,8827,"Wistaria","No","No","No","Bulkley Nechako Regional District","Nechako"]
[null,8956,"Wonowon","No","No","Yes","Peace River Regional District","Northeast"]
[null,100114,"Woodbury Creek","Yes","Yes","Yes","Regional District of Central Kootenay","Kootenay"]
[null,8859,"Woodcock","No","No","Yes","Regional District of Kitimat-Stikine","North Coast"]
[null,8146,"Woodsdale","Yes","Yes","Yes","Regional District of Central Okanagan","Thompson--Okanagan"]
[null,8566,"Woss","No","Yes","Yes","Regional District of Mount Waddington","Vancouver Island and Coast"]
[null,8005,"Wycliffe","No","No","Yes","Regional District of East Kootenay","Kootenay"]
[null,7944,"Wynndel","Yes","Yes","Yes","Regional District of Central Kootenay","Kootenay"]
[null,50592,"Xaxli'p*","No","No","No","Squamish-Lillooet Regional District","Lower Mainland--Southwest"]
[null,50714,"Xeni Gwet'in First Nations Government*","No","No","No","Cariboo Regional District","Cariboo"]
[null,8774,"Xeni Gwet'in*","No","No","No","Cariboo Regional District","Cariboo"]
[null,8756,"Yaculta*","No","No","Yes","Strathcona Regional District","Vancouver Island and Coast"]
[null,7941,"Yahk","No","Yes","Yes","Regional District of Central Kootenay","Kootenay"]
[null,9002,"Yaku","No","No","No","North Coast Regional District","North Coast"]
[null,50576,"Yakweakwioose*","Yes","Yes","Yes","Fraser Valley Regional District","Lower Mainland--Southwest"]
[null,50589,"Yale (Yale First Nation)*","Yes","Yes","Yes","Fraser Valley Regional District","Lower Mainland--Southwest"]
[null,8228,"Yale*","No","Yes","Yes","Fraser Valley Regional District","Lower Mainland--Southwest"]
[null,8301,"Yankee Flats","No","No","Yes","Columbia-Shuswap Regional District","Thompson--Okanagan"]
[null,8597,"Yarksis","No","No","Yes","Regional District of Alberni-Clayoquot","Vancouver Island and Coast"]
[null,8066,"Yarrow","Yes","Yes","Yes","Fraser Valley Regional District","Lower Mainland--Southwest"]
[null,50728,"Yekooche First Nation*","No","No","No","Bulkley Nechako Regional District","Nechako"]
[null,7954,"Ymir","No","Yes","Yes","Regional District of Central Kootenay","Kootenay"]
[null,8610,"Youbou","Yes","Yes","Yes","Cowichan Valley Regional District","Vancouver Island and Coast"]
[null,8559,"Yreka","No","No","No","Regional District of Mount Waddington","Vancouver Island and Coast"]
[null,8578,"Yuquot*","No","No","No","Strathcona Regional District","Vancouver Island and Coast"]
[null,9022,"Zamora","No","No","Yes","Regional District of Kootenay Boundary","Kootenay"]
[null,8572,"Zeballos","No","No","No","Strathcona Regional District","Vancouver Island and Coast"]

{"sheet":"Hidden-lists","index":8,"n_rows":238,"n_cols":7,"rows_kept":238,"hidden":true}
[]
[null,"Project Types","Community Deployment","Site Type","List of BC HWYs",null,"Inland Ferries & Rest Areas"]
[null,"Community","Broadband","Cellular","HWY 1 - Trans-Canada (Vancouver Island)",null,"Inland Ferry: 104 AVE - Barnston Island Ferry - Port Kells"]
[null,"Highway","Cellular","Public Wi-Fi Hotspot","HWY 1 - Trans-Canada (Mainland)",null,"Inland Ferry: DIVISION ROAD - Glade Ferry Terminal East Shore"]
[null,"Community & Highway","Public Wi-Fi Hotspot","Emergency Call Box","HWY 1A - Taylor Way, Marine Drive, Lions Gate Bridge Road",null,"Inland Ferry: DYKE RD - Barnston Island Ferry - Barnston"]
[null,null,"Broadband & Cellular","Other","HWY 1A - Chemainus (Vancouver Island)",null,"Inland Ferry: EMPIRE VALLEY BIG BAR RD - Big Bar Reaction Ferry West Terminal"]
[null,null,"Satellite",null,"HWY 2 - Dawson Creek – Tupper",null,"Inland Ferry: EMPIRE VALLEY BIG BAR RD - Big Bar Reaction Ferry East Terminal"]
[{"$nulls":4},"HWY 3 - Southern Trans-Provincial Highway (Crowsnest)",null,"Inland Ferry: FERRY ROAD - Little Fort Reaction Ferry West Terminal"]
[{"$nulls":4},"HWY 3A - Keremeos – Kaleden Junction",null,"Inland Ferry: GLADE FERRY ROAD - Glade Ferry Terminal West Shore"]
[{"$nulls":4},"HWY 3A - Castlegar – Nelson Creston",null,"Inland Ferry: HARROP PROCTER ROAD - Harrop Ferry Terminal South Shore"]
[null,"HWY Site Type",null,null,"HWY 3B - Nancy Greene Lake – Rossland – Meadows",null,"Inland Ferry: HOLDING ROAD - Adams Lake Cable Ferry West Terminal"]
[null,"Road Segment",null,null,"HWY 4 - Qualicum - Port Alberni - Tofino",null,"Inland Ferry: HWY 23 - Upper Arrow Lake Ferry Galena Bay Terminal"]
[null,"Rest Area",null,null,"HWY 4A - Alberni",null,"Inland Ferry: HWY 23 S - Upper Arrow Lake Ferry Shelter Bay Terminal"]
[null,"Highway Pullout",null,null,"HWY 5 - Coquihalla",null,"Inland Ferry: HWY 35 - Francois Lake Ferry North Terminal"]
[null,"Inland Ferry",null,null,"HWY 5 - Kamloops",null,"Inland Ferry: HWY 5A - Balfour Ferry Terminal"]
[null,"Other",null,null,"HWY 5 - Yellowhead South",null,"Inland Ferry: HWY 5A - Harrop Ferry Terminal North Shore"]
[{"$nulls":4},"HWY 5A - Princeton – Aspen Grove – Merritt – Kamloops",null,"Inland Ferry: HWY 5A - Kootenay Bay Terminal"]
[{"$nulls":4},"HWY 6 - Nelson – Nelway – Vernon – Slocan",null,"Inland Ferry: HWY 6 - Needles Cable Ferry Fauquier Terminal"]
[{"$nulls":4},"HWY 7 - Lougheed Highway",null,"Inland Ferry: HWY 6 - Arrow Park Ferry South Terminal"]
[{"$nulls":4},"HWY 7B - Mary Hill Bypass",null,"Inland Ferry: HWY 6 - Arrow Park Ferry North Terminal"]
[{"$nulls":4},"HWY 8 - Merritt – Spences Bridge",null,"Inland Ferry: HWY 6 - Needles Cable Ferry Needles Terminal"]
[{"$nulls":4},"HWY 9 - Rosedale - Agassiz Bypass Highway",null,"Inland Ferry: KEEFES LANDING RD - Francois Lake Ferry Southbank"]
[{"$nulls":4},"HWY 10 - Ladner - (Langley Bypass) - Livingstone Interchange Highway",null,"Inland Ferry: LYTTON FERRY RD - Lytton Reaction Ferry West Terminal"]
[{"$nulls":4},"HWY 11 - Huntingdon – Mission",null,"Inland Ferry: LYTTON FERRY RD - Lytton Reaction Ferry East Terminal"]
[{"$nulls":4},"HWY 12 - Lytton – Lillooet",null,"Inland Ferry: MCLURE FERRY ROAD - McLure Reaction Ferry East Terminal"]
[{"$nulls":4},"HWY 13 - Aldergrove – Bellingham Highway and County Line Road",null,"Inland Ferry: RAWSON ROAD - Adams Lake Cable Ferry East Terminal"]
[{"$nulls":4},"HWY 14 - West Coast (Sooke)",null,"Inland Ferry: USK FERRY RD - Usk Reaction Ferry South Terminal"]
[{"$nulls":4},"HWY 15 - Pacific Highway",null,"Inland Ferry: USK FERRY RD - Usk Reaction Ferry North Terminal"]
[{"$nulls":4},"HWY 16 - Yellowhead, Trans-Canada (Queen Charlotte Islands)",null,"Inland Ferry: WESTSYDE ROAD - McLure Reaction Ferry West Terminal"]
[{"$nulls":4},"HWY 16 - Yellowhead, Trans-Canada",null,"Inland Ferry: WINDPASS RD - Little Fort Reaction Ferry East Terminal"]
[{"$nulls":4},"HWY 17 - Patricia Bay Highway",null,"Rest Area: ATLIN HIGHWAY - Hitchcock"]
[{"$nulls":4},"HWY 17 - Tsawwassen Highway, South Fraser Perimeter Road",null,"Rest Area: BOWRON LAKE ROAD - Bowron Lake"]
[{"$nulls":4},"HWY 17A - Tsawwassen Highway",null,"Rest Area: HWY 1 - Arbutus"]
[{"$nulls":4},"HWY 18 - Cowichan Valley",null,"Rest Area: HWY 1 - Bradner"]
[{"$nulls":4},"HWY 19 - Vancouver Inland Island Highway",null,"Rest Area: HWY 1 - Cassidy"]
[{"$nulls":4},"HWY 19A - Island Highway",null,"Rest Area: HWY 1 - Cobblehill"]
[{"$nulls":4},"HWY 20 - Chilcotin – Bella Coola",null,"Rest Area: HWY 1 - Cole Road"]
[{"$nulls":4},"HWY 21 - Creston – Rykerts",null,"Rest Area: HWY 1 - Columbia"]
[{"$nulls":4},"HWY 22 - Paterson – Rossland – Castlegar",null,"Rest Area: HWY 1 - Hunter Creek"]
[{"$nulls":4},"HWY 22A - Waneta",null,"Rest Area: HWY 1 - Illecillewaet Brake Check"]
[{"$nulls":4},"HWY 23 - Nakusp – Mica Creek",null,"Rest Area: HWY 1 - Kamloops Lake"]
[{"$nulls":4},"HWY 24 - 93 Mile – Little Fort",null,"Rest Area: HWY 1 - Kicking Horse"]
[{"$nulls":4},"HWY 26 - Barkerville",null,"Rest Area: HWY 1 - Lake Of The Woods"]
[{"$nulls":4},"HWY 27 - Vanderhoof – Stuart",null,"Rest Area: HWY 1 - Malahat Summit"]
[{"$nulls":4},"HWY 28 - Gold River",null,"Rest Area: HWY 1 - Red Hill"]
[{"$nulls":4},"HWY 29 - Hudson's Hope, Don Phillips Way",null,"Rest Area: HWY 1 - Redgrave East"]
[{"$nulls":4},"HWY 30 - Port Alice",null,"Rest Area: HWY 1 - Redgrave West"]
[{"$nulls":4},"HWY 31 - Balfour – Kaslo – Galena Bay",null,"Rest Area: HWY 1 - Rutherford Beach"]
[{"$nulls":4},"HWY 31A - Kaslo – New Denver",null,"Rest Area: HWY 1 - Shuswap Lake"]
[{"$nulls":4},"HWY 33 - Rock Creek – Kelowna",null,"Rest Area: HWY 1 - Skuppa"]
[{"$nulls":4},"HWY 35 - North Francois",null,"Rest Area: HWY 1 - Ten Mile Hill Brake Check"]
[{"$nulls":4},"HWY 37 - Kitimat Cassiar",null,"Rest Area: HWY 1 - Ten Mile Hill Trucker Rest Stop"]
[{"$nulls":4},"HWY 37A - Glacier",null,"Rest Area: HWY 1 - The Last Spike"]
[{"$nulls":4},"HWY 39 - Mackenzie",null,"Rest Area: HWY 1 - Weigh Scale #1 East"]
[{"$nulls":4},"HWY 41 - Danville",null,"Rest Area: HWY 1 - Yale Rest Area"]
[{"$nulls":4},"HWY 43 - Elk Valley",null,"Rest Area: HWY 118 - Granisle"]
[{"$nulls":4},"HWY 49 - Dawson Creek – Spirit River",null,"Rest Area: HWY 14 - Sombrio"]
[{"$nulls":4},"HWY 52 - Heritage",null,"Rest Area: HWY 16 - 6 Mile Brake Check"]
[{"$nulls":4},"HWY 77 - Liard",null,"Rest Area: HWY 16 - Baker Creek"]
[{"$nulls":4},"HWY 91 - Annacis Island",null,"Rest Area: HWY 16 - Basalt Creek"]
[{"$nulls":4},"HWY 91 - Richmond Freeway",null,"Rest Area: HWY 16 - Boulder Creek"]
[{"$nulls":4},"HWY 91A - Queensborough Connector",null,"Rest Area: HWY 16 - Boundary North"]
[{"$nulls":4},"HWY 93 - Elko – Roosville | Radium Hot Springs Castle Mountain Junction",null,"Rest Area: HWY 16 - Boundary South"]
[{"$nulls":4},"HWY 95 - Yahk – Kingsgate Kootenay – Columbia",null,"Rest Area: HWY 16 - Bowron North Rest Area"]
[{"$nulls":4},"HWY 95A - Kimberley",null,"Rest Area: HWY 16 - Bowron River"]
[{"$nulls":4},"HWY 97 - Okanagan Vernon – Monte Creek Cariboo John Hart – Peace River Alaska",null,"Rest Area: HWY 16 - Bowron South Rest Area"]
[{"$nulls":4},"HWY 97A - Vernon – Sicamous",null,"Rest Area: HWY 16 - Bulkley View"]
[{"$nulls":4},"HWY 97B - Grindrod – Salmon Arm",null,"Rest Area: HWY 16 - Cluculz Lake"]
[{"$nulls":4},"HWY 97C - Okanagan Connector Mamit Lake Road Highland Valley Road Ashcroft-Cache Creek",null,"Rest Area: HWY 16 - Dry William Lake"]
[{"$nulls":4},"HWY 97D - Meadow Creek Road",null,"Rest Area: HWY 16 - Exstew"]
[{"$nulls":4},"HWY 99 - Vancouver –Blaine, Sea to Sky, Duffy Lake Road",null,"Rest Area: HWY 16 - Glacier View"]
[{"$nulls":4},"HWY 101 - Sunshine Coast",null,"Rest Area: HWY 16 - Goat River"]
[{"$nulls":4},"HWY 113 - Nisga’a Highway",null,"Rest Area: HWY 16 - Goat River"]
[{"$nulls":4},"HWY 118 - Central Babine Lake (but signed as Topley Landing Road)",null,"Rest Area: HWY 16 - Grassy Bay"]
[{"$nulls":4},"HWY 395 - Christina Lake – Laurier",null,"Rest Area: HWY 16 - Halibut Bight"]
[{"$nulls":6},"Rest Area: HWY 16 - Hungry Hill"]
[{"$nulls":6},"Rest Area: HWY 16 - Mt Terry Fox 16"]
[{"$nulls":6},"Rest Area: HWY 16 - Palling"]
[{"$nulls":6},"Rest Area: HWY 16 - Sanderson Point"]
[{"$nulls":6},"Rest Area: HWY 16 - Savory"]
[{"$nulls":6},"Rest Area: HWY 16 - Sheraton"]
[{"$nulls":6},"Rest Area: HWY 16 - Slim Creek"]
[{"$nulls":6},"Rest Area: HWY 16 - Small River"]
[{"$nulls":6},"Rest Area: HWY 16 - Telegraph Point"]
[{"$nulls":6},"Rest Area: HWY 16 - Tete Jaune Cache"]
[{"$nulls":6},"Rest Area: HWY 16 - Tintagel"]
[{"$nulls":6},"Rest Area: HWY 16 - Topley"]
[{"$nulls":6},"Rest Area: HWY 16 - Willow River"]
[{"$nulls":6},"Rest Area: HWY 19 - Buckley Bay"]
[{"$nulls":6},"Rest Area: HWY 19 - Eagles Nest"]
[{"$nulls":6},"Rest Area: HWY 19 - Eve River"]
[{"$nulls":6},"Rest Area: HWY 19 - Hoomak Lake"]
[{"$nulls":6},"Rest Area: HWY 19 - Keta Lake"]
[{"$nulls":6},"Rest Area: HWY 19 - Misty Lake"]
[{"$nulls":6},"Rest Area: HWY 19 - Nanoose"]
[{"$nulls":6},"Rest Area: HWY 19 - Roberts Lake"]
[{"$nulls":6},"Rest Area: HWY 19A - Baynes Sound"]
[{"$nulls":6},"Rest Area: HWY 19A - Oyster Bay"]
[{"$nulls":6},"Rest Area: HWY 2 - Pouce Inspection Rest Area"]
[{"$nulls":6},"Rest Area: HWY 20 - Hanceville"]
[{"$nulls":6},"Rest Area: HWY 20 - Polywog"]
[{"$nulls":6},"Rest Area: HWY 20 - Sheep Creek Brake Check"]
[{"$nulls":6},"Rest Area: HWY 20 - Tweedsmuir Chain Off Area Eb"]
[{"$nulls":6},"Rest Area: HWY 20 - Tweedsmuir Chain Off Area Wb"]
[{"$nulls":6},"Rest Area: HWY 22 - Oasis"]
[{"$nulls":6},"Rest Area: HWY 23 - Galena Bay"]
[{"$nulls":6},"Rest Area: HWY 23 - Ione"]
[{"$nulls":6},"Rest Area: HWY 23 - Shelter Bay"]
[{"$nulls":6},"Rest Area: HWY 24 - #24 Rest Area"]
[{"$nulls":6},"Rest Area: HWY 24 - Macdonald"]
[{"$nulls":6},"Rest Area: HWY 26 - Jack-Of-Clubs"]
[{"$nulls":6},"Rest Area: HWY 27 - Fish Lake"]
[{"$nulls":6},"Rest Area: HWY 27 - Pinchi"]
[{"$nulls":6},"Rest Area: HWY 27 - Vanderhoof Scale"]
[{"$nulls":6},"Rest Area: HWY 28 - Big Den"]
[{"$nulls":6},"Rest Area: HWY 29 - Del North Rest Area"]
[{"$nulls":6},"Rest Area: HWY 29 - Peaceview"]
[{"$nulls":6},"Rest Area: HWY 3 - American Railway"]
[{"$nulls":6},"Rest Area: HWY 3 - Anarchist Mountain"]
[{"$nulls":6},"Rest Area: HWY 3 - Big Sheep Creek"]
[{"$nulls":6},"Rest Area: HWY 3 - Blazed Creek"]
[{"$nulls":6},"Rest Area: HWY 3 - Bridal Lake"]
[{"$nulls":6},"Rest Area: HWY 3 - Caithness Creek"]
[{"$nulls":6},"Rest Area: HWY 3 - Castlegar Weigh Scale Rest Area"]
[{"$nulls":6},"Rest Area: HWY 3 - Crowsnest"]
[{"$nulls":6},"Rest Area: HWY 3 - Erie Lake"]
[{"$nulls":6},"Rest Area: HWY 3 - Hope Slide"]
[{"$nulls":6},"Rest Area: HWY 3 - Ingham"]
[{"$nulls":6},"Rest Area: HWY 3 - Kidd Creek"]
[{"$nulls":6},"Rest Area: HWY 3 - Lost Creek"]
[{"$nulls":6},"Rest Area: HWY 3 - Mcrae Creek"]
[{"$nulls":6},"Rest Area: HWY 3 - Mine Hill"]
[{"$nulls":6},"Rest Area: HWY 3 - Olson"]
[{"$nulls":6},"Rest Area: HWY 3 - Ootischenia"]
[{"$nulls":6},"Rest Area: HWY 3 - Rampart"]
[{"$nulls":6},"Rest Area: HWY 3 - Ryan"]
[{"$nulls":6},"Rest Area: HWY 3 - Wilgress Lake"]
[{"$nulls":6},"Rest Area: HWY 31A - Fish Lake"]
[{"$nulls":6},"Rest Area: HWY 33 - Hall Creek"]
[{"$nulls":6},"Rest Area: HWY 33 - Rhone"]
[{"$nulls":6},"Rest Area: HWY 37 - Beaverdam Creek"]
[{"$nulls":6},"Rest Area: HWY 37 - Bell 1"]
[{"$nulls":6},"Rest Area: HWY 37 - Bob Quinn Airstrip"]
[{"$nulls":6},"Rest Area: HWY 37 - Border"]
[{"$nulls":6},"Rest Area: HWY 37 - Brown Bear"]
[{"$nulls":6},"Rest Area: HWY 37 - Cottonwood North"]
[{"$nulls":6},"Rest Area: HWY 37 - Cottonwood South"]
[{"$nulls":6},"Rest Area: HWY 37 - Eastman Creek"]
[{"$nulls":6},"Rest Area: HWY 37 - Eddontenajon North"]
[{"$nulls":6},"Rest Area: HWY 37 - Mehan (Hodder) Lake"]
[{"$nulls":6},"Rest Area: HWY 37 - Moonlit Creek"]
[{"$nulls":6},"Rest Area: HWY 37 - Morchuea Lake"]
[{"$nulls":6},"Rest Area: HWY 37 - Nass"]
[{"$nulls":6},"Rest Area: HWY 37 - Rabid Grizzly"]
[{"$nulls":6},"Rest Area: HWY 37 - Red Flats Memorial"]
[{"$nulls":6},"Rest Area: HWY 37A - Bear Glacier"]
[{"$nulls":6},"Rest Area: HWY 37A - Windy Hill Chainup"]
[{"$nulls":6},"Rest Area: HWY 3A - Balfour"]
[{"$nulls":6},"Rest Area: HWY 3A - Brilliant"]
[{"$nulls":6},"Rest Area: HWY 3A - Kootenay Bay"]
[{"$nulls":6},"Rest Area: HWY 3A - Kuskanook"]
[{"$nulls":6},"Rest Area: HWY 3A - Twin Bays"]
[{"$nulls":6},"Rest Area: HWY 3A - Yellow Lake #1"]
[{"$nulls":6},"Rest Area: HWY 3A - Yellow Lake #2"]
[{"$nulls":6},"Rest Area: HWY 4 - Kennedy River"]
[{"$nulls":6},"Rest Area: HWY 4 - Taylor River"]
[{"$nulls":6},"Rest Area: HWY 5 - Birch Island"]
[{"$nulls":6},"Rest Area: HWY 5 - Box Canyon"]
[{"$nulls":6},"Rest Area: HWY 5 - Britton Creek"]
[{"$nulls":6},"Rest Area: HWY 5 - Camp Creek East"]
[{"$nulls":6},"Rest Area: HWY 5 - Camp Creek West"]
[{"$nulls":6},"Rest Area: HWY 5 - Clapperton Brake Check"]
[{"$nulls":6},"Rest Area: HWY 5 - Clapperton Chain Up"]
[{"$nulls":6},"Rest Area: HWY 5 - Coquihalla Lakes Nb"]
[{"$nulls":6},"Rest Area: HWY 5 - Coquihalla Lakes Sb"]
[{"$nulls":6},"Rest Area: HWY 5 - Fish Trap"]
[{"$nulls":6},"Rest Area: HWY 5 - Inks Lake Brake Check"]
[{"$nulls":6},"Rest Area: HWY 5 - Little Fort"]
[{"$nulls":6},"Rest Area: HWY 5 - Messiter Summit"]
[{"$nulls":6},"Rest Area: HWY 5 - Mt Terry Fox 5"]
[{"$nulls":6},"Rest Area: HWY 5 - Thunder River"]
[{"$nulls":6},"Rest Area: HWY 5 - Vinsulla Rest Area"]
[{"$nulls":6},"Rest Area: HWY 5 - Wire Cache"]
[{"$nulls":6},"Rest Area: HWY 5 - Wire Cache"]
[{"$nulls":6},"Rest Area: HWY 5 - Zopkios"]
[{"$nulls":6},"Rest Area: HWY 51 - Windy Point"]
[{"$nulls":6},"Rest Area: HWY 52 - Salt Flats Rest Area"]
[{"$nulls":6},"Rest Area: HWY 5A - Gulliford Lake"]
[{"$nulls":6},"Rest Area: HWY 5A - Hamilton Brake Check"]
[{"$nulls":6},"Rest Area: HWY 5A - Knutsford Brake Check"]
[{"$nulls":6},"Rest Area: HWY 5A - Nicola Lake"]
[{"$nulls":6},"Rest Area: HWY 5A - Stump Lake"]
[{"$nulls":6},"Rest Area: HWY 6 - Fauquier"]
[{"$nulls":6},"Rest Area: HWY 6 - Lemon Creek"]
[{"$nulls":6},"Rest Area: HWY 6 - Lost Lake"]
[{"$nulls":6},"Rest Area: HWY 6 - Needles"]
[{"$nulls":6},"Rest Area: HWY 6 - Silverton Lookout"]
[{"$nulls":6},"Rest Area: HWY 6 - Stewart Creek"]
[{"$nulls":6},"Rest Area: HWY 6 - Summit Lake"]
[{"$nulls":6},"Rest Area: HWY 7 - Johnson Slough"]
[{"$nulls":6},"Rest Area: HWY 77 - Fort Nelson River"]
[{"$nulls":6},"Rest Area: HWY 91 - Nordel Truck Lot"]
[{"$nulls":6},"Rest Area: HWY 91 - Nordel Truck Stop"]
[{"$nulls":6},"Rest Area: HWY 93 - Elko Junction"]
[{"$nulls":6},"Rest Area: HWY 95 - Braisher Creek"]
[{"$nulls":6},"Rest Area: HWY 95 - Campbell-Myer Lake"]
[{"$nulls":6},"Rest Area: HWY 95 - Coys Hill"]
[{"$nulls":6},"Rest Area: HWY 95 - Spillimacheen"]
[{"$nulls":6},"Rest Area: HWY 95 - Wasa"]
[{"$nulls":6},"Rest Area: HWY 95A - Cherry Creek"]
[{"$nulls":6},"Rest Area: HWY 97 - 108 Mile"]
[{"$nulls":6},"Rest Area: HWY 97 - Australian"]
[{"$nulls":6},"Rest Area: HWY 97 - Big Bar"]
[{"$nulls":6},"Rest Area: HWY 97 - Crooked River"]
[{"$nulls":6},"Rest Area: HWY 97 - East Pine"]
[{"$nulls":6},"Rest Area: HWY 97 - Hush Lake"]
[{"$nulls":6},"Rest Area: HWY 97 - Hwy #97 Brake Check"]
[{"$nulls":6},"Rest Area: HWY 97 - Kalamalka Lake"]
[{"$nulls":6},"Rest Area: HWY 97 - Kiskatinaw"]
[{"$nulls":6},"Rest Area: HWY 97 - Loch Loman"]
[{"$nulls":6},"Rest Area: HWY 97 - Marguerite Rest Area"]
[{"$nulls":6},"Rest Area: HWY 97 - Mcleese Lake"]
[{"$nulls":6},"Rest Area: HWY 97 - Mile 80"]
[{"$nulls":6},"Rest Area: HWY 97 - Monte Creek"]
[{"$nulls":6},"Rest Area: HWY 97 - Powerline Rest Area"]
[{"$nulls":6},"Rest Area: HWY 97 - Salmon Valley"]
[{"$nulls":6},"Rest Area: HWY 97 - South Taylor Hill"]
[{"$nulls":6},"Rest Area: HWY 97 - South Taylor Hill Rest Area"]
[{"$nulls":6},"Rest Area: HWY 97 - Una"]
[{"$nulls":6},"Rest Area: HWY 97 - Welcome To Williams Lake"]
[{"$nulls":6},"Rest Area: HWY 97 - West Pine River"]
[{"$nulls":6},"Rest Area: HWY 97 - Woodpecker"]
[{"$nulls":6},"Rest Area: HWY 97A - Mara Lake"]
[{"$nulls":6},"Rest Area: HWY 97C - Elkhart (Loon Lake) Brake Check"]
[{"$nulls":6},"Rest Area: HWY 97C - Loon Lake Chainup"]
[{"$nulls":6},"Rest Area: HWY 97C - Loon Lake Rest Area"]
[{"$nulls":6},"Rest Area: HWY 97D - Walloper Rest Area"]
[{"$nulls":6},"Rest Area: NAZKO RD - Moose Springs"]